Workbook

Sheet INEGI
B1: TABASCO Cuadro 223
B2: PIB en Millones de Pesos a Precios Corrientes en Valores Básicos
C3: 2003 | D3: 2004 | E3: 2005 | F3: 2006 | G3: 2007
B4: TOTAL | C4: =SUM(C5:C24) -> 170382 | D4: 208563 | E4: 244270 | F4: 306568 | G4: 325869 | H4: 100 | I4: 100 | J4: 100 | K4: 100 | L4: 100
A5: 11 | B5: Agricultura,ganadería,aprovechamientoforestal,pescaycaza | C5: 4225 | D5: 4457 | E5: 5015 | F5: 5279 | G5: 5534 | H5: 2.48 | I5: 2.14 | J5: 2.05 | K5: 1.72 | L5: 1.7
A6: 21 | B6: Minería | C6: 74623 | D6: 102661 | E6: 125084 | F6: 173007 | G6: 186231 | H6: 43.8 | I6: 49.22 | J6: 51.21 | K6: 56.43 | L6: 57.15
A7: 22 | B7: Electricidad, agua y suministro de gas por ductos al cons. final | C7: 378 | D7: 481 | E7: 472 | F7: 582 | G7: 664 | H7: 0.22 | I7: 0.23 | J7: 0.19 | K7: 0.19 | L7: 0.2
A8: 23 | B8: 23 Construcción | C8: 11971 | D8: 12877 | E8: 18166 | F8: 19906 | G8: 17440 | H8: 7.03 | I8: 6.17 | J8: 7.44 | K8: 6.49 | L8: 5.35
A9: 31-33 | B9: Industrias manufactureras | C9: 10407 | D9: 10917 | E9: 9109 | F9: 12165 | G9: 12369 | H9: 6.11 | I9: 5.23 | J9: 3.73 | K9: 3.97 | L9: 3.8
A10: 43 y 46 | B10: Comercio | C10: 17922 | D10: 21595 | E10: 24717 | F10: 27702 | G10: 29407 | H10: 10.52 | I10: 10.35 | J10: 10.12 | K10: 9.04 | L10: 9.02
A11: 48-49 | B11: Transportes, correos y almacenamiento | C11: 7862 | D11: 8521 | E11: 9519 | F11: 10362 | G11: 111151 | H11: 4.61 | I11: 4.09 | J11: 3.9 | K11: 3.38 | L11: 3.41
A12: 51 | B12: Información en medios masivos | C12: 1411 | D12: 1783 | E12: 2233 | F12: 2880 | G12: 3399 | H12: 0.83 | I12: 0.85 | J12: 0.91 | K12: 0.94 | L12: 1.04
A13: =+A12+1 -> 52 | B13: Servicios financieros y de seguros | C13: 1050 | D13: 1123 | E13: 1615 | F13: 1704 | G13: 2781 | H13: 0.62 | I13: 0.54 | J13: 0.66 | K13: 0.56 | L13: 0.85
A14: =+A13+1 -> 53 | B14: Serv. inmobiliarios y de alquiler de bienes muebles e intangibles | C14: 13741 | D14: 15277 | E14: 16982 | F14: 18574 | G14: 19972 | H14: 8.06 | I14: 7.32 | J14: 6.95 | K14: 6.06 | L14: 6.13
A15: 54 | B15: Servicios profesionales, científicos y técnicos | C15: 1938 | D15: 2089 | E15: 2199 | F15: 2463 | G15: 2728 | H15: 1.14 | I15: 1 | J15: 0.9 | K15: 0.8 | L15: 0.84
A16: 55 | B16: Dirección de corporativos y empresas | C16: 14 | D16: 16 | E16: 18 | F16: 20 | G16: 20 | H16: 0.01 | I16: 0.01 | J16: 0.01 | K16: 0.01 | L16: 0.01
A17: 56 | B17: Serv. de apoyo a negoc. y manejo de desechos y serv. de remed. | C17: 1319 | D17: 1433 | E17: 1555 | F17: 1556 | G17: 1639 | H17: 0.77 | I17: 0.69 | J17: 0.64 | K17: 0.51 | L17: 0.5
A18: 61 | B18: Servicios educativos | C18: 6377 | D18: 6949 | E18: 7895 | F18: 8599 | G18: 9480 | H18: 3.74 | I18: 3.33 | J18: 3.23 | K18: 2.8 | L18: 2.91
A19: 62 | B19: Servicios de salud y de asistencia social | C19: 5047 | D19: 5303 | E19: 5875 | F19: 7015 | G19: 7725 | H19: 2.96 | I19: 2.54 | J19: 2.41 | K19: 2.29 | L19: 2.37
A20: 71 | B20: Serv. de esparc. culturales y deportivos, y otros serv. recreativos | C20: 110 | D20: 117 | E20: 125 | F20: 137 | G20: 147 | H20: 0.06 | I20: 0.06 | J20: 0.05 | K20: 0.04 | L20: 0.05
A21: 72 | B21: Serv. de alojamiento temporal y de prep. de alimentos y bebidas | C21: 3188 | D21: 3478 | E21: 3622 | F21: 4154 | G21: 3793 | H21: 1.87 | I21: 1.67 | J21: 1.48 | K21: 1.36 | L21: 1.16
A22: 81 | B22: Otros servicios excepto actividades del Gobierno | C22: 3375 | D22: 3462 | E22: 3480 | F22: 3861 | G22: 4505 | H22: 1.98 | I22: 1.66 | J22: 1.42 | K22: 1.26 | L22: 1.38
A23: 93 | B23: Actividades del Gobierno | C23: 5969 | D23: 6334 | E23: 7198 | F23: 7395 | G23: 8426 | H23: 3.5 | I23: 3.04 | J23: 2.95 | K23: 2.41 | L23: 2.59
B24: Servicios de Intermediación Financiera Medidos Indirectamente | C24: -545 | D24: -309 | E24: -608 | F24: -792 | G24: -1508 | H24: -0.32 | I24: -0.15 | J24: -0.25 | K24: -0.26 | L24: -0.46
B25: FUENTE: INEGI. Dirección General de Estadísticas Económicas. Dirección General Adjunta de Cuentas Nacionales.
B27: =+SAM!D9 -> AgPec | C27: =+C5 -> 4225 | D27: =+D5 -> 4457 | E27: 5015 | F27: 5279 | G27: 5534 | H27: 2.48 | I27: 2.14 | J27: 2.05 | K27: 1.72 | L27: 1.7
B28: =+SAM!D10 -> Pet | C28: =+C6 -> 74623 | D28: =+D6 -> 102661 | E28: 125084 | F28: 173007 | G28: 186231 | H28: 43.8 | I28: 49.22 | J28: 51.21 | K28: 56.43 | L28: 57.15
B29: =+SAM!D11 -> Industria | C29: =SUM(C7:C9) -> 22756 | D29: =SUM(D7:D9) -> 24275 | E29: 27747 | F29: 32653 | G29: 30473 | H29: 13.36 | I29: 11.63 | J29: 11.36 | K29: 10.65 | L29: 9.35
B30: =+SAM!D12 -> Servicios | C30: =SUM(C10:C24) -> 68778 | D30: =SUM(D10:D24) -> 77171 | E30: 86425 | F30: 95630 | G30: 203665 | H30: 40.35 | I30: 37 | J30: 35.38 | K30: 31.2 | L30: 31.8
C33: =+C32-C4 -> -170382
B34: Consumo | C34: =+C$4/SAM_aida!C57*SAM_aida!C58 -> 69982.42944
B35: Inversion | C35: =+C$4/SAM_aida!C58*SAM_aida!C59 -> 49962.47935
B36: Gobierno | C36: =+C$4/SAM_aida!C59*SAM_aida!C60 -> 222258.7812
B37: Export | C37: =+C$4/SAM_aida!C60*SAM_aida!C61 -> 707412.7099
C40: PIB Real | D40: TC | E40: Sin Min | F40: Poblacion | G40: per capita | H40: Petroleo | I40: Petro | L40: PIB | N40: =+B27 -> AgPec | O40: =+B28 -> Pet | P40: =+B29 -> Industria | Q40: =+B30 -> Servicios
B41: 2003 | C41: =+L41 -> 170382 | I41: =+O41 -> 74623 | L41: =+SUM(C27:C30) -> 170382 | N41: =+C27 -> 4225 | O41: =+C28 -> 74623 | P41: =+C29 -> 22756 | Q41: =+C30 -> 68778
B42: =+B41+1 -> 2004 | C42: =+C41*(1+D42/100) -> 177248.3946 | D42: 4.03 | E42: 3.21 | F42: 1.6 | G42: =+E42-F42 -> 1.61 | H42: =+D42-E42 -> 0.82 | I42: =+I41*(1+H42/100) -> 75234.9086 | J42: =+I42/I41-1 -> 0.0082 | L42: =+SUM(D27:D30) -> 208564 | M42: =+L42/L41-1 -> 0.2240964421 | N42: =+D27 -> 4457 | O42: =+D28 -> 102661 | P42: =+D29 -> 24275 | Q42: =+D30 -> 77171
B43: =+B42+1 -> 2005 | C43: =+C42*(1+D43/100) -> 191906.8368 | D43: 8.27 | E43: 7.32 | F43: 2.4 | G43: 4.92 | H43: =+D43-E43 -> 0.95 | I43: =+I42*(1+H43/100) -> 75949.64023 | J43: =+I43/I42-1 -> 0.0095 | L43: =+SUM(E27:E30) -> 244271 | M43: =+L43/L42-1 -> 0.1712040429 | N43: =+E27 -> 5015 | O43: =+E28 -> 125084 | P43: =+E29 -> 27747 | Q43: =+E30 -> 86425
B44: 2006 | C44: 203862.6328 | D44: 6.23 | E44: 4.27 | F44: 2.4 | G44: 1.87 | H44: 1.96 | I44: 77438.25318 | J44: 0.0196 | L44: =+SUM(F27:F30) -> 306569 | M44: 0.2550364145 | N44: =+F27 -> 5279 | O44: =+F28 -> 173007 | P44: =+F29 -> 32653 | Q44: =+F30 -> 95630
B45: 2007 | C45: 209713.4903 | D45: 2.87 | E45: 0.05 | F45: 2.4 | G45: -2.35 | H45: 2.82 | I45: 79622.01192 | J45: 0.0282 | L45: =+SUM(G27:G30) -> 425903 | M45: 0.3892565785 | N45: =+G27 -> 5534 | O45: =+G28 -> 186231 | P45: 32653 | Q45: =+G30 -> 203665
B46: 2008 | C46: 218395.6288 | D46: 4.14 | E46: 4.33 | F46: 2.4 | G46: 1.93 | H46: -0.19 | I46: 79470.7301 | J46: -0.0019
B47: 2009 | C47: 223047.4557 | D47: 2.13 | E47: -5.54 | F47: 2.4 | G47: -7.94 | H47: 7.67 | I47: 85566.1351 | J47: 0.0767
B48: 2010 | C48: 235493.5038 | D48: 5.58 | E48: 2.81 | F48: 2.4 | G48: =+E48-F48 -> 0.41 | H48: =+D48-E48 -> 2.77 | I48: 87936.31704 | J48: 0.0277
B49: 2011 | C49: 247597.8698 | D49: 5.14 | E49: 7.97 | F49: 2.4 | G49: 5.57 | H49: =+D49-E49 -> -2.83 | I49: 85447.71927 | J49: -0.0283
C51: =+C27/SUM($C$27:$C$30) -> 0.02479722036
C52: =+C28/SUM($C$27:$C$30) -> 0.4379746687
C53: 0.1335587093
C54: 0.4036694017
C55: 0

Sheet SAM
D2: Mexico 2003 | E2: Produccion | I2: Empresas | M2: Factores de Produccion | Q2: Hogares-Qunitiles | V2: Gob | X2: Invers | AA2: Extranjeros
AC3: Total
E4: =+D9 -> AgPec | F4: =+D10 -> Pet | G4: =+D11 -> Industria | H4: =+D12 -> Servicios | I4: =+E4 -> AgPec | J4: =+F4 -> Pet | K4: =+G4 -> Industria | L4: =+H4 -> Servicios | M4: =+D23 -> Ls | N4: Lu | O4: =+D25 -> Capital | P4: =+D13 -> Margen | X4: Privado | Y4: Publico | Z4: Publico | AA4: Expt | AB4: Expt Mex
Q5: 1 | R5: 2 | S5: 3 | T5: 4 | U5: 5 | V5: Local | W5: Federal | Y5: Local | Z5: Federal | AA5: XRM | AB5: XRM
D8: Bienes | I8: =SUM(I9:I13) -> 8665.418951 | J8: =SUM(J9:J13) -> 78024.6103 | K8: =SUM(K9:K13) -> 66776.70949 | L8: =SUM(L9:L13) -> 102183.2868 | AC8: =SUM(E8:AB8) -> 255650.0255 | AD8: =+AC8-SUM(I8:AB8) -> 0
D9: AgPec | I9: =+AC9 -> 6784.059096 | J9: 0 | K9: 0 | L9: 0 | AC9: =+E48 -> 6784.059096 | AD9: =+AC9-SUM(I9:AB9) -> 0
D10: Pet | I10: 0 | J10: =+AC10 -> 77980.04402 | K10: 0 | L10: 0 | AC10: =F48 -> 77980.04402 | AD10: =+AC10-SUM(I10:AB10) -> 0
D11: Industria | I11: 0 | J11: 0 | K11: =+SAM_aida!J12/(SAM_aida!J12+SAM_aida!K12)*AC11 -> 50164.00836 | L11: =AC11-K11 -> 191.6371119 | AC11: =G48 -> 50355.64547 | AD11: =+AC11-SUM(I11:AB11) -> 0
D12: Servicios | I12: 0 | J12: 0 | K12: =+SAM_aida!J13/(SAM_aida!J13+SAM_aida!K13)*SAM!AC12 -> 616.627263 | L12: =+AC12-K12 -> 101991.6497 | AC12: =+H48 -> 102608.2769 | AD12: =+AC12-SUM(I12:AB12) -> 0
D13: Margen | I13: =+SAM_aida!H14/SUM(SAM_aida!$H14:$K14)*$P19 -> 1881.359855 | J13: =+SAM_aida!I14/SUM(SAM_aida!$H14:$K14)*$P19 -> 44.56627476 | K13: =+SAM_aida!J14/SUM(SAM_aida!$H14:$K14)*$P19 -> 15996.07387 | L13: =+SAM_aida!K14/SUM(SAM_aida!$H14:$K14)*$P19 -> 0 | AC13: =SUM(E13:AB13) -> 17922 | AD13: =+AC13-SUM(I13:AB13) -> 0
E14: =E15-SUM(E16:E19) -> 0 | F14: =F15-SUM(F16:F19) -> 0 | G14: =G15-SUM(G16:G19) -> 0 | H14: =H15-SUM(H16:H19) -> 0 | Q14: =Q15-SUM(Q16:Q19) -> 0 | R14: =R15-SUM(R16:R19) -> 0 | S14: =S15-SUM(S16:S19) -> 0 | T14: =T15-SUM(T16:T19) -> 0 | U14: =U15-SUM(U16:U19) -> 0 | V14: =V15-SUM(V16:V19) -> 0 | W14: 0 | X14: 0 | Y14: 0 | Z14: 0 | AA14: =AA15-SUM(AA16:AA19) -> 0 | AB14: =AB15-SUM(AB16:AB19) -> 0 | AD14: =AC14-SUM(E14:AB14) -> 0
A15: =H15-34646.5602357094 -> 0 | D15: Empresas | E15: =SUM(E16:E19) -> 2559.059096 | F15: =SUM(F16:F19) -> 3357.04402 | G15: =SUM(G16:G19) -> 28842.95105 | H15: =SUM(H16:H19) -> 34646.56024 | P15: =SUM(P16:P19) -> 17922 | Q15: =+PIB_scale*SAM_aida!O16 -> 3951.213015 | R15: =+PIB_scale*SAM_aida!P16 -> 5743.301745 | S15: =+PIB_scale*SAM_aida!Q16 -> 8903.439267 | T15: =+PIB_scale*SAM_aida!R16 -> 13803.64996 | U15: =+PIB_scale*SAM_aida!S16 -> 37580.82545 | V15: =+V77 -> 10072.32547 | W15: =+W77 -> 16697.436 | X15: =+X67 -> 8714.036044 | Y15: =+Y67 -> 7589.843387 | Z15: =+Z67 -> 4217.629213 | AA15: =+PIB_scale*SAM_aida!Y16 -> 32523.35031 | AB15: =+PIB_scale*SAM_aida!Z16 -> 78622.60117 | AC15: 315747.2654 | AD15: 0
A16: =H16-561.961422968528 -> 0 | D16: =+E4 -> AgPec | E16: =+'RAS (MIP)'!E3 -> 362.0474097 | F16: =+'RAS (MIP)'!F3 -> 0 | G16: =+'RAS (MIP)'!G3 -> 13365.97671 | H16: =+'RAS (MIP)'!H3 -> 561.961423 | Q16: =+'RAS (C) '!E3 -> 344.6383935 | R16: =+'RAS (C) '!F3 -> 472.2624614 | S16: =+'RAS (C) '!G3 -> 470.6951047 | T16: =+'RAS (C) '!H3 -> 547.1660928 | U16: =+'RAS (C) '!I3 -> 591.9124826 | V16: =SAM_aida!$T17/SAM_aida!$T$16*V$15 -> 0 | W16: =SAM_aida!$T17/SAM_aida!$T$16*W$15 -> 0 | X16: =SAM_aida!$V17/SAM_aida!$V$16*X$15 -> 75.38890074 | Y16: =SAM_aida!$V17/SAM_aida!$V$16*Y$15 -> 65.66302307 | Z16: =SAM_aida!$V17/SAM_aida!$V$16*Z$15 -> 36.4885374 | AA16: =SAM_aida!Y17/SAM_aida!Y$16*AA$15 -> 0 | AB16: =SAM_aida!Z17/SAM_aida!Z$16*AB$15 -> 2289.243365 | AC16: 19183.4439 | AD16: 0 | AE16: =+AC15-SUM(AC16:AC19) -> 0 | AG16: =+AB16/$AB$15 -> 0.0291168612
D17: =+F4 -> Pet | E17: =+'RAS (MIP)'!E4 -> 0 | F17: =+'RAS (MIP)'!F4 -> 0 | G17: =+'RAS (MIP)'!G4 -> 0 | H17: =+'RAS (MIP)'!H4 -> 0 | Q17: =+'RAS (C) '!E4 -> 0 | R17: =+'RAS (C) '!F4 -> 0 | S17: =+'RAS (C) '!G4 -> 0 | T17: =+'RAS (C) '!H4 -> 0 | U17: =+'RAS (C) '!I4 -> 0 | V17: =SAM_aida!$T18/SAM_aida!$T$16*V$15 -> 0 | W17: =SAM_aida!$T18/SAM_aida!$T$16*W$15 -> 0 | X17: =SAM_aida!$V18/SAM_aida!$V$16*X$15 -> 0 | Y17: =SAM_aida!$V18/SAM_aida!$V$16*Y$15 -> 0 | Z17: =SAM_aida!$V18/SAM_aida!$V$16*Z$15 -> 0 | AA17: =SAM_aida!Y18/SAM_aida!Y$16*AA$15 -> 32435.15138 | AB17: =+AC17-AA17 -> 45589.45892 | AC17: =+J48 -> 78024.6103 | AD17: 0 | AE17: =+AB17-[3]SAM!$AB$17 -> 1130.294999 | AG17: =+AB17/$AB$15 -> 0.5798518268 | AH17: =+AG17+AG18 -> 0.9638852158
A18: =H18-18840.8069624739 -> 0 | D18: =+G4 -> Industria | E18: =+'RAS (MIP)'!E5 -> 2052.94672 | F18: =+'RAS (MIP)'!F5 -> 358.5071617 | G18: =+'RAS (MIP)'!G5 -> 11115.68487 | H18: =+'RAS (MIP)'!H5 -> 18840.80696 | Q18: =+'RAS (C) '!E5 -> 1920.380913 | R18: =+'RAS (C) '!F5 -> 3278.437614 | S18: =+'RAS (C) '!G5 -> 4524.32278 | T18: =+'RAS (C) '!H5 -> 6052.266273 | U18: =+'RAS (C) '!I5 -> 10474.2444 | V18: =SAM_aida!$T19/SAM_aida!$T$16*V$15 -> 0 | W18: =SAM_aida!$T19/SAM_aida!$T$16*W$15 -> 0 | X18: =SAM_aida!$V19/SAM_aida!$V$16*X$15 -> 1713.965142 | Y18: =SAM_aida!$V19/SAM_aida!$V$16*Y$15 -> 1492.847509 | Z18: =SAM_aida!$V19/SAM_aida!$V$16*Z$15 -> 829.5661639 | AA18: =SAM_aida!Y19/SAM_aida!Y$16*AA$15 -> 88.19893394 | AB18: =+AC18-SUM(E18:AA18) -> 30193.70398 | AC18: =+K48 -> 92935.87942 | AD18: 0 | AG18: 0.384033389
A19: =H19-15243.7918502669 -> 4.001776688e-11 | D19: =+H4 -> Servicios | E19: =+'RAS (MIP)'!E6 -> 144.0649657 | F19: =+'RAS (MIP)'!F6 -> 2998.536859 | G19: =+'RAS (MIP)'!G6 -> 4361.289469 | H19: =+'RAS (MIP)'!H6 -> 15243.79185 | P19: =+INEGI!C10 -> 17922 | Q19: =+Q15-SUM(Q16:Q18) -> 1686.193709 | R19: =+R15-SUM(R16:R18) -> 1992.60167 | S19: =+S15-SUM(S16:S18) -> 3908.421382 | T19: =+T15-SUM(T16:T18) -> 7204.217594 | U19: =+U15-SUM(U16:U18) -> 26514.66856 | V19: =SAM_aida!$T20/SAM_aida!$T$16*V$15 -> 10072.32547 | W19: =SAM_aida!$T20/SAM_aida!$T$16*W$15 -> 16697.436 | X19: =SAM_aida!$V20/SAM_aida!$V$16*X$15 -> 6924.682001 | Y19: =SAM_aida!$V20/SAM_aida!$V$16*Y$15 -> 6031.332855 | Z19: =SAM_aida!$V20/SAM_aida!$V$16*Z$15 -> 3351.574511 | AA19: =SAM_aida!Y20/SAM_aida!Y$16*AA$15 -> 0 | AB19: =+AC19-SUM(E19:AA19) -> 550.1949118 | AC19: =+L48 -> 125603.3318 | AD19: 0 | AG19: 0.006997923035
W20: =+W19/(W19+V19) -> 0.6237424274 | AD20: -0.6237424274 | AE20: =+AA17/AC17 -> 0.4157041126
E21: =E22-SUM(E23:E25) -> 0 | F21: =F22-SUM(F23:F25) -> 6.366462912e-12 | G21: =G22-SUM(G23:G25) -> 0 | H21: =H22-SUM(H23:H25) -> 0 | AD21: -6.366462912e-12
D22: Factores | E22: =+INEGI!C5-E34-I34 -> 4204.531795 | F22: =+INEGI!C6-F34-J34-F38 -> 2582.427938 | G22: =SUM(INEGI!C7:C9)-G34-K34 -> 20870.10838 | H22: =SUM(INEGI!C10:C24)-H34-L34 -> 66982.1281 | AC22: =SUM(E22:AB22) -> 94639.1962 | AD22: 0
A23: =H22-66887.9087330526 -> 94.21936296 | D23: Ls | E23: =+SAM_aida!C24/SAM_aida!C$23*SAM!E$22 -> 365.2152015 | F23: =+SAM_aida!D24/(SAM_aida!D24+SAM_aida!D25)*F22 -> 1807.699556 | G23: =+SAM_aida!E24/SAM_aida!E$23*SAM!G$22*G88 -> 6485.63213 | H23: =+SAM_aida!F24/SAM_aida!F$23*SAM!H$22*H88 -> 13719.43917 | AC23: =SUM(E23:AB23) -> 22377.98606 | AD23: 0
A24: =H23-19571.6299082467 -> -5852.190738 | D24: Lu | E24: =+SAM_aida!C25/SAM_aida!C$23*SAM!E$22 -> 1460.860806 | F24: =F22-F23 -> 774.7283813 | G24: =+SAM_aida!E25/SAM_aida!E$23*SAM!G$22*G88 -> 2161.877377 | H24: =+SAM_aida!F25/SAM_aida!F$23*SAM!H$22*H88 -> 9146.29278 | AC24: =SUM(E24:AB24) -> 13543.75934 | AD24: 0
A25: =H24-13047.7532721645 -> -3901.460492 | D25: Capital | E25: =+E48-E37-E34-E24-E23-E15 -> 2378.455788 | F25: =+F48-F37-F34-F24-F23-F15 -> -6.366462912e-12 | G25: =+G48-G37-G34-G24-G23-G15 -> 12222.59887 | H25: =+H48-H37-H34-H24-H23-H15 -> 44116.39615 | AC25: =SUM(E25:AB25) -> 58717.4508 | AD25: 0
A26: =H25-34268.5255526414 -> 9847.870593 | M26: =M27-SUM(M28:M32) -> 0 | N26: =N27-SUM(N28:N32) -> 0 | O26: =O27-SUM(O28:O32) -> 0 | V26: =V27-SUM(V28:V32) -> 0 | W26: =W27-SUM(W28:W32) -> 0 | AA26: =AA27-SUM(AA28:AA32) -> 0 | AB26: =AB27-SUM(AB28:AB32) -> 0 | AC26: =AC27-SUM(AC28:AC32) -> 0 | AD26: 0
D27: Hogares | M27: =+M48 -> 22377.98606 | N27: =+N48 -> 13543.75934 | O27: =+O48 -> 58717.4508 | V27: =SUM(V28:V32) -> 947.8864051 | W27: =$Z$53*AB27 -> 680.2250895 | AA27: =SUM(AA28:AA32) -> 201.1164714 | AB27: =+(AC27-SUM(M27:AA27)) -> 1700.562724 | AC27: =SUM(AC28:AC32) -> 98168.98689 | AD27: 0
D28: H1 | M28: =+'RAS (Fac))'!E3 -> 620.6309473 | N28: =+'RAS (Fac))'!F3 -> 3517.250491 | O28: =+'RAS (Fac))'!G3 -> 0 | V28: =+SAM_aida!T29*PIB_scale -> 155.2198003 | W28: 8.428512352 | AA28: =+SAM_aida!Y29*PIB_scale -> 9.645642586 | AB28: =+SAM_aida!$Z29/SAM_aida!$Z$28*SAM!AB$27 -> 21.07128088 | AC28: =+Q48 -> 4332.246674 | AD28: =AC28-SUM(E28:AB28) -> 0
D29: H2 | M29: =+'RAS (Fac))'!E4 -> 2518.039394 | N29: =+'RAS (Fac))'!F4 -> 3096.678009 | O29: =+'RAS (Fac))'!G4 -> 670.6200225 | V29: =+SAM_aida!T30*PIB_scale -> 295.60468 | W29: 15.34468145 | AA29: =+SAM_aida!Y30*PIB_scale -> 29.75127607 | AB29: =+SAM_aida!$Z30/SAM_aida!$Z$28*SAM!AB$27 -> 38.36170362 | AC29: =+R48 -> 6664.399766 | AD29: 0
D30: H3 | M30: =+'RAS (Fac))'!E5 -> 4296.487925 | N30: =+'RAS (Fac))'!F5 -> 2403.588109 | O30: =+'RAS (Fac))'!G5 -> 3432.802722 | V30: =+SAM_aida!T31*PIB_scale -> 261.2930534 | W30: 97.31382862 | AA30: =+SAM_aida!Y31*PIB_scale -> 69.13942483 | AB30: =+SAM_aida!$Z31/SAM_aida!$Z$28*SAM!AB$27 -> 243.2845716 | AC30: =+S48 -> 10803.90963 | AD30: 0
D31: H4 | M31: =+'RAS (Fac))'!E6 -> 4719.017942 | N31: =+'RAS (Fac))'!F6 -> 2137.51013 | O31: =+'RAS (Fac))'!G6 -> 9425.988111 | V31: =+SAM_aida!T32*PIB_scale -> 151.8609267 | W31: 163.8697786 | AA31: =+SAM_aida!Y32*PIB_scale -> 1.503412275 | AB31: =+SAM_aida!$Z32/SAM_aida!$Z$28*SAM!AB$27 -> 409.6744464 | AC31: =+T48 -> 17009.42475 | AD31: 0
D32: H6 | M32: =+'RAS (Fac))'!E7 -> 10223.80985 | N32: =+'RAS (Fac))'!F7 -> 2388.732606 | O32: =+'RAS (Fac))'!G7 -> 45188.03995 | V32: =+SAM_aida!T33*PIB_scale -> 83.90794474 | W32: 395.2682885 | AA32: =+SAM_aida!Y33*PIB_scale -> 91.07671561 | AB32: =+SAM_aida!$Z33/SAM_aida!$Z$28*SAM!AB$27 -> 988.1707213 | AC32: =+U48 -> 59359.00607 | AD32: 0
M33: =+'RAS (Fac))'!E8 -> 22377.98606 | N33: =+'RAS (Fac))'!F8 -> 13543.75934 | O33: =+'RAS (Fac))'!G8 -> 58717.4508 | AB33: 0
D34: Gobierno local | E34: =+SUM(E35:E35) -> 20.46820485 | F34: 1497.420682 | G34: 642.586047 | H34: 979.58861 | I34: 0 | J34: 0 | K34: 1243.305577 | L34: 816.283294 | V34: =+W27/(W27+V27+AA27+AB27) -> 0.1927097523 | AC34: =SUM(E34:AB34) -> 5199.845125 | AD34: =AC34-SUM(E34:AB34) -> 0
D35: Impuestos indirectos | E35: =+SAM_aida!C37/SAM_aida!C$50*SAM!E$48 -> 20.46820485 | F35: =+SAM_aida!D37/SAM_aida!D$50*SAM!F$48 -> 1497.420682 | G35: =+SAM_aida!E37/SAM_aida!E$50*SAM!G$48 -> 642.586047 | H35: =+SAM_aida!F37/SAM_aida!F$50*SAM!H$48 -> 979.58861 | I35: =+SAM_aida!H38/SAM_aida!H$50*SAM!I$48 -> 0 | J35: =+SAM_aida!I38/SAM_aida!I$50*SAM!J$48 -> 0 | K35: =+SAM_aida!J38/SAM_aida!J$50*SAM!K$48 -> 1243.305577 | L35: =+SAM_aida!K38/SAM_aida!K$50*SAM!L$48 -> 816.283294 | AC35: 5199.652415 | AD35: 0
AC36: 0 | AD36: 0
D37: Gobierno federal | E37: =+SUM(E38:E39) -> 0 | F37: 70543.15138 | G37: 0 | H37: 0 | I37: 0 | J37: 0 | K37: 0 | L37: 0 | AC37: 70543.15138 | AD37: 0
D38: Ganacias de petroleo | F38: 70543.15138 | AC38: 70543.15138 | AD38: 0
D39: Arrancel | AC39: 0 | AD39: 0
AC40: 0 | AD40: 0
AC41: 0 | AD41: 0
D42: Ahorros | I42: 0 | J42: 0 | K42: 0 | Q42: =+sh_1*Q48 -> 381.0336585 | R42: =+sh_2*R48 -> 921.0980212 | S42: =+sh_3*S48 -> 1900.470367 | T42: =+sh_4*T48 -> 3205.774787 | U42: =+sh_5*U48 -> 21778.18063 | V42: =+V48-V15-V27 -> -5820.36675 | W42: =+W48-W15-W27 -> 53165.49029 | AA42: =+AA48-AA15-AA27 -> -32494.23474 | AB42: =+AB48-AB15-AB27 -> -22515.7449 | AC42: 20521.70135 | AD42: 0
I43: =+I45+I46-I44 -> 0 | J43: =+J45+J46-J44 -> 0 | K43: =+K45+K46-K44 -> 0 | L43: =+L45+L46-L44 -> 0 | AC43: 0 | AD43: 0
D44: Externo | I44: =+I45+I46 -> 10518.02495 | J44: 0 | K44: =+K45+K46 -> 24915.86435 | L44: =+L45+L46 -> 22603.76173 | AC44: 58037.65103 | AD44: 0
D45: Resto del mundo | I45: =SAM_aida!H47/SAM_aida!H$46*SAM!I$44 -> 171.4503086 | J45: =SAM_aida!I47/SAM_aida!I$46*SAM!J$44 -> 0 | K45: =SAM_aida!J47/SAM_aida!J$46*SAM!K$44 -> 58.78173504 | L45: =SAM_aida!K47/SAM_aida!K$46*SAM!L$44 -> 0 | AC45: 230.2320436 | AD45: 0
D46: Resto del Mexico | I46: =+I48-I45-I34-I8 -> 10346.57464 | J46: 0 | K46: 24857.08262 | L46: 22603.76173 | AC46: 57807.41899 | AD46: 0
D48: Total | E48: =+E34+E22+E15 -> 6784.059096 | F48: =+F34+F22+F15+F37 -> 77980.04402 | G48: =+G34+G22+G15 -> 50355.64547 | H48: =+H34+H22+H15 -> 102608.2769 | I48: 19183.4439 | J48: =+J10+J13 -> 78024.6103 | K48: =+K44+K34+K8 -> 92935.87942 | L48: =+L44+L34+L8 -> 125603.3318 | M48: =+AC23 -> 22377.98606 | N48: =+AC24 -> 13543.75934 | O48: =+AC25 -> 58717.4508 | P48: =+P47+AC13 -> 17922 | Q48: =+Q42+Q15 -> 4332.246674 | R48: =+R42+R15 -> 6664.399766 | S48: =+S42+S15 -> 10803.90963 | T48: =+T42+T15 -> 17009.42475 | U48: =+U42+U15 -> 59359.00607 | V48: =+AC34 -> 5199.845125 | W48: =+AC37 -> 70543.15138 | X48: =+X15+X44 -> 8714.036044 | Y48: =+Y44+Y15 -> 7589.843387 | Z48: =+Z44+Z15 -> 4217.629213 | AA48: =+AC45 -> 230.2320436 | AB48: =+AC46 -> 57807.41899 | AC48: =IF(ROUND(AC42,9)-ROUND((X48+Y48+Z48),9)=0,"",AC42-(X48+Y48+Z48)) -> 0.1927097523
D49: error | E49: =+E48-E42-E34-E22-E15 -> 0 | F49: =+F48-F42-F34-F22-F15-F38 -> 0 | G49: =+G48-G42-G34-G22-G15 -> 0 | H49: =+H48-H42-H34-H22-H15 -> 0 | I49: =+I48-I44-I37-I34-I8-I42 -> -1.818989404e-12 | J49: =+J48-J44-J37-J34-J8-J42 -> 0 | K49: =+K48-K44-K37-K34-K8-K42 -> 0 | L49: =+L48-L44-L37-L34-L8-L42 -> 0 | M49: =+M48-M42-M27 -> 0 | N49: =+N48-N42-N27 -> 0 | O49: =+O48-O42-O27 -> 0 | Q49: =+Q48-SUM(Q16:Q42) -> 0 | R49: =+R48-SUM(R16:R42) -> 0 | S49: =+S48-SUM(S16:S42) -> 0 | T49: =+T48-SUM(T16:T42) -> 0 | U49: =+U48-U42-U15 -> 0 | V49: =+V48-V42-V27-V15 -> 0 | W49: =W48-W42-W27-W15 -> 0 | X49: 0 | Y49: 0 | Z49: 0 | AA49: 0 | AB49: 0
X50: =SUM(X48:Z48) -> 20521.50864
D52: Calibration
M53: factores a hogares | Q53: Sistema lineal de gasto | Z53: 0.4
E54: =+E4 -> AgPec | F54: =+F4 -> Pet | G54: =+G4 -> Industria | H54: =+H4 -> Servicios | K54: =+K44/(SAM_aida!J46*10) -> 0.9166027606 | L54: =+L44/(SAM_aida!K46*10) -> 2.339667504 | M54: phi | P54: th | Q54: 0 | R54: 0 | S54: 0 | T54: 0 | U54: 0 | V54: 0.0002293
D55: Valor agregado(%) | E55: =(E22+E34+E37+I34)/$E$118*100 -> 2.479722036 | F55: =(F22+F34+F37+J34)/$E$118*100 -> 43.79746687 | G55: =(G22+G34+G37+K34)/$E$118*100 -> 13.35587093 | H55: =(H22+H34+H37+L34)/$E$118*100 -> 40.36694017 | M55: mo_calif | N55: mo_no calif | O55: capital | P55: sh | Q55: =0.07*V55 -> 0.0879529 | R55: =0.11*V55 -> 0.1382117 | S55: =0.14*V55 -> 0.1759058 | T55: =0.15*V55 -> 0.1884705 | U55: =0.292*V55 -> 0.36688924 | V55: 1.25647
L56: 0.2 | M56: =+M28/phi_sm -> 0.02773399472 | N56: 0.2596952885 | O56: 0 | P56: mpc | Q56: =+Q16/Expnd_sm -> 0.08722344054 | R56: 0.08222839097 | S56: 0.05286666091 | T56: 0.0396392327 | U56: 0.01575038535 | V56: 1.1143407
F57: 0.7 | G57: 0.75 | H57: 0.6 | L57: 0.4 | M57: 0.1125230567 | N57: 0.2286424271 | O57: 0.01142113653 | Q57: 0 | R57: 0 | S57: 0 | T57: 0 | U57: 0 | V57: =+SAM_aida!Z28*PIB_scale -> 2388.141583
D58: Margen | E58: =+I13/I48 -> 0.09807205967 | F58: =+J13/J48 -> 0.0005711822794 | G58: =+K13/K48 -> 0.1721194653 | H58: =+L13/L48 -> 0 | L58: 0.6 | M58: 0.1919961838 | N58: 0.177468312 | O58: 0.05846307487 | Q58: 0.4860231291 | R58: 0.5708280288 | S58: 0.5081545058 | T58: 0.4384540531 | U58: 0.2787124625 | V58: =+V57-AB27 -> 687.5788593
D59: iva | E59: =+E34/(E22+E37) -> 0.004868129401 | F59: =+F34/(F22+F37) -> 0.02047738556 | G59: =+G34/(G22+G37) -> 0.03078978007 | H59: =+H34/(H22+H37) -> 0.01462462657 | L59: 0.8 | M59: 0.2108776871 | N59: 0.1578225126 | O59: 0.1605312898 | Q59: 0.4267534304 | R59: 0.3469435802 | S59: 0.4389788333 | T59: 0.5219067142 | U59: 0.7055371522 | V59: =+modelo!GX9 -> 0.4905766996
D60: impuesto | E60: =+I34/I48 -> 0 | F60: =+J34/J48 -> 0 | G60: =+K34/K48 -> 0.01337810095 | H60: =+L34/L48 -> 0.006498898415 | L60: 0.9 | M60: 0.4568690777 | N60: 0.1763714597 | O60: 0.7695844988 | V60: =+[4]Sheet1!$B$7 -> 0.4908537946
D61: tau | E61: =+(E25+E38)/(E48-E25-E34) -> 0.542390538 | F61: =+(F25+F38)/(F48-F25-F38-F34) -> 11.87700723 | G61: =+(G25+G38)/(G48-G25-G34) -> 0.3260189042 | H61: =+(H25+H38)/(H48-H25-H34) -> 0.7670776884 | L61: extranjero | M61: 0 | N61: 0 | O61: 0 | Q61: =+Q45/Q15 -> 0 | R61: =+R45/R15 -> 0 | S61: =+S45/S15 -> 0 | T61: =+T45/T15 -> 0 | U61: =+U45/U15 -> 0 | V61: =+V59-V60 -> -0.0002770950889
D62: vap | E62: =+(E22+E37)/E48 -> 0.619766387 | F62: =+(F22+F37)/F48 -> 0.937747346 | G62: =+(G22+G37)/G48 -> 0.4144541924 | H62: =+(H22+H37)/H48 -> 0.6527945902 | L62: total | M62: =SUM(M56:M60) -> 1 | N62: =SUM(N56:N60) -> 1 | O62: =SUM(O56:O60) -> 1 | Q62: =SUM(Q56:Q59)-1 -> 0 | R62: =SUM(R56:R59)-1 -> 0 | S62: =SUM(S56:S59)-1 -> 0 | T62: =SUM(T56:T59)-1 -> 0 | U62: =SUM(U56:U59)-1 -> 0
P63: Frisch | Q63: 3 | R63: 2.5 | S63: 2 | T63: 1.5 | U63: 1.2
D64: A | E64: =+E16/E$48 -> 0.05336737264 | F64: 0 | G64: 0.2654315437 | H64: 0.00547676503 | W64: Inversión publica como porcentaje del PIB
E65: 0 | F65: 0 | G65: 0 | H65: 0 | W65: total | X65: Privado | Y65: gob-local | Z65: gob-Fed | AA65: gob Total
E66: 0.3026133309 | F66: 0.004597421894 | G66: 0.2207435684 | H66: 0.1836187832 | P66: theta | Q66: =Q16*(1-1/f) -> 229.758929 | R66: 283.3574768 | S66: 235.3475523 | T66: 182.3886976 | U66: 98.65208044 | W66: =+SAM_aida!V16/SAM_aida!C57 -> 0.1204441117 | X66: =+W66-AA66 -> 0.05114411173 | Y66: =AA67*AA66 -> 0.04454604 | Z66: =+AA66-Y66 -> 0.02475396 | AA66: 0.0693
E67: 0.02123580643 | F67: 0.03845261818 | G67: 0.08660974212 | H67: 0.1485629844 | Q67: 0 | R67: 0 | S67: 0 | T67: 0 | U67: 0 | W67: =+SAM_aida!V16*PIB_scale -> 20521.50864 | X67: =+W67-Y67-Z67 -> 8714.036044 | Y67: =+Y66*F112 -> 7589.843387 | Z67: =+Z66*F112 -> 4217.629213 | AA67: 0.6428 | AB67: =+W67-SUM(X67:Z67) -> 0
Q68: 1280.253942 | R68: 1967.062569 | S68: 2262.16139 | T68: 2017.422091 | U68: 1745.7074
D69: B | Q69: 1124.129139 | R69: 1195.561002 | S69: 1954.210691 | T69: 2401.405865 | U69: 4419.111427
D70: =+D16 -> AgPec | E70: =+I9/(I$48-I$35-I$13) -> 0.3920949104 | F70: 0 | G70: 0 | H70: 0 | Q70: 0 | R70: 0 | S70: 0 | T70: 0 | U70: 0
D71: =+D17 -> Pet | E71: 0 | F71: 1 | G71: 0 | H71: 0
D72: =+D18 -> Industria | E72: 0 | F72: 0 | G72: 0.6626991786 | H72: 0.001535713154 | P72: mnc_g | Q72: =V45/V15 -> 0 | R72: =X45/X15 -> 0 | S72: 0 | T72: 0
D73: =+D19 -> Servicios | E73: 0 | F73: 0 | G73: 0.008146047218 | H73: 0.817325603 | P73: mm_g | Q73: =+V46/V15 -> 0 | R73: =+X46/X15 -> 0 | S73: 0 | T73: 0
D74: Resto del mundo (mc) | E74: =+I45/(I$48-I$35-I$13) -> 0.009909228742 | F74: =+J45/(J$48-J$35-J$13) -> 0 | G74: 0.0007765449533 | H74: 0 | U74: Gasto publico como porcentaje del PIB
D75: Resto del Mexico (mm) | E75: =+I46/(I$48-I$35-I$13) -> 0.5979958608 | F75: =+J46/(J$48-J$35-J$13) -> 0 | G75: 0.3283782292 | H75: 0.1811386838 | U75: total | V75: gob-local | W75: gob-Fed
E76: =SUM(E70:E75)-1 -> 0 | F76: =SUM(F70:F75)-1 -> 0 | G76: 0 | H76: 0 | U76: =(+SAM_aida!T16)/SAM_aida!C57 -> 0.1571161359 | V76: =0.5*AB71 -> 0 | W76: 0.098
U77: =+U76*F112 -> 26769.76147 | V77: =+U77-W77 -> 10072.32547 | W77: =+W76*F112 -> 16697.436 | X77: =+W77+V77-F115 -> 0
D80: β-ls | E80: =+E23/E$22 -> 0.08686227606 | F80: =+F23/(F$22+F38) -> 0.02472048185 | G80: =+G23/G$22 -> 0.3107617849 | H80: 0.2048223841
D81: β-lu | E81: =+E24/E$22 -> 0.3474491042 | F81: =+F24/(F$22+F38) -> 0.01059449222 | G81: 0.1035872616 | H81: 0.1365482561
D82: β-K | E82: =+E25/E$22 -> 0.5656886197 | F82: =1-beta_2u-beta_2s -> 0.9646850259 | G82: 0.5856509535 | H82: 0.6586293598
D85: I_or | E85: =+X16/X$48 -> 0.008651433201 | F85: =+X17/X$48 -> 0 | G85: =+X18/X$48 -> 0.1966901598 | H85: =X19/X48 -> 0.794658407 | I85: =SUM(E85:H85) -> 1
I86: economia global
D87: v-Relacion capital-prodcto | E87: =+modelo!DH9/modelo!DC9 -> 2.785679413 | F87: =+modelo!DI9/modelo!DD9 -> 1.155760524 | G87: =+modelo!DJ9/modelo!DE9 -> 2.776510735 | H87: =+modelo!DK9/modelo!DF9 -> 2.474137499 | I87: =SUM(modelo!DH9:DK9)/SUM(modelo!DC9:DF9) -> 1.971038401
D88: Ajsuste al empleo | E88: 1 | F88: 1 | G88: 2.5 | H88: 0.7
D89: YP | E89: =+E22+E34 -> 4225 | F89: =+F22+F34+F38 -> 74623 | G89: =+G22+G34+K34 -> 22756 | H89: =+H22+H34+L34 -> 68778
D90: u0 | E90: 0.85 | F90: 1 | G90: 0.9 | H90: 0.95
D91: Q | E91: =+E89/E90 -> 4970.588235 | F91: =+F89/F90 -> 74623 | G91: =+G89/G90 -> 25284.44444 | H91: =+H89/H90 -> 72397.89474
D92: Ls | E92: =beta_1s*E91 -> 431.7566075 | F92: =beta_2s*F91 -> 1844.716517 | G92: =beta_3s*G91 -> 7857.439086 | H92: =beta_4s*H91 -> 14828.70941
D93: Lu | E93: =+beta_1u*E91 -> 1727.02643 | F93: =+beta_2u*F91 -> 790.5927931 | G93: =+beta_3u*G91 -> 2619.146362 | H93: =beta_4u*H91 -> 9885.80627
D94: K | E94: =(E91/(E92^beta_1s*E93^beta_1u))^(1/(1-beta_1s-beta_1u)) -> 13846.46532 | F94: =(F91/(F92^beta_2s*F93^beta_2u))^(1/(1-beta_2s-beta_2u)) -> 86246.31759 | G94: =(G91/(G92^beta_3s*G93^beta_3u))^(1/(1-beta_3s-beta_3u)) -> 70202.53142 | H94: =(H91/(H92^beta_4s*H93^beta_4u))^(1/(1-beta_4s-beta_4u)) -> 179122.3462 | I94: =SUM(E94:H94) -> 349417.6605
D95: KL | E95: =+E94/(1+E103) -> 13213.73604 | F95: =+F94/(1+F103) -> 84646.32125 | G95: =+G94/(1+G103) -> 67415.88993 | H95: =+H94/(1+H103) -> 172197.8927 | I95: =SUM(E95:H95) -> 337473.8399
D96: Ig | F96: =+Z67 -> 4217.629213 | H96: =+Y67 -> 7589.843387 | I96: =SUM(E96:H96) -> 11807.4726
D97: I_d | E97: =I97*E94/(E94+G94+H94) -> 857.8103472 | F97: 0 | G97: =I97*G94/(E94+G94+H94) -> 4349.157455 | H97: =I97*H94/(E94+G94+H94)-H96 -> 3507.068242 | I97: =+E114-F96 -> 16303.87943
D99: v=K/Q | E99: =+E94/E91 -> 2.785679413 | F99: =+F94/F91 -> 1.155760524 | G99: =+G94/G91 -> 2.776510735 | H99: =+H94/H91 -> 2.474137499 | I99: =+SUM(E94:H94)/SUM(E91:H91) -> 1.971038401
D100: s=I/Y | E100: =+E97/E89 -> 0.2030320348 | F100: =+F96/F89 -> 0.05651915914 | G100: =+G97/G89 -> 0.1911213506 | H100: =+(H97+H96)/H89 -> 0.1613439127 | I100: =+E114/PIB -> 0.1204441117
D101: s/v | E101: =+E100/E99 -> 0.07288420696 | F101: =+F100/F99 -> 0.0489021367 | G101: =+G100/G99 -> 0.06883508435 | H101: =+H100/H99 -> 0.06521218518 | I101: =+I100/I99 -> 0.06110693311
D102: dep | E102: 0.025 | F102: 0.03 | G102: 0.0275 | H102: 0.025 | I102: =+(dep_1*E95+dep_2*F95+dep_3*G95+dep_4*H95)/I95 -> 0.02675353246
D103: Δ K/K = s/v-dep | E103: =+E101-dep_1 -> 0.04788420696 | F103: =+F101-dep_2 -> 0.0189021367 | G103: =+G101-dep_3 -> 0.04133508435 | H103: =+H101-dep_4 -> 0.04021218518 | I103: =+I101-I102 -> 0.03435340065
D104: alpha | E104: 0.05 | F104: 0 | G104: =0.05 -> 0.05 | H104: 0.02
D105: Id_0 | E105: =+E97/E95-alpha_1*E90 -> 0.022418078 | F105: =+F97/F95-alpha_2*F90 -> 0 | G105: =+G97/G95-alpha_3*G90 -> 0.01951234953 | H105: =+H97/H95-alpha_4*H90 -> 0.001366499193
D107: error | E107: =(E105+A_1*E90)*E95-E97 -> 0 | F107: =(F105+a_2*F90)*F95-F97 -> 0 | G107: =(G105+A_3*G90)*G95-G97 -> 0 | H107: =(H105+a_4*H90)*H95-H97 -> 0
D109: r | E109: =E25/E95/E90 -> 0.211763219 | F109: =F37/F95/F90 -> 0.8333870904 | G109: =G25/G95/G90 -> 0.20144606 | H109: =H25/H95/H90 -> 0.2696799073
D110: Concordancia con INEGI
D111: PIB_scale | E111: =+INEGI!C4/SAM_aida!C57 -> 12.52843562 | F111: INEGI | G111: porcentaje | H111: error
D112: PIB | E112: =SUM(E113:E116)-E117 -> 170382 | F112: =+PIB_scale*SAM_aida!C57 -> 170382 | G112: 100 | H112: =E112-F112 -> 0
D113: C | E113: =SUM(Expnd_sm) -> 69982.42944 | F113: =+PIB_scale*SAM_aida!C58 -> 69982.42944 | G113: =+E113/E$112*100 -> 41.07383963 | H113: =E113-F113 -> 0
D114: I | E114: =SUM(X48:Z48) -> 20521.50864 | F114: =+PIB_scale*SAM_aida!C59 -> 20521.50864 | G114: =+E114/E$112*100 -> 12.04441117 | H114: 0
D115: G | E115: =+V15+W15 -> 26769.76147 | F115: =+PIB_scale*SAM_aida!C60 -> 26769.76147 | G115: =+E115/E$112*100 -> 15.71161359 | H115: 0
D116: E | E116: =+SUM(AA15:AB15) -> 111145.9515 | F116: =+PIB_scale*SAM_aida!C61 -> 111145.9515 | G116: =+E116/E$112*100 -> 65.2333882 | H116: =E116-F116 -> 0
D117: -M | E117: =+AC44 -> 58037.65103 | F117: =+PIB_scale*SAM_aida!C62 -> 58037.65103 | G117: =+E117/E$112*100 -> 34.06325259 | H117: =E117-F117 -> 0
D118: Valor agregado | E118: =+E119+E120 -> 170382
D119: factores de produccion | E119: =SUM(E22:H22) -> 94639.1962
D120: gob | E120: =SUM(E34:H34)+SUM(E37:H37)+SUM(I34:L34) -> 75742.8038
D121: error | E121: =+E118-E112 -> 0
D122: Concordancia con INEGI | F122: INEGI | G122: porcentaje
D123: AgPec | E123: =+E22+E34 -> 4225 | F123: =+INEGI!C27 -> 4225 | G123: =+E123/E$112*100 -> 2.479722036 | H123: =+F123-E123 -> 0
D124: Pet | E124: =+F22+F34+F38 -> 74623 | F124: =+INEGI!C28 -> 74623 | G124: =+E124/E$112*100 -> 43.79746687 | H124: =+F124-E124 -> 0
D125: Industria | E125: =+G22+G34+K34 -> 22756 | F125: =+INEGI!C29 -> 22756 | G125: =+E125/E$112*100 -> 13.35587093 | H125: =+F125-E125 -> 0
D126: Servicios | E126: =+H22+H34+L34 -> 68778 | F126: =+INEGI!C30 -> 68778 | G126: =+E126/E$112*100 -> 40.36694017 | H126: =+F126-E126 -> 0
D127: error | E127: =+SUM(E123:E126)-PIB -> 0 | F127: =+SUM(F123:F126)-F112 -> 0

Sheet modelo
A1: =IF(ABS(ROUND(SUM(AI_error),6))>0,"AI err","") -> AI err | C1: pib en componentes | I1: costos per unidad | M1: valor agregado por unidad | Q1: precios | U1: ingreso de produccion | Y1: actividades | AF1: demanda de actividades (calculo intermedio) | AJ1: valor bruto de la producción | AN1: demanda final | AR1: ingreso de factores | AZ1: ingresos de HH | BE1: consumo de agrpec | BL1: consumo de petróleo no refinado | BR1: consumo de manufacturera | BW1: consumo de servicios | CC1: inversión por origen | CH1: inversión por destino | CP1: demanda de mano de obra calificada | CT1: demanda de mano de obra no calificada | CX1: utilización de capacidad | DC1: capacidad | DH1: capital | DL1: capital lagged | DX1: parámetros exógenos-> | EA1: tasa de crecimiento de capital exógeno | EI1: coef m. d Obra calificada | EM1: coef m. d Obra no calificada | EQ1: salarios | ES1: tipo de cambio | ET1: p en el resto de Mexicano. | EU1: cambio tecnológico | EY1: transferencias de exterior | FD1: transferencias del resto de México | GB1: gasto de gob | GG1: exportaciones al resto del mundo | GK1: exportaciones al resto de México | GO1: población | GR1: arancel_1 | GS1: arancel_2 | GT1: arancel_3 | GU1: arancel_4 | HE1: Ahorro y inversión | HH1: Ah HH | HI1: Ah Gob | HK1: Ah Externos | HL1: Ah ex Mexicano | HU1: Ingreso del gob
A3: =IF(SUM(B3:IH3)>0.000001,"Error de MCS","No error de MCS") -> Error de MCS | J3: =IF(J9=(SAM!F23+SAM!F24+SAM!F15)/SAM!F48,"",modelo!J9-(SAM!F23+SAM!F24+SAM!F15)/SAM!F48) ->  | K3: =IF(K9=(SAM!G23+SAM!G24+SAM!G15)/SAM!G48,"",modelo!K9-(SAM!G23+SAM!G24+SAM!G15)/SAM!G48) ->  | L3: =IF(L9=(SAM!H23+SAM!H24+SAM!H15)/SAM!H48,"",modelo!L9-(SAM!H23+SAM!H24+SAM!H15)/SAM!H48) ->  | M3: =IF(M9=SAM!E62,"",modelo!M9-SAM!E62) ->  | N3: =IF(N9=SAM!F62,"",modelo!N9-SAM!F62) ->  | O3: =IF(O9=SAM!G62,"",modelo!O9-SAM!G62) -> -2.220446049e-16 | P3: =IF(P9=SAM!H62,"",modelo!P9-SAM!H62) ->  | U3: =IF(U9=SAM!E89,"",modelo!U9-SAM!E89) -> -2.998813125e-05 | V3: =IF(V9=SAM!F89,"",modelo!V9-SAM!F89) -> -0.01030502449 | W3: =IF(W9=SAM!G89,"",modelo!W9-SAM!G89) -> -0.0001621805968 | X3: =IF(X9=SAM!H89,"",modelo!X9-SAM!H89) -> -0.0006662861269 | Y3: =IF(Y9=SAM!E48,"",modelo!Y9-SAM!E48) -> -4.815177363e-05 | Z3: =IF(Z9=SAM!F48,"",modelo!Z9-SAM!F48) -> -0.01076861375 | AA3: =IF(AA9=SAM!G48,"",modelo!AA9-SAM!G48) -> -0.0003589085973 | AB3: =IF(AB9=SAM!H48,"",modelo!AB9-SAM!H48) -> -0.0009939976007 | AC3: =IF(AC9=SAM!AC45,"",modelo!AC9-SAM!IAC45) -> 230.232042 | AD3: =IF(AD9=SAM!AC46,"",modelo!AD9-SAM!AC46) -> -0.0004696821343 | AJ3: =IF(AJ9=SAM!I48,"",modelo!AJ9-SAM!I48) -> -0.0001361599025 | AK3: =IF(AK9=SAM!J48,"",modelo!AK9-SAM!J48) -> -0.0107747681 | AL3: =IF(AL9=SAM!K48,"",modelo!AL9-SAM!K48) -> -0.0006614838057 | AM3: =IF(AM9=SAM!L48,"",modelo!AM9-SAM!L48) -> -0.001218709047 | AN3: =IF(SUM(SAM!Q16:AB16)-modelo!AN9=0,"",SUM(SAM!Q16:AB16)-modelo!AN9) -> 3.288061453e-05 | AO3: =IF(SUM(SAM!Q17:AB17)-modelo!AO9=0,"",SUM(SAM!Q17:AB17)-modelo!AO9) -> 0.0107747681 | AP3: =IF(SUM(SAM!Q18:AB18)-modelo!AP9=0,"",SUM(SAM!Q18:AB18)-modelo!AP9) -> 0.0003356611851 | AQ3: =IF(SUM(SAM!P19:AB19)-modelo!AQ9=0,"",SUM(SAM!P19:AB19)-modelo!AQ9) -> 0.0006248488789 | AR3: =IF(AR9=SAM!O27," ",AR9-SAM!O27) -> -0.0005313669972 | AT3: =IF(AT9=SAM!M27," ",AT9-SAM!M27) -> -0.0004313561076 | AU3: =IF(AU9=SAM!N27," ",AU9-SAM!N27) -> -0.0002213662319 | AV3: =IF(AV9=SAM!HE25," ",AV9-SAM!E25) -> -1.688176189e-05 | AW3: =IF(AW9=SAM!F38," ",AW9-SAM!F38) -> -0.009741619928 | AX3: =IF(AX9=SAM!HI25," ",AX9-SAM!G25) -> -8.711627015e-05 | AY3: =IF(AY9=SAM!HJ25," ",AY9-SAM!H25) -> -0.0004273689701 | AZ3: =IF(AZ9=SAM!AC28," ",AZ9-SAM!AC28) -> -6.945099631e-05 | BA3: =IF(BA9=SAM!AC29," ",BA9-SAM!AC29) -> -0.0001052200332 | BB3: =IF(BB9=SAM!AC30," ",BB9-SAM!AC30) -> -0.0001531695671 | BC3: =IF(BC9=SAM!AC31," ",BC9-SAM!AC31) -> -0.0002112009824 | BD3: =IF(BD9=SAM!AC32," ",BD9-SAM!AC32) -> -0.0006450477595 | BF3: =IF(BF9=SAM!Q16," ",BF9-SAM!Q16) -> -5.524957544e-06 | BG3: =IF(BG9=SAM!R16," ",BG9-SAM!R16) -> -7.456256014e-06 | BH3: =IF(BH9=SAM!S16," ",BH9-SAM!S16) -> -6.673154928e-06 | BI3: =IF(BI9=SAM!T16," ",BI9-SAM!T16) -> -6.793998978e-06 | BJ3: =IF(BJ9=SAM!U16," ",BJ9-SAM!U16) -> -6.432247233e-06 | BL3: =IF(BL9=SAM!Q17," ",BL9-SAM!Q17) ->  | BM3: =IF(BM9=SAM!R17," ",BM9-SAM!R17) ->  | BN3: =IF(BN9=SAM!S17," ",BN9-SAM!S17) ->  | BO3: =IF(BO9=SAM!T17," ",BO9-SAM!T17) ->  | BP3: =IF(BP9=SAM!U17," ",BP9-SAM!U17) ->  | BR3: =IF(BR9=SAM!Q18," ",BR9-SAM!Q18) -> -3.078595796e-05 | BS3: =IF(BS9=SAM!R18," ",BS9-SAM!R18) -> -5.176119657e-05 | BT3: =IF(BT9=SAM!S18," ",BT9-SAM!S18) -> -6.414238487e-05 | BU3: =IF(BU9=SAM!T18," ",BU9-SAM!T18) -> -7.514919434e-05 | BV3: =IF(BV9=SAM!U18," ",BV9-SAM!U18) -> -0.0001138224525 | BX3: =IF(BX9=SAM!Q19," ",BX9-SAM!Q19) -> -2.703166228e-05 | BY3: =IF(BY9=SAM!R19," ",BY9-SAM!R19) -> -3.145993878e-05 | BZ3: =IF(BZ9=SAM!S19," ",BZ9-SAM!S19) -> -5.541060682e-05 | CA3: =IF(CA9=SAM!T19," ",CA9-SAM!T19) -> -8.945263198e-05 | CB3: =IF(CB9=SAM!U19," ",CB9-SAM!U19) -> -0.0002881319597 | CC3: =IF(CC9=SUM(SAM!X16:Z16)," ",CC9-SUM(SAM!X16:Z16)) ->  | CD3: =IF(CD9=SUM(SAM!X17:Z17)," ",CD9-SUM(SAM!X17:Z17)) ->  | CE3: =IF(CE9=SUM(SAM!X18:Z18)," ",CE9-SUM(SAM!X18:Z18)) ->  | CF3: =IF(CF9=SUM(SAM!X19:Z19)," ",CF9-SUM(SAM!X19:Z19)) ->  | CG3: =IF(CG9=SUM(SAM!X15:Z15)," ",CG9-SUM(SAM!X15:Z15)) ->  | FS3: =IF(FS9=SUM(SAM!V28:AB28),"",FS9=SUM(SAM!V28:AB28)) ->  | FT3: =IF(FT9-SUM(SAM!V29:AB29)=0,"",FT9-SUM(SAM!V29:AB29)) ->  | FU3: =IF(FU9-SUM(SAM!V30:AB30)=0,"",FU9-SUM(SAM!V30:AB30)) ->  | FV3: =IF(FV9-SUM(SAM!V31:AB31)=0,"",FV9-SUM(SAM!V31:AB31)) ->  | FW3: =IF(FW9-SUM(SAM!V32:AB32)=0,"",FW9-SUM(SAM!V32:AB32)) ->  | FY3: inversión del gobierno por destino | GK3: =IF(ROUND(GK9-SAM!AB16,6)=0,"",GK9-SAM!AB16) ->  | GL3: =IF(ROUND(GL9-SAM!AB17,6)=0,"",GL9-SAM!AB1725) ->  | GM3: =IF(ROUND(GM9-SAM!AB18,6)=0,"",GM9-SAM!AB18) ->  | HF3: =IF(ROUND(HF9-SUM(SAM!X48:Z48),6)=0," ",HF9-SUM(SAM!X48:Z48)) ->  | HG3: =IF(ROUND(HG9-SAM!AC42,6)=0," ",HG9-SAM!AC42) -> -0.1927097523 | HH3: =IF(HH9-SUM(SAM!Q42:U42)," ",HH9-SUM(SAM!Q42:U42)) ->  | HI3: =IF(ROUND(HI9-SAM!V42,6)=0," ",HI9-SAM!V42) -> -0.1929475224 | HJ3: =IF(ROUND(HJ9-SAM!W42,6)=0," ",HJ9-SAM!W42) -> -0.009741619921 | HK3: =IF(ROUND(HK9-SAM!$AA42,6)=0,"",HK9-SAM!$AA42) -> 0.0107731328 | HL3: =IF(ROUND(HL9-SAM!AB42,6)=0,"",HL9-SAM!AB42) -> -0.0004696821488 | HM3: =IF(ROUND(HM9-SAM!AC34,6)=0,"",HM9-SAM!AC34) -> -0.1929475224 | HN3: =IF(ROUND(HN9-SAM!V15-SAM!V27,6)=0,"",HN9--SAM!V15-SAM!V27) ->  | HO3: =IF(ROUND(HO9-SAM!$AC38,6)=0,"",HO9-SAM!$AC38) -> -0.009741619928 | HP3: =IF(ROUND(HP9-SAM!$W15-SAM!$W27,6)=0,"",HP9-SAM!$W15-SAM!$W27) ->  | HQ3: =IF(ROUND(HQ9-SAM!AA15,6)=0,"",HQ9-SAM!AA15) -> -0.01077476811 | HR3: =IF(ROUND(HR9-SAM!AB15,6)=0,"",HR9-SAM!AB15) ->  | HS3: =IF(ROUND(HS9-SAM!$AC45,6)=0,"",HS9-SAM!$AC45) -> -1.635304045e-06 | HT3: =IF(ROUND(HT9-SAM!$AC46,6)=0,"",HT9-SAM!$AC46) -> -0.0004696821343 | HY3: =IF(ROUND(HY9-SAM!E35,6)=0,"",HY9-SAM!E35) ->  | HZ3: =IF(ROUND(HZ9-SAM!F35,6)=0,"",HZ9-SAM!F35) -> -0.0002067855328 | IA3: =IF(ROUND(IA9-SAM!G35,6)=0,"",IA9-SAM!G35) -> -4.580016252e-06 | IB3: =IF(ROUND(IB9-SAM!H35,6)=0,"",IB9-SAM!H35) -> -9.489573131e-06
A5: opciones | DZ5: gini | GH5: 0.4157041126 | GX5: 0.002257737951 | GY5: 0.004971749553 | HD5: base | IG5: =SUM(IG9:IG34) -> -9.6988515e-09
C6: =+IF(C10/C9-1=0,"",C10/C9-1) -> 0.04796447713 | D6: 0.06954802416 | E6: 0.09846679002 | F6: 0.09 | G6: 0.0251492208 | H6: 0.06754332763 | I6: -0.0002954042007 | J6: 0.001776989458 | K6: 0.004494500048 | L6: 0.003107115552 | M6: -0.002770803519 | N6: -0.0001465060417 | O6: 0.007834878454 | P6: 0.002734299367 | Q6: -0.0003028727353 | S6: 0.004537126462 | T6: 0.003103556322 | Y6: 0.06261516241 | Z6: 0.01816516035 | AA6: 0.06072680928 | AB6: 0.07590236678 | AC6: 0.06037305133 | AD6: 0.06757188499 | AE6: 0.06503389039 | AF6: 0.06229332525 | AG6: 0.01816516035 | AH6: 0.06548679862 | AI6: 0.07932464932 | AJ6: 0.06261516241 | AK6: 0.01816516035 | AL6: 0.06067438481 | AM6: =+IF(AM10/AM9-1=0,"",AM10/AM9-1) -> 0.07598526844 | AN6: 0.06624711069 | AO6: 0.01816516035 | AP6: 0.05611364386 | AQ6: 0.07834889321 | AR6: 0.07569655274 | AT6: 0.07956918616 | AU6: 0.05863059023 | AV6: 0.06230126143 | AW6: 0.01801599301 | AX6: 0.06549424598 | AY6: 0.07924531976 | AZ6: 0.06169165929 | BA6: 0.06833710236 | BB6: 0.07246497318 | BC6: 0.07395554149 | BD6: 0.07526469185 | BE6: 0.06978316795 | BF6: 0.05941172067 | BG6: 0.06623407833 | BH6: 0.07076243385 | BI6: 0.07294802339 | BJ6: 0.07494924156 | BQ6: 0.06812273574 | BR6: 0.05759972289 | BS6: 0.06405997 | BT6: =+IF(BT10/BT9-1=0,"",BT10/BT9-1) -> 0.06807264805 | BU6: 0.06942460841 | BV6: 0.07059308573 | BW6: 0.07043996761 | BX6: 0.05813459997 | BY6: 0.06470173719 | BZ6: 0.06886663622 | CA6: 0.07046467256 | CB6: 0.07187896365 | CC6: 0.09846679002 | CE6: =+IF(CE10/CE9-1=0,"",CE10/CE9-1) -> 0.09846679002 | CF6: 0.09846679002 | CG6: 0.09846679002 | CH6: =+IF(CH10/CH9-1=0,"",CH10/CH9-1) -> 0.1044593449 | CI6: =+IF(CI10/CI9-1=0,"",CI10/CI9-1) -> 0.0775 | CJ6: =+IF(CJ10/CJ9-1=0,"",CJ10/CJ9-1) -> 0.1265306532 | CK6: =+IF(CK10/CK9-1=0,"",CK10/CK9-1) -> 0.09497352178 | CX6: 0.07719384707 | CY6: -2.028815742e-07 | CZ6: 0.09560850273 | DA6: 0.04450174749 | DC6: -0.01626725081 | DD6: 0.01801619954 | DE6: -0.02466935659 | DF6: 0.03284678804 | DH6: 0.03695157592 | DI6: 0.0189021367 | DJ6: 0.03445157592 | DK6: 0.03695157592 | DL6: 0.04788420696 | DM6: 0.0189021367 | DN6: 0.04133508435 | DO6: 0.04021218518 | DZ6: =+GX7 -> 0.002115351525 | EA6: =+IF(EA10/EA9-1=0,"",EA10/EA9-1) -> 0.01 | EC6: =+IF(EC10/EC9-1=0,"",EC10/EC9-1) -> 0.05 | ED6: =+IF(ED10/ED9-1=0,"",ED10/ED9-1) -> 0.01 | EI6: 0.005 | EJ6: -0.005120901534 | EK6: 0.015 | EL6: 0.005 | EM6: -0.01 | EN6: -0.0001465060418 | EO6: -0.01 | EP6: -0.01 | EQ6: 0.005 | ER6: =+IF(ER10/ER9-1=0,"",ER10/ER9-1) ->  | ES6: 0.002579861998 | ET6: 0.002579861998 | EU6: 0.01 | EW6: 0.01 | EX6: 0.01 | EY6: 0.06 | EZ6: 0.06 | FA6: 0.06 | FB6: 0.06 | FC6: 0.06 | FD6: 0.06 | FE6: 0.06 | FF6: 0.06 | FG6: 0.06 | FH6: 0.06 | FS6: =+IF(FS10/FS9-1=0,"",FS10/FS9-1) -> 0.06 | FT6: =+IF(FT10/FT9-1=0,"",FT10/FT9-1) -> 0.06 | FU6: =+IF(FU10/FU9-1=0,"",FU10/FU9-1) -> 0.06 | FV6: =+IF(FV10/FV9-1=0,"",FV10/FV9-1) -> 0.06 | GB6: =+IF(GB10/GB9-1=0,"",GB10/GB9-1) -> 0.09 | GF6: 0.09 | GH6: =+IF(GH10/GH9-1=0,"",GH10/GH9-1) -> 0.01816535798 | GI6: 0.06 | GK6: 0.06 | GL6: =+IF(GL10/GL9-1=0,"",GL10/GL9-1) -> 0.01816501975 | GM6: =+IF(GM10/GM9-1=0,"",GM10/GM9-1) -> 0.04 | GN6: =+IF(GN10/GN9-1=0,"",GN10/GN9-1) -> 0.05 | GO6: 0.025 | GQ6: 0.025 | GX6: =+IF(GX10/GX9-1=0,"",GX10/GX9-1) -> 0.002588831477 | GY6: =+IF(GY10/GY9-1=0,"",GY10/GY9-1) -> 0.002579861998 | HF6: =+IF(HF10/HF9-1=0,"",HF10/HF9-1) -> 0.102153305 | HG6: 0.102153305 | HH6: 0.07451715839 | HI6: 0.1205190193 | HJ6: -0.006191298521 | HK6: 0.01823245287 | HL6: -0.07190784385 | HM6: 0.05692068471 | HN6: 0.09051150014 | HO6: 0.01801599301 | HP6: 0.09207614875 | HQ6: 0.01829185024 | HR6: 0.02981682419 | HS6: 0.06310866747 | HT6: 0.07032607313 | HV6: =+IF(HV10/HV9-1=0,"",HV10/HV9-1) -> 0.04770485815 | HW6: 0.07097119723 | HX6: 0.06 | HY6: 0.05967086458 | HZ6: 0.01801599301 | IA6: 0.06903747491 | IB6: 0.07884420594 | ID6: =+IF(ID10/ID9-1=0,"",ID10/ID9-1) -> 0.06954802416 | IE6: =+IF(IE10/IE9-1=0,"",IE10/IE9-1) -> 0.06577749781 | IG6: =+IF(IG10/IG9-1=0,"",IG10/IG9-1) -> 
A7: tasa de crec. | C7: =+(C34/C9)^(1/$B34)-1 -> 0.06478069663 | D7: 0.07358144558 | E7: 0.08584135973 | F7: 0.09 | G7: 0.04602468957 | H7: 0.07180932482 | I7: 0.001722226271 | J7: 0.002804699171 | K7: 0.006769186845 | L7: 0.004788275162 | M7: -0.00112415338 | N7: -0.000239878598 | O7: 0.01006802356 | P7: 0.004227118338 | Q7: 0.00171392417 | R7: 0 | S7: 0.006812957865 | T7: 0.004782953279 | U7: 0.06557055988 | V7: 0.047389254 | W7: 0.07546713535 | X7: 0.08308800314 | Y7: 0.06676977273 | Z7: 0.04764056055 | AA7: 0.06526812253 | AB7: 0.07857956954 | AC7: 0.06484003885 | AD7: 0.07183501269 | AE7: 0.07203734875 | AF7: 0.06859813523 | AG7: 0.04764056055 | AH7: 0.0724767623 | AI7: 0.08379856038 | AJ7: 0.06676977273 | AK7: 0.04764056055 | AL7: 0.06521946695 | AM7: =+(AM34/AM9)^(1/$B34)-1 -> 0.07863947815 | AN7: 0.06918347781 | AO7: 0.04764056055 | AP7: 0.06011381903 | AQ7: 0.07978931008 | AR7: 0.08107143806 | AT7: 0.08613369243 | AU7: 0.06375241772 | AV7: 0.06860699166 | AW7: 0.047389254 | AX7: 0.07247912149 | AY7: 0.0837441053 | AZ7: 0.06758370961 | BA7: 0.07508328175 | BB7: 0.07891122808 | BC7: 0.08002217973 | BD7: 0.08097472947 | BE7: 0.0751207417 | BF7: 0.06467506753 | BG7: 0.07238039328 | BH7: 0.07641344415 | BI7: 0.0777630826 | BJ7: 0.07893839406 | BQ7: =+(BQ34/BQ9)^(1/$B34)-1 -> 0.07167350931 | BR7: 0.06073815025 | BS7: 0.06805529033 | BT7: 0.0718066952 | BU7: 0.07285304747 | BV7: 0.07374200552 | BW7: 0.07466322654 | BX7: 0.0622851558 | BY7: 0.06975901742 | BZ7: 0.07362464731 | CA7: 0.07479460363 | CB7: 0.07580071065 | CC7: 0.08584135973 | CE7: =+(CE34/CE9)^(1/$B34)-1 -> 0.08584135973 | CF7: 0.08584135973 | CG7: 0.08584135973 | CH7: 0.04971867761 | CI7: 0.0775 | CJ7: 0.08115905542 | CK7: 0.09196299182 | CP7: 0.06130306337 | CQ7: 0.04139803324 | CR7: 0.06541587723 | CS7: 0.07665313433 | CT7: 0.06660957869 | CU7: 0.0466050234 | CV7: 0.07074295661 | CW7: 0.08203640001 | CX7: 0.004213188086 | CY7: -8.195301993e-09 | CZ7: 0.006295684874 | DA7: 0.002397863625 | DC7: 0.06109994623 | DD7: 0.04738926259 | DE7: 0.06873869332 | DF7: 0.0804971184 | DH7: 0.04311318396 | DI7: 0.0475542298 | DJ7: 0.05663953474 | DK7: 0.06600858376 | DL7: 0.04314374224 | DM7: 0.04558140872 | DN7: 0.0551016881 | DO7: 0.06413126931 | DP7: 0.02441010609 | DQ7: 0.001729033504 | DR7: 0.01646991336 | DS7: 0.01843084266 | DT7: -0.02246746155 | DU7: 0.001698819284 | DV7: -0.01199299477 | DW7: -0.014667131 | DX7: =IF(SUM(EI7:GN7)>0,"cambios existen","no hay cambios") -> cambios existen | DY7: 0.1 | DZ7: 0.0775 | EA7: 0.01 | EB7: 0 | EC7: 0.05 | ED7: 0.01 | EI7: 0.005 | EJ7: 0 | EK7: 0.015 | EL7: 0.005 | EM7: -0.01 | EN7: -0.01 | EO7: -0.01 | EP7: -0.01 | EQ7: 0.005 | ER7: 0 | ES7: =+(ES34/ES9)^(1/$B34)-1 -> 0.004489774064 | ET7: =+(ET34/ET9)^(1/$B34)-1 -> 0.004489774064 | EU7: 0.01 | EV7: 0 | EW7: 0.01 | EX7: 0.01 | EY7: 0.06 | EZ7: =+EY7 -> 0.06 | FA7: 0.06 | FB7: 0.06 | FC7: =+FB7 -> 0.06 | FD7: 0.06 | FE7: 0.06 | FF7: 0.06 | FG7: 0.06 | FH7: 0.06 | FI7: =+FH7 -> 0.06 | FJ7: 0.06 | FK7: 0.06 | FL7: 0.06 | FM7: 0.06 | FN7: 0.06 | FO7: 0.06 | FP7: 0.06 | FQ7: 0.06 | FR7: 0.06 | FS7: =+(FS34/FS9)^(1/$B34)-1 -> 0.06 | FT7: =+(FT34/FT9)^(1/$B34)-1 -> 0.06 | FU7: =+(FU34/FU9)^(1/$B34)-1 -> 0.06 | FV7: =+(FV34/FV9)^(1/$B34)-1 -> 0.06 | FW7: =+(FW34/FW9)^(1/$B34)-1 -> 0.06 | GB7: 0.09 | GF7: 0.09 | GG7: 0 | GH7: =+(GH34/GH9)^(1/$B34)-1 -> 0.04764056869 | GI7: 0.06 | GJ7: 0 | GK7: =+GI7 -> 0.06 | GL7: =+(GL34/GL9)^(1/$B34)-1 -> 0.04764055477 | GM7: 0.04 | GN7: 0.05 | GO7: 0.025 | GR7: 0 | GS7: 0 | GT7: 0 | GU7: 0 | GV7: 0 | GX7: =+(GX34/GX9)^(1/$B34)-1 -> 0.002115351525 | GY7: =+(GY34/GY9)^(1/$B34)-1 -> 0.004489774064 | HF7: =+(HF34/HF9)^(1/$B34)-1 -> 0.09144942699 | HG7: 0.09144942699 | HH7: 0.08039082309 | HI7: 0.106204368 | HJ7: 0.004394403748 | HK7: 0.04759383217 | HL7: -2.063651897 | HM7: 0.07166796739 | HN7: 0.09305980873 | HO7: 0.047389254 | HQ7: =+(HQ34/HQ9)^(1/$B34)-1 -> 0.04770742581 | HR7: =+(HR34/HR9)^(1/$B34)-1 -> 0.04797104273 | HS7: =+(HS34/HS9)^(1/$B34)-1 -> 0.06962093004 | HT7: =+(HT34/HT9)^(1/$B34)-1 -> 0.07664730973 | HU7: 0 | HV7: =+(HV34/HV9)^(1/$B34)-1 -> 0.06753795955 | HW7: 0.07731051065 | HX7: 0.06 | HY7: 0.06557055988 | HZ7: 0.047389254 | IA7: 0.07599326708 | IB7: 0.08313885302
B8: Tiempo | C8: PIB | D8: C | E8: I | F8: G | G8: E | H8: M | I8: Costo_1 | J8: Costo_2 | K8: Costo_3 | L8: Costo_4 | M8: VA_1 | N8: VA_2 | O8: VA_3 | P8: VA_4 | Q8: p_1 | R8: p_2 | S8: p_3 | T8: p_4 | U8: YP_1 | V8: YP_2 | W8: YP_3 | X8: YP_4 | Y8: D_1 | Z8: D_2 | AA8: D_3 | AB8: D_4 | AC8: D_mc | AD8: D_mm | AE8: Margen | AF8: Xd_1 | AG8: Xd_2 | AH8: Xd_3 | AI8: Xd_4 | AJ8: X_1 | AK8: X_2 | AL8: X_3 | AM8: X_4 | AN8: F_1 | AO8: F_2 | AP8: F_3 | AQ8: F_4 | AR8: Ganancias | AT8: calificado | AU8: no calificado | AV8: prof_1 | AW8: prof_2 | AX8: prof_3 | AY8: prof_4 | AZ8: Y_1 | BA8: Y_2 | BB8: Y_3 | BC8: Y_4 | BD8: Y_5 | BE8: C_1 | BF8: C_11 | BG8: C_12 | BH8: C_13 | BI8: C_14 | BJ8: C_15 | BK8: C_2 | BL8: C_21 | BM8: C_22 | BN8: C_23 | BO8: C_24 | BP8: C_25 | BQ8: C_3 | BR8: C_31 | BS8: C_32 | BT8: C_33 | BU8: C_34 | BV8: C_35 | BW8: C_4 | BX8: C_41 | BY8: C_42 | BZ8: C_43 | CA8: C_44 | CB8: C_45 | CC8: I_1 | CD8: I_2 | CE8: I_3 | CF8: I_4 | CG8: total-I | CH8: Id_1 | CI8: Id_2 | CJ8: Id_3 | CK8: Id_4 | CL8: IdL_1 | CM8: IdL_2 | CN8: IdL_3 | CO8: IdL_4 | CP8: Lss_1 | CQ8: Lss_2 | CR8: Lss_3 | CS8: Lss_4 | CT8: Lsu_1 | CU8: Lsu_2 | CV8: Lsu_3 | CW8: Lsu_4 | CX8: u_1 | CY8: u_2 | CZ8: u_3 | DA8: u_4 | DC8: Q_1 | DD8: Q_2 | DE8: Q_3 | DF8: Q_4 | DH8: K_1 | DI8: K_2 | DJ8: K_3 | DK8: K_4 | DL8: KL_1 | DM8: KL_2 | DN8: KL_3 | DO8: KL_4 | DP8: r_1 | DQ8: r_2 | DR8: r_3 | DS8: r_4 | DT8: w/r_1 | DU8: w/r_2 | DV8: w/r_3 | DW8: w/r_4 | DY8: Ig | DZ8: Ig_f | EA8: Id0_1 | EB8: Id0_2 | EC8: Id0_3 | ED8: Id0_4 | EI8: ls_1 | EJ8: ls_2 | EK8: ls_3 | EL8: ls_4 | EM8: lu_1 | EN8: lu_2 | EO8: lu_3 | EP8: lu_4 | EQ8: ws | ER8: wu | ES8: e | ET8: pm | EU8: tc_1 | EV8: tc_2 | EW8: tc_3 | EX8: tc_4 | EY8: Trs_1 | EZ8: Trs_2 | FA8: Trs_3 | FB8: Trs_4 | FC8: Trs_5 | FD8: Trsm_1 | FE8: Trsm_2 | FF8: Trsm_3 | FG8: Trsm_4 | FH8: Trsm_5 | FI8: Tr_1 | FJ8: Tr_2 | FK8: Tr_3 | FL8: Tr_4 | FM8: Tr_5 | FN8: Trf_1 | FO8: Trf_2 | FP8: Trf_3 | FQ8: Trf_4 | FR8: Trf_5 | FS8: TrT_1 | FT8: TrT_2 | FU8: TrT_3 | FV8: TrT_4 | FW8: TrT_5 | FY8: G_1 | FZ8: G_2 | GA8: G_3 | GB8: G_4 | GC8: GF_1 | GD8: GF_2 | GE8: GF_3 | GF8: Gf_4 | GG8: Ex_1 | GH8: Ex_2 | GI8: Ex_3 | GJ8: Ex_4 | GK8: Em_1 | GL8: Em_2 | GM8: Em_3 | GN8: Em_4 | GO8: Pop | GP8: tasa de crecimiento | GQ8: th_hat | GR8: ts_1 | GS8: ts_2 | GT8: ts_3 | GU8: ts_4 | GV8: ts_5 | GX8: Gini | GY8: Deflactor | HE8: AI error | HF8: Inversión | HG8: Ahorro | HH8: HH | HI8: Gob-L | HJ8: Gob-F | HK8: AE | HL8: AE-rm | HM8: Y-Gob-L | HN8: G_Gob-L | HO8: Y-Gob-F | HP8: G_Gob-F | HQ8: Expt | HR8: Expt-RM | HS8: Impt | HT8: Impt-RM | HU8: HH | HV8: IVA | HW8: Impuesto | HX8: Trs | HY8: IVA_1 | HZ8: IVA_2 | IA8: IVA_3 | IB8: IVA_4 | ID8: cambio | IE8: Base | IG8: exogeno inv adicional | IH8: YG-Empresas
A9: 2003 | B9: 0 | C9: =SUM(D9:H9) -> 170381.9888 | D9: =+C_1+C_2+C_3+C_4 -> 69982.42858 | E9: =+I_1+I_2+I_3+I_4 -> 20521.50864 | F9: =G_4+GF_4 -> 26769.76147 | G9: =+Ex_1+Ex_2+Ex_3+Ex_4+Em_1+Em_2+Em_3+Em_4 -> 111145.9407 | H9: =-AC9-AD9 -> -58037.65056 | I9: =p_1*a_11+p_2*a_21+p_3*a_31+p_4*a_41+ws*ls_1+wu*lu_1 -> 0.646388105 | J9: =p_1*a_12+p_2*a_22+p_3*a_32+p_4*a_42+ws*ls_2+wu*lu_2 -> 0.07616656329 | K9: =p_1*a_13+p_2*a_23+p_3*a_33+p_4*a_43+ws*ls_3+wu*lu_3 -> 0.7445135536 | L9: =p_1*a_14+p_2*a_24+p_3*a_34+p_4*a_44+ws*ls_4+wu*lu_4 -> 0.5605034399 | M9: =+ws*ls_1+wu*lu_1+tau_1*Costo_1 -> 0.619766387 | N9: =(+p_2-p_1*a_12-p_2*a_22-p_3*a_32-p_4*a_42)/(1+iva_2) -> 0.937747346 | O9: =+ws*ls_3+wu*lu_3+tau_3*Costo_3 -> 0.4144541924 | P9: =+ws*ls_4+wu*lu_4+tau_4*Costo_4 -> 0.6527945902 | Q9: =(1+tau_1)*Costo_1+iva_1*VA_1 -> 1 | R9: 1 | S9: =(1+tau_3)*Costo_3+iva_3*VA_3 -> 1 | T9: =(1+tau_4)*Costo_4+iva_4*VA_4 -> 1 | U9: =VA_1*D_1*(1+iva_1)+tX_1*X_1 -> 4224.99997 | V9: =VA_2*D_2*(1+iva_2)+tx_2*X_2 -> 74622.98969 | W9: =VA_3*D_3*(1+iva_3)+tx_3*X_3 -> 22755.99984 | X9: =VA_4*D_4*(1+iva_4)+tX_4*X_4 -> 68777.99933 | Y9: =(b_11*Xd_1+b_12*Xd_2+b_13*Xd_3+b_14*Xd_4)/p_1 -> 6784.059048 | Z9: =(b_21*Xd_1+b_22*Xd_2+b_23*Xd_3+b_24*Xd_4)/p_2 -> 77980.03325 | AA9: =(b_31*Xd_1+b_32*Xd_2+b_33*Xd_3+b_34*Xd_4)/p_3 -> 50355.64511 | AB9: =(b_41*Xd_1+b_42*Xd_2+b_43*Xd_3+b_44*Xd_4)/p_4 -> 102608.2759 | AC9: =(mc_1*Xd_1+mc_2*Xd_2+mc_3*Xd_3+mc_4*Xd_4)/e -> 230.232042 | AD9: =(mm_1*Xd_1+mm_2*Xd_2+mm_3*Xd_3+mm_4*Xd_4)/pm -> 57807.41852 | AE9: =marg_1*p_1*X_1+marg_2*p_2*X_2+marg_3*p_3*X_3+marg_4*p_4*X_4 -> 17921.99987 | AF9: =+p_1*X_1*(1-marg_1-tX_1) -> 17302.08393 | AG9: =+p_2*X_2*(1-marg_2-tx_2) -> 77980.03325 | AH9: =+p_3*X_3*(1-marg_3-tx_3) -> 75696.49944 | AI9: =+p_4*X_4*(1-marg_4-tX_4) -> 124787.0473 | AJ9: =a_11*D_1+a_12*D_2+a_13*D_3+a_14*D_4+F_1 -> 19183.44377 | AK9: =a_21*D_1+a_22*D_2+a_23*D_3+a_24*D_4+F_2 -> 78024.59952 | AL9: =a_31*D_1+a_32*D_2+a_33*D_3+a_34*D_4+F_3 -> 92935.87876 | AM9: =a_41*D_1+a_42*D_2+a_43*D_3+a_44*D_4+F_4 -> 125603.3306 | AN9: =+C_1+I_1+G_1+GF_1+Ex_1+Em_1 -> 4893.458328 | AO9: =+C_2+I_2+G_2+GF_2+Ex_2+Em_2 -> 78024.59952 | AP9: =+C_3+I_3+G_3+GF_3+Ex_3+Em_3 -> 60567.93337 | AQ9: =+C_4+I_4+G_4+GF_4+Ex_4+Em_4+margen/p_4 -> 102855.648 | AR9: =profs_1+profs_3+profs_4 -> 58717.45027 | AT9: =ws*(ls_1*D_1+ls_2*D_2+ls_3*D_3+ls_4*D_4) -> 22377.98563 | AU9: =wu*(lu_1*D_1+lu_2*D_2+lu_3*D_3+lu_4*D_4) -> 13543.75912 | AV9: =tau_1*Costo_1*D_1 -> 2378.455771 | AW9: =(VA_2-ws*ls_2-wu*lu_2)*D_2 -> 70543.14164 | AX9: =tau_3*Costo_3*D_3 -> 12222.59878 | AY9: =tau_4*Costo_4*D_4 -> 44116.39572 | AZ9: =(phi_11*YLs+phi_21*YLu)+phi_31*profs+TrT_1 -> 4332.246604 | BA9: =(phi_12*YLs+phi_22*YLu)+phi_32*profs+trT_2 -> 6664.399661 | BB9: =(phi_13*YLs+phi_23*YLu)+phi_33*profs+TrT_3 -> 10803.90948 | BC9: =(phi_14*YLs+phi_24*YLu)+phi_34*profs+TrT_4 -> 17009.42454 | BD9: =(phi_15*YLs+phi_25*YLu)+phi_35*profs+TrT_5 -> 59359.00543 | BE9: =SUM(BF9:BJ9) -> 2426.674502 | BF9: =+th_hat*theta_11+mpc_11/p_1*(Y_1*(1-th_1)*(1-sh_1)-p_1*th_hat*theta_11-p_2*th_hat*theta_21-p_3*th_hat*theta_31-p_4*th_hat*theta_41) -> 344.638388 | BG9: =+th_hat*theta_12+mpc_12/p_1*(Y_2*(1-th_2)*(1-sh_2)-p_1*th_hat*theta_12-p_2*th_hat*theta_22-p_3*th_hat*theta_32-p_4*th_hat*theta_42) -> 472.2624539 | BH9: =+th_hat*theta_13+mpc_13/p_1*(Y_3*(1-th_3)*(1-sh_3)-p_1*th_hat*theta_13-p_2*th_hat*theta_23-p_3*th_hat*theta_33-p_4*th_hat*theta_43) -> 470.695098 | BI9: =+th_hat*theta_14+mpc_14/p_1*(Y_4*(1-th_4)*(1-sh_4)-p_1*th_hat*theta_14-p_2*th_hat*theta_24-p_3*th_hat*theta_34-p_4*th_hat*theta_44) -> 547.166086 | BJ9: =+th_hat*theta_15+mpc_15/p_1*(Y_5*(1-th_5)*(1-sh_5)-p_1*th_hat*theta_15-p_2*th_hat*theta_25-p_3*th_hat*theta_35-p_4*th_hat*theta_45) -> 591.9124762 | BK9: =SUM(BL9:BP9) -> 0 | BL9: =+th_hat*theta_21+mpc_21/p_2*(Y_1*(1-th_1)*(1-sh_1)-p_1*th_hat*theta_11-p_2*th_hat*theta_21-p_3*th_hat*theta_31-p_4*th_hat*theta_41) -> 0 | BM9: =+th_hat*theta_22+mpc_22/p_2*(Y_2*(1-th_2)*(1-sh_2)-p_1*th_hat*theta_12-p_2*th_hat*theta_22-p_3*th_hat*theta_32-p_4*th_hat*theta_42) -> 0 | BN9: =+th_hat*theta_23+mpc_23/p_2*(Y_3*(1-th_3)*(1-sh_3)-p_1*th_hat*theta_13-p_2*th_hat*theta_23-p_3*th_hat*theta_33-p_4*th_hat*theta_43) -> 0 | BO9: =+th_hat*theta_24+mpc_24/p_2*(Y_4*(1-th_4)*(1-sh_4)-p_1*th_hat*theta_14-p_2*th_hat*theta_24-p_3*th_hat*theta_34-p_4*th_hat*theta_44) -> 0 | BP9: =+th_hat*theta_25+mpc_25/p_2*(Y_5*(1-th_5)*(1-sh_5)-p_1*th_hat*theta_15-p_2*th_hat*theta_25-p_3*th_hat*theta_35-p_4*th_hat*theta_45) -> 0 | BQ9: =SUM(BR9:BV9) -> 26249.65165 | BR9: =+th_hat*theta_31+mpc_31/p_3*(Y_1*(1-th_1)*(1-sh_1)-p_1*th_hat*theta_11-p_2*th_hat*theta_21-p_3*th_hat*theta_31-p_4*th_hat*theta_41) -> 1920.380883 | BS9: =+th_hat*theta_32+mpc_32/p_3*(Y_2*(1-th_2)*(1-sh_2)-p_1*th_hat*theta_12-p_2*th_hat*theta_22-p_3*th_hat*theta_32-p_4*th_hat*theta_42) -> 3278.437563 | BT9: =+th_hat*theta_33+mpc_33/p_3*(Y_3*(1-th_3)*(1-sh_3)-p_1*th_hat*theta_13-p_2*th_hat*theta_23-p_3*th_hat*theta_33-p_4*th_hat*theta_43) -> 4524.322716 | BU9: =+th_hat*theta_34+mpc_34/p_3*(Y_4*(1-th_4)*(1-sh_4)-p_1*th_hat*theta_14-p_2*th_hat*theta_24-p_3*th_hat*theta_34-p_4*th_hat*theta_44) -> 6052.266198 | BV9: =+th_hat*theta_35+mpc_35/p_3*(Y_5*(1-th_5)*(1-sh_5)-p_1*th_hat*theta_15-p_2*th_hat*theta_25-p_3*th_hat*theta_35-p_4*th_hat*theta_45) -> 10474.24429 | BW9: =SUM(BX9:CB9) -> 41306.10243 | BX9: =+th_hat*theta_41+mpc_41/p_4*(Y_1*(1-th_1)*(1-sh_1)-p_1*th_hat*theta_11-p_2*th_hat*theta_21-p_3*th_hat*theta_31-p_4*th_hat*theta_41) -> 1686.193681 | BY9: =+th_hat*theta_42+mpc_42/p_4*(Y_2*(1-th_2)*(1-sh_2)-p_1*th_hat*theta_12-p_2*th_hat*theta_22-p_3*th_hat*theta_32-p_4*th_hat*theta_42) -> 1992.601638 | BZ9: =+th_hat*theta_43+mpc_43/p_4*(Y_3*(1-th_3)*(1-sh_3)-p_1*th_hat*theta_13-p_2*th_hat*theta_23-p_3*th_hat*theta_33-p_4*th_hat*theta_43) -> 3908.421327 | CA9: =+th_hat*theta_44+mpc_44/p_4*(Y_4*(1-th_4)*(1-sh_4)-p_1*th_hat*theta_14-p_2*th_hat*theta_24-p_3*th_hat*theta_34-p_4*th_hat*theta_44) -> 7204.217504 | CB9: =+th_hat*theta_45+mpc_45/p_4*(Y_5*(1-th_5)*(1-sh_5)-p_1*th_hat*theta_15-p_2*th_hat*theta_25-p_3*th_hat*theta_35-p_4*th_hat*theta_45) -> 26514.66827 | CC9: =SUM(SAM!X16:Z16) -> 177.5404612 | CD9: =SUM(SAM!X17:Z17) -> 0 | CE9: =SUM(SAM!X18:Z18) -> 4036.378815 | CF9: =SUM(SAM!X19:Z19) -> 16307.58937 | CG9: =SUM(CH9:CK9) -> 20521.50864 | CH9: =+SAM!E97 -> 857.8103472 | CI9: =Ig_f -> 4217.629213 | CJ9: =+SAM!G97 -> 4349.157455 | CK9: =+SAM!H97+SAM!H96 -> 11096.91163 | CP9: =beta_1s/beta_1k*r_1*K_1/ws -> 382.7032391 | CQ9: =beta_2s/beta_2k*r_2*K_2/ws -> 1841.868686 | CR9: =beta_3s/beta_3k*r_3*K_3/ws -> 6753.716233 | CS9: =beta_4s/beta_4k*r_4*K_4/ws -> 14271.12766 | CT9: =beta_1u/beta_1k*r_1*K_1/wu -> 1530.812956 | CU9: =beta_2u/beta_2k*r_2*K_2/wu -> 789.3722941 | CV9: =beta_3u/beta_3k*r_3*K_3/wu -> 2251.238744 | CW9: =beta_4u/beta_4k*r_4*K_4/wu -> 9514.085107 | CX9: =YP_1/Q_1 -> 0.849999994 | CY9: =YP_2/Q_2 -> 0.9999998619 | CZ9: =YP_3/Q_3 -> 0.8999999936 | DA9: =YP_4/Q_4 -> 0.9499999908 | DB9: =+DK9/DF9 -> 2.474137499 | DC9: =+SAM!E91 -> 4970.588235 | DD9: =+SAM!F91 -> 74623 | DE9: =+SAM!G91 -> 25284.44444 | DF9: =+SAM!H91 -> 72397.89474 | DG9: =+DJ9/CR9 -> 10.39465222 | DH9: =+SAM!E94 -> 13846.46532 | DI9: =+SAM!F94 -> 86246.31759 | DJ9: =+SAM!G94 -> 70202.53142 | DK9: =+SAM!H94 -> 179122.3462 | DL9: =+SAM!E95 -> 13213.73604 | DM9: =+SAM!F95 -> 84646.32125 | DN9: =+SAM!G95 -> 67415.88993 | DO9: =+SAM!H95 -> 172197.8927 | DP9: =profs_1/KL_1 -> 0.1799987349 | DQ9: =profs_2/KL_2 -> 0.8333869753 | DR9: =profs_3/KL_3 -> 0.1813014528 | DS9: =profs_4/KL_4 -> 0.2561959095 | DT9: =(ws*ls_1*D_1+wu*lu_1*D_1)/((ls_1*D_1+lu_1*D_1)*r_1) -> 5.555594603 | DU9: =(ws*ls_2*D_2+wu*lu_2*D_2)/((ls_2*D_2+lu_2*D_2)*r_2) -> 1.199922761 | DV9: =(ws*ls_3*D_3+wu*lu_3*D_3)/((ls_3*D_3+lu_3*D_3)*r_3) -> 5.515675605 | DW9: =(ws*ls_4*D_4+wu*lu_4*D_4)/((ls_4*D_4+lu_4*D_4)*r_4) -> 3.903262945 | DY9: =+SAM!Y15 -> 7589.843387 | DZ9: =+SAM!Z15 -> 4217.629213 | EA9: =+SAM!E105 -> 0.022418078 | EC9: =+SAM!G105 -> 0.01951234953 | ED9: =+SAM!H105 -> 0.001366499193 | EE9: =ls_1*D_1/Lss_1-1 -> -0.04569608612 | EF9: =ls_2*D_2/Lss_2-1 -> -0.0185514742 | EG9: =ls_3*D_3/Lss_3-1 -> -0.03969431643 | EH9: =ls_4*D_4/Lss_4-1 -> -0.03865767557 | EI9: =+SAM!E23/(SAM!E48) -> 0.053834319 | EJ9: =(+SAM!F23/SAM!F48) -> 0.02318156625 | EK9: =+SAM!G23/(SAM!G48) -> 0.1287965246 | EL9: =+SAM!H23/(SAM!H48) -> 0.1337069443 | EM9: =+SAM!E24/(SAM!E48) -> 0.215337276 | EN9: =+SAM!F24/(SAM!F48) -> 0.009934956963 | EO9: =+SAM!G24/(SAM!G48) -> 0.04293217486 | EP9: =+SAM!H24/(SAM!H48) -> 0.08913796287 | EQ9: 1 | ER9: 1 | ES9: 1 | ET9: 1 | EU9: 1 | EV9: 1 | EW9: 1 | EX9: 1 | EY9: =+SAM!AA28 -> 9.645642586 | EZ9: =+SAM!AA29 -> 29.75127607 | FA9: =+SAM!AA30 -> 69.13942483 | FB9: =+SAM!AA31 -> 1.503412275 | FC9: =+SAM!AA32 -> 91.07671561 | FD9: =+SAM!AB28 -> 21.07128088 | FE9: =+SAM!AB29 -> 38.36170362 | FF9: =+SAM!AB30 -> 243.2845716 | FG9: =+SAM!AB31 -> 409.6744464 | FH9: =+SAM!AB32 -> 988.1707213 | FI9: =+SAM!V28 -> 155.2198003 | FJ9: =+SAM!V29 -> 295.60468 | FK9: =+SAM!V30 -> 261.2930534 | FL9: =+SAM!V31 -> 151.8609267 | FM9: =+SAM!V32 -> 83.90794474 | FN9: =+SAM!W28 -> 8.428512352 | FO9: =+SAM!W29 -> 15.34468145 | FP9: =+SAM!W30 -> 97.31382862 | FQ9: =+SAM!W31 -> 163.8697786 | FR9: =+SAM!W32 -> 395.2682885 | FS9: =+EY9+FD9+FI9+FN9 -> 194.3652361 | FT9: =+EZ9+FE9+FJ9+FO9 -> 379.0623411 | FU9: =+FA9+FF9+FK9+FP9 -> 671.0308784 | FV9: =+FB9+FG9+FL9+FQ9 -> 726.908564 | FW9: =+FC9+FH9+FM9+FR9 -> 1558.42367 | FY9: 0 | FZ9: 0 | GA9: 0 | GB9: =+SAM!V19 -> 10072.32547 | GC9: 0 | GD9: 0 | GE9: 0 | GF9: =+SAM!W19 -> 16697.436 | GG9: =+SAM!AA16 -> 0 | GH9: =+$GH$5*(Q_2+(p_1*a_12+p_2*a_22+p_3*a_32+p_4*a_42)*(p_2*D_2))*(1+marg_2) -> 32435.14061 | GI9: =+SAM!AA18 -> 88.19893394 | GJ9: =+SAM!AA19 -> 0 | GK9: =+SAM!AB16 -> 2289.243365 | GL9: =+SAM!AB17 -> 45589.45892 | GM9: =+SAM!AB18 -> 30193.70398 | GN9: =+SAM!AB19 -> 550.1949118 | GO9: 2 | GQ9: 1 | GR9: 0 | GS9: 0 | GT9: 0 | GU9: 0 | GV9: 0 | GX9: =(10-4*(4*Y_1+3*Y_2+2*Y_3+Y_4)/SUM(AZ9:BD9)-2)/10 -> 0.4905766996 | GY9: =(p_1*X_1+p_2*X_2+p_3*X_3+p_4*X_4)/(X_1+X_2+X_3+X_4) -> 1 | GZ9: =ws*(ls_1*D_1+ls_2*D_2+ls_3*D_3+ls_4*D_4)/(profs_1+profs_2+profs_3+profs_4) -> 0.1731230323 | HA9: =wu*(lu_1*D_1+lu_2*D_2+lu_3*D_3+lu_4*D_4)/(profs_1+profs_2+profs_3+profs_4) -> 0.1047787181 | HB9: =+GZ9+HA9 -> 0.2779017504 | HC9: 53165.48055 | HE9: =+HF9-HG9 -> 0 | HF9: =p_1*I_1+p_2*I_2+p_3*I_3+p_4*I_4 -> 20521.50864 | HG9: =SUM(HH9:HL9) -> 20521.50864 | HH9: =sh_1*Y_1*(1-th_1)+sh_2*Y_2*(1-th_2)+sh_3*Y_3*(1-th_3)+sh_4*Y_4*(1-th_4)+sh_5*Y_5*(1-th_5) -> 28186.55713 | HI9: =+HM9-HN9 -> -5820.559698 | HJ9: =+HO9-HP9 -> 53165.48055 | HK9: =+HS9-SUM(EY9:FC9)-HQ9 -> -32494.22397 | HL9: =+HT9-HR9-SUM(FD9:FH9) -> -22515.74537 | HM9: =+HV9+HW9 -> 5199.652177 | HN9: =+Tr_1+Tr_2+Tr_3+Tr_4+Tr_5+p_1*G_1+p_2*G_2+p_3*G_3+p_4*G_4 -> 11020.21188 | HO9: =profs_2 -> 70543.14164 | HP9: =+Trf_1+Trf_2+Trf_3+Trf_4+Trf_5+p_4*GF_4 -> 17377.66109 | HQ9: =p_1*Ex_1+p_2*Ex_2+p_3*Ex_3+p_4*Ex_4 -> 32523.33954 | HR9: =p_1*Em_1+p_2*Em_2+p_3*Em_3+p_4*Em_4 -> 78622.60117 | HS9: =+D_mc*e -> 230.232042 | HT9: =D_mm*pm -> 57807.41852 | HU9: =Y_1*th_1+Y_2*th_2+Y_3*th_3+Y_4*th_4+Y_5*th_5 -> 0 | HV9: =SUM(HY9:IB9) -> 3140.063323 | HW9: =tX_1*p_1*X_1+tx_2*p_2*X_2+tx_3*p_3*X_3+tX_4*p_4*X_4 -> 2059.588854 | HX9: =SUM(EY9:FH9) -> 1901.679195 | HY9: =iva_1*VA_1*D_1 -> 20.46820471 | HZ9: =iva_2*VA_2*D_2 -> 1497.420475 | IA9: =iva_3*VA_3*D_3 -> 642.5860424 | IB9: =iva_4*VA_4*D_4 -> 979.5886005 | IC9: debug | ID9: =D9 -> 69982.42858 | IE9: 69982.42858 | IG9: =SUM(CC9:CF9)-CG9 -> 0 | IH9: =D_1*p_1+D_2*p_2+D_3*p_3+D_4*p_4+D_mc*e+D_mm*pm-SUM(AF9:AI9) -> 0
A10: =+A9+1 -> 2004 | B10: =+B9+1 -> 1 | C10: 178554.2718 | D10: 74849.56821 | E10: =+I_1+I_2+I_3+I_4 -> 22542.19573 | F10: 29179.04 | G10: 113941.1745 | H10: -61957.70661 | I10: =p_1*a_11+p_2*a_21+p_3*a_31+p_4*a_41+ws*ls_1+wu*lu_1 -> 0.6461971592 | J10: 0.07630191047 | K10: 0.7478597698 | L10: 0.5622449888 | M10: 0.6180491361 | N10: 0.9376099603 | O10: 0.4177013906 | P10: 0.654579526 | Q10: 0.9996971273 | R10: =+R9*(1+R$7) -> 1 | S10: 1.004537126 | T10: 1.003103556 | U10: 4477.109371 | V10: 75967.39696 | W10: 24316.61873 | X10: 74198.41237 | Y10: 7208.844007 | Z10: =(b_21*Xd_1+b_22*Xd_2+b_23*Xd_3+b_24*Xd_4)/p_2 -> 79396.55306 | AA10: 53413.58277 | AB10: 110396.4869 | AC10: 244.1318529 | AD10: 61713.57475 | AE10: 19087.53724 | AF10: 18379.88827 | AG10: 79396.55306 | AH10: 80653.62085 | AI10: 134685.7361 | AJ10: 20384.61822 | AK10: 79441.92888 | AL10: 98574.70603 | AM10: 135147.3334 | AN10: 5217.635804 | AO10: 79441.92888 | AP10: 63966.62082 | AQ10: 110914.2742 | AR10: 63162.15884 | AT10: 24158.58373 | AU10: 14337.83771 | AV10: 2526.636566 | AW10: 71814.04638 | AX10: 13023.10867 | AY10: 47612.4136 | AZ10: 4599.510086 | BA10: 7119.825423 | BB10: 11586.81449 | BC10: 18267.36574 | BD10: 63826.64268 | BE10: 2596.015536 | BF10: 365.1139476 | BG10: 503.5423223 | BH10: 504.0026287 | BI10: 587.0807705 | BJ10: 636.2758674 | BK10: 0 | BL10: 0 | BM10: 0 | BN10: 0 | BO10: 0 | BP10: 0 | BQ10: 28037.84973 | BR10: 2030.994289 | BS10: 3488.454174 | BT10: 4832.305344 | BU10: 6472.442409 | BV10: 11213.65351 | BW10: 44215.70294 | BX10: 1784.219877 | BY10: 2121.526426 | BZ10: 4177.581156 | CA10: 7711.860332 | CB10: 28420.51515 | CC10: =IF(CC$5>0,(1+CC$5)*CD8,+I_or1*total_I) -> 195.0223005 | CD10: 0 | CE10: =IF(CE$5>0,(1+CE$5)*CF8,+I_or3*total_I) -> 4433.82808 | CF10: =IF(CF$5>0,(1+CF$5)*CF9,+I_or4*total_I) -> 17913.34535 | CG10: =SUM(CH10:CK10) -> 22542.19573 | CH10: =(Id0_1+alpha_1*u_1)*KL_1 -> 947.4166541 | CI10: 4544.495477 | CJ10: =(Id0_3+alpha_3*u_3)*KL_3 -> 4899.459189 | CK10: =(Id0_4+alpha_4*u_4)*KL_4+Ig -> 12150.82441 | CL10: =+CH9 -> 857.8103472 | CM10: =+CI9 -> 4217.629213 | CN10: =+CJ9 -> 4349.157455 | CO10: =+CK9 -> 11096.91163 | CP10: =beta_1s/beta_1k*r_1*KL_1/ws -> 386.0383746 | CQ10: =beta_2s/beta_2k*r_2*KL_2/ws -> 1831.111249 | CR10: =beta_3s/beta_3k*r_3*KL_3/ws -> 6876.023549 | CS10: =beta_4s/beta_4k*r_4*KL_4/ws -> 14732.97549 | CT10: =beta_1u/beta_1k*r_1*KL_1/wu -> 1551.874266 | CU10: =beta_2u/beta_2k*r_2*KL_2/wu -> 788.6857735 | CV10: =beta_3u/beta_3k*r_3*KL_3/wu -> 2303.467889 | CW10: =beta_4u/beta_4k*r_4*KL_4/wu -> 9871.093581 | CX10: 0.9156147635 | CY10: 0.999999659 | CZ10: 0.9860476454 | DA10: 0.9922766505 | DB10: =+DK10/DF10 -> 2.483970331 | DC10: =TC_1*(K_1^(1-beta_1s-beta_1u)*Lss_1^beta_1s*Lsu_1^beta_1u) -> 4889.73043 | DD10: =(TC_2*K_2^(1-beta_2s-beta_2u)*Lss_2^beta_2s*Lsu_2^beta_2u) -> 75967.42286 | DE10: =tc_3*(K_3^(1-beta_3s-beta_3u)*Lss_3^beta_3s*Lsu_3^beta_3u) -> 24660.69347 | DF10: =tc_4*(K_4^(1-beta_4s-beta_4u)*Lss_4^beta_4s*Lsu_4^beta_4u) -> 74775.93304 | DG10: =+DJ10/CR10 -> 10.5614995 | DH10: =+KL_1*(1-dep_1)+IdL_1 -> 14358.11403 | DI10: =+KL_2*(1-dep_2)+IdL_2 -> 87876.55727 | DJ10: =+KL_3*(1-dep_3)+IdL_3 -> 72621.11926 | DK10: =+KL_4*(1-dep_4)+IdL_4 -> 185741.1992 | DL10: =+DH9 -> 13846.46532 | DM10: =+DI9 -> 86246.31759 | DN10: =+DJ9 -> 70202.53142 | DO10: =+DK9 -> 179122.3462 | DP10: 0.1824752027 | DQ10: 0.8326621749 | DR10: 0.1855076791 | DS10: 0.2658094571 | DT10: 5.485743101 | DU10: 1.205164337 | DV10: 5.410952468 | DW10: 3.773447449 | DY10: =+DY9*(1+DY$7) -> 8348.827726 | DZ10: =+DZ9*(1+DZ$7) -> 4544.495477 | EA10: =+EA9*(1+EA$7) -> 0.02264225878 | EC10: =+EC9*(1+EC$7) -> 0.02048796701 | ED10: =+ED9*(1+ED$7) -> 0.001380164185 | EE10: 0.01032345379 | EF10: 0 | EG10: 0.01551078672 | EH10: 0.006896456361 | EI10: 0.0541034906 | EJ10: =Lss_2/D_2 -> 0.02306285573 | EK10: 0.1307284725 | EL10: 0.134375479 | EM10: 0.2131839032 | EN10: =Lsu_2/D_2 -> 0.009933501432 | EO10: 0.04250285311 | EP10: 0.08824658324 | EQ10: =+EQ9*(1+EQ$7) -> 1.005 | ER10: =+ER9*(1+ER$7) -> 1 | ES10: =P -> 1.002579862 | ET10: 1.002579862 | EU10: =+EU9*(1+EU$7) -> 1.01 | EV10: =+EV9*(1+EV$7) -> 1 | EW10: =+EW9*(1+EW$7) -> 1.01 | EX10: =+EX9*(1+EX$7) -> 1.01 | EY10: =+EY9*(1+EY$7) -> 10.22438114 | EZ10: 31.53635264 | FA10: 73.28779032 | FB10: 1.593617011 | FC10: 96.54131854 | FD10: 22.33555773 | FE10: 40.66340584 | FF10: 257.8816459 | FG10: 434.2549132 | FH10: 1047.460965 | FI10: =+FI9*(1+FI$7) -> 164.5329883 | FJ10: =+FJ9*(1+FJ$7) -> 313.3409608 | FK10: =+FK9*(1+FK$7) -> 276.9706366 | FL10: =+FL9*(1+FL$7) -> 160.9725823 | FM10: =+FM9*(1+FM$7) -> 88.94242143 | FN10: =+FN9*(1+FN$7) -> 8.934223093 | FO10: =+FO9*(1+FO$7) -> 16.26536233 | FP10: =+FP9*(1+FP$7) -> 103.1526583 | FQ10: =+FQ9*(1+FQ$7) -> 173.7019653 | FR10: =+FR9*(1+FR$7) -> 418.9843858 | FS10: 206.0271503 | FT10: 401.8060816 | FU10: 711.2927311 | FV10: 770.5230778 | FW10: 1651.92909 | FY10: 0 | FZ10: 0 | GA10: 0 | GB10: =+GB9*(1+GB$7) -> 10978.83476 | GC10: 0 | GD10: 0 | GE10: 0 | GF10: =+GF9*(1+GF$7) -> 18200.20524 | GG10: =+GG9*(1+GG$7) -> 0 | GH10: 33024.33655 | GI10: =+GI9*(1+GI$7) -> 93.49086998 | GJ10: =+GJ9*(1+GJ$7) -> 0 | GK10: =+GK9*(1+GK$7) -> 2426.597967 | GL10: =+(1-$GH$5)*(Q_2+(p_1*a_12+p_2*a_22+p_3*a_32+p_4*a_42)*(p_2*D_2))*(1+marg_2) -> 46417.59234 | GM10: =+GM9*(1+GM$7) -> 31401.45213 | GN10: =+GN9*(1+GN$7) -> 577.7046574 | GO10: =+GO9*(1+GO$7) -> 2.05 | GP10: =+GO10/GO9-1 -> 0.025 | GQ10: =+GQ9*(1+GP10) -> 1.025 | GR10: =MAX(+GR9*(1+GR$7),0) -> 0 | GS10: =MAX(0,+GS9*(1+GS$7)) -> 0 | GT10: =MAX(0,+GT9*(1+GT$7)) -> 0 | GU10: =MAX(0,+GU9*(1+GU$7)) -> 0 | GV10: 0 | GX10: 0.49184672 | GY10: 1.002579862 | GZ10: 0.1789840194 | HA10: 0.1062249282 | HB10: =+GZ10+HA10 -> 0.2852089476 | HC10: 52836.31719 | HE10: 7.021299098e-10 | HF10: 22617.84857 | HG10: 22617.84857 | HH10: 30286.93928 | HI10: -6522.047844 | HJ10: 52836.31719 | HK10: -33086.67338 | HL10: -20896.68667 | HM10: 5495.61994 | HN10: 12017.66778 | HO10: 71814.04638 | HP10: 18977.7292 | HQ10: =p_1*Ex_1+p_2*Ex_2+p_3*Ex_3+p_4*Ex_4 -> 33118.2516 | HR10: 80966.87744 | HS10: 244.7616793 | HT10: 61872.78726 | HU10: 0 | HV10: 3289.859599 | HW10: =tX_1*p_1*X_1+tx_2*p_2*X_2+tx_3*p_3*X_3+tX_4*p_4*X_4 -> 2205.760341 | HX10: =SUM(EY10:FH10) -> 2015.779947 | HY10: 21.68956018 | HZ10: 1524.397992 | IA10: 686.9485602 | IB10: 1056.823486 | ID10: =D10 -> 74849.56821 | IE10: 74585.69762 | IG10: =SUM(CC10:CF10)-CG10 -> 0 | IH10: =D_1*p_1+D_2*p_2+D_3*p_3+D_4*p_4+D_mc*e+D_mm*pm-SUM(AF10:AI10) -> 0
A11: 2005 | B11: 2 | C11: =SUM(D11:H11) -> 186966.9046 | D11: 79695.17394 | E11: 24217.73584 | F11: 31805.1536 | G11: 117104.4669 | H11: =-AC11-AD11 -> -65855.6256 | I11: 0.6461098181 | J11: 0.07644384219 | K11: 0.7513651836 | L11: 0.5640716823 | M11: 0.6164150235 | N11: 0.9374658909 | O11: 0.4210566892 | P11: 0.6564521257 | Q11: 0.999554458 | R11: =+R10*(1+R$7) -> 1 | S11: 1.00928868 | T11: 1.006358852 | U11: 4728.021928 | V11: 77607.07437 | W11: 25892.49373 | X11: 79619.70864 | Y11: 7633.033964 | Z11: 81122.71024 | AA11: 56446.43081 | AB11: 118128.5607 | AC11: 257.9400413 | AD11: 65597.68556 | AE11: 20257.98349 | AF11: 19458.63852 | AG11: 81122.71024 | AH11: 85632.64787 | AI11: 144596.174 | AJ11: 21584.11016 | AK11: 81169.07257 | AL11: 104167.3424 | AM11: 144622.4045 | AN11: 5547.129559 | AO11: 81169.07257 | AP11: 67333.72015 | AQ11: 118902.5879 | AR11: 67614.69456 | AT11: 25976.99331 | AU11: 15112.01677 | AV11: 2674.949823 | AW11: 73364.07804 | AX11: 13827.07557 | AY11: 51112.66916 | AZ11: 4863.35413 | BA11: 7576.409989 | BB11: 12376.32094 | BC11: 19534.01331 | BD11: 68319.67909 | BE11: =SUM(BF11:BJ11) -> 2765.41759 | BF11: 385.2176425 | BG11: 534.7719276 | BH11: 537.478341 | BI11: 627.1591656 | BJ11: 680.7905129 | BK11: =SUM(BL11:BP11) -> 0 | BL11: 0 | BM11: 0 | BN11: 0 | BO11: 0 | BP11: 0 | BQ11: =SUM(BR11:BV11) -> 29813.71927 | BR11: 2138.765573 | BS11: 3696.50473 | BT11: 5139.339159 | BU11: 6890.61546 | BV11: 11948.49435 | BW11: =SUM(BX11:CB11) -> 47116.03708 | BX11: 1879.975649 | BY11: 2249.582677 | BZ11: 4446.662921 | CA11: 8218.666851 | CB11: 30321.14898 | CC11: =IF(CC$5>0,(1+CC$5)*CD9,+I_or1*total_I) -> 209.5181239 | CD11: 0 | CE11: =IF(CE$5>0,(1+CE$5)*CF9,+I_or3*total_I) -> 4763.390333 | CF11: 19244.82738 | CG11: =SUM(CH11:CK11) -> 24217.73584 | CH11: 984.0456106 | CI11: 4896.693876 | CJ11: 5166.431769 | CK11: 13170.56458 | CL11: =+CH10 -> 947.4166541 | CM11: =+CI10 -> 4544.495477 | CN11: =+CJ10 -> 4899.459189 | CO11: =+CK10 -> 12150.82441 | CP11: 406.6654528 | CQ11: 1861.327248 | CR11: 7264.186163 | CS11: 15737.39219 | CT11: 1642.969096 | CU11: 805.7087374 | CV11: 2445.669876 | CW11: 10596.77303 | CX11: 0.9133434578 | CY11: 0.999999659 | CZ11: 0.9925982291 | DA11: 1.00352997 | DB11: =+DK11/DF11 -> 2.435711688 | DC11: 5176.608961 | DD11: 77607.10084 | DE11: 26085.57317 | DF11: 79339.64212 | DG11: 10.39669083 | DH11: 14946.57783 | DI11: 89784.75603 | DJ11: 75523.49767 | DK11: 193248.4936 | DL11: =+DH10 -> 14358.11403 | DM11: =+DI10 -> 87876.55727 | DN11: =+DJ10 -> 72621.11926 | DO11: =+DK10 -> 185741.1992 | DP11: 0.1863023109 | DQ11: 0.834853803 | DR11: 0.1904001992 | DS11: 0.2751821857 | DT11: 5.378643305 | DU11: 1.20619497 | DV11: 5.292070784 | DW11: 3.656076564 | DY11: 9183.710499 | DZ11: 4896.693876 | EA11: 0.02286868137 | EC11: 0.02151236536 | ED11: 0.001393965827 | EE11: 0.02058989113 | EF11: 0 | EG11: 0.03106429855 | EH11: 0.01369716427 | EI11: 0.05437400805 | EJ11: 0.02294458904 | EK11: =+EK10*(1+EK$7) -> 0.1326893995 | EL11: 0.1350473564 | EM11: 0.2110520642 | EN11: 0.00993197509 | EO11: =+EO10*(1+EO$7) -> 0.04207782458 | EP11: 0.08736411741 | EQ11: 1.010025 | ER11: 1 | ES11: 1.005341006 | ET11: 1.005341006 | EU11: 1.0201 | EV11: 1 | EW11: 1.0201 | EX11: 1.0201 | EY11: 10.83784401 | EZ11: 33.4285338 | FA11: 77.68505774 | FB11: 1.689234032 | FC11: 102.3337977 | FD11: 23.6756912 | FE11: 43.10321019 | FF11: 273.3545446 | FG11: 460.310208 | FH11: 1110.308622 | FI11: 174.4049676 | FJ11: 332.1414184 | FK11: 293.5888747 | FL11: 170.6309373 | FM11: 94.27896671 | FN11: 9.470276478 | FO11: 17.24128407 | FP11: 109.3418178 | FQ11: 184.1240832 | FR11: 444.123449 | FS11: =+EY11+FD11+FI11+FN11 -> 218.3887793 | FT11: =+EZ11+FE11+FJ11+FO11 -> 425.9144465 | FU11: =+FA11+FF11+FK11+FP11 -> 753.9702949 | FV11: =+FB11+FG11+FL11+FQ11 -> 816.7544625 | FW11: =+FC11+FH11+FM11+FR11 -> 1751.044836 | FY11: 0 | FZ11: 0 | GA11: 0 | GB11: 11966.92989 | GC11: 0 | GD11: 0 | GE11: 0 | GF11: 19838.22371 | GG11: 0 | GH11: 33742.31728 | GI11: 99.10032218 | GJ11: 0 | GK11: 2572.193845 | GL11: 47426.75529 | GM11: 32657.51022 | GN11: 606.5898903 | GO11: 2.10125 | GP11: =+GO11/GO10-1 -> 0.025 | GQ11: =+GQ10*(1+GP11) -> 1.050625 | GR11: 0 | GS11: 0 | GT11: 0 | GU11: 0 | GV11: 0 | GX11: 0.4930168724 | GY11: 1.005341006 | GZ11: 0.1842617355 | HA11: 0.1071935618 | HB11: 0.2914552973 | HC11: 52368.3192 | HE11: =+HF11-HG11 -> 1.542503014e-09 | HF11: 24384.2631 | HG11: =SUM(HH11:HL11) -> 24384.2631 | HH11: 32399.30163 | HI11: =+HM11-HN11 -> -7309.634053 | HJ11: =+HO11-HP11 -> 52635.40509 | HK11: -33808.99488 | HL11: -19531.81469 | HM11: =+HV11+HW11 -> 5798.436935 | HN11: 13108.07099 | HO11: 73364.07804 | HP11: 20728.67294 | HQ11: =p_1*Ex_1+p_2*Ex_2+p_3*Ex_3+p_4*Ex_4 -> 33842.33811 | HR11: 83569.10561 | HS11: 259.3177006 | HT11: 65948.0432 | HU11: 0 | HV11: =SUM(HY11:IB11) -> 3446.068455 | HW11: 2352.368481 | HX11: =SUM(EY11:FH11) -> 2136.726744 | HY11: 22.90511748 | HZ11: 1557.300541 | IA11: 731.7852375 | IB11: 1134.077559 | ID11: =D11 -> 79695.17394 | IE11: 74585.69762 | IG11: =SUM(CC11:CF11)-CG11 -> 0 | IH11: =D_1*p_1+D_2*p_2+D_3*p_3+D_4*p_4+D_mc*e+D_mm*pm-SUM(AF11:AI11) -> 0
A12: 2006 | B12: 3 | C12: 196220.0068 | D12: 84957.02266 | E12: 26075.85001 | F12: 34667.61743 | G12: 120595.8638 | H12: -70076.34716 | I12: 0.6461268441 | J12: 0.07659242066 | K12: 0.7550318302 | L12: 0.5659842774 | M12: 0.6148643017 | N12: 0.9373150747 | O12: 0.4245217507 | P12: 0.6584130157 | Q12: 0.9995731697 | R12: 1 | S12: 1.014257411 | T12: 1.009767233 | U12: 4998.371602 | V12: 79501.24632 | W12: 27602.97727 | X12: 85553.13483 | Y12: 8089.844783 | Z12: 83116.06047 | AA12: 59710.54202 | AB12: 126558.0688 | AC12: 272.7899904 | AD12: 69803.55717 | AE12: 21525.59554 | AF12: 20623.55715 | AG12: 83116.06047 | AH12: 91026.42075 | AI12: 155449.291 | AJ12: 22875.84489 | AK12: 83163.56202 | AL12: 110186.1199 | AM12: 154952.6895 | AN12: 5901.920981 | AO12: 83163.56202 | AP12: 70936.74867 | AQ12: 127611.506 | AR12: 72478.81922 | AT12: 27973.37631 | AU12: 15949.11096 | AV12: 2835.111074 | AW12: 75154.6903 | AX12: 14698.02757 | AY12: 54945.68058 | AZ12: 5149.214548 | BA12: 8073.553051 | BB12: 13237.78645 | BC12: 20916.96772 | BD12: 73227.82191 | BE12: 2949.80203 | BF12: 406.9612008 | BG12: 568.72569 | BH12: 573.9517443 | BI12: 670.8422995 | BJ12: 729.3210958 | BK12: 0 | BL12: 0 | BM12: 0 | BN12: 0 | BO12: 0 | BP12: 0 | BQ12: 31739.02859 | BR12: 2254.783473 | BS12: 3921.592508 | BT12: 5472.223709 | BU12: 7344.287264 | BV12: 12746.14164 | BW12: 50268.19203 | BX12: 1983.237111 | BY12: 2388.378503 | BZ12: 4738.946419 | CA12: 8769.528577 | CB12: 32388.10142 | CC12: 225.5934745 | CD12: 0 | CE12: 5128.863106 | CF12: 20721.39343 | CG12: 26075.85001 | CH12: 1026.560683 | CI12: 5276.187652 | CJ12: 5479.64311 | CK12: 14293.45857 | CL12: 984.0456106 | CM12: 4896.693876 | CN12: 5166.431769 | CO12: 13170.56458 | CP12: 428.8699886 | CQ12: 1897.270695 | CR12: 7683.332447 | CS12: 16833.39454 | CT12: 1741.341029 | CU12: 825.3738375 | CV12: 2599.719881 | CW12: 11391.44004 | CX12: 0.9116924014 | CY12: 0.9999996589 | CZ12: 0.9993497911 | DA12: 1.014057427 | DB12: 2.389411593 | DC12: 5482.519756 | DD12: 79501.27344 | DE12: 27620.93665 | DF12: 84367.14981 | DG12: 10.23163241 | DH12: 15556.959 | DI12: 91987.90723 | DJ12: 78613.03326 | DK12: 201587.8458 | DL12: 14946.57783 | DM12: 89784.75603 | DN12: 75523.49767 | DO12: 193248.4936 | DP12: 0.1896829566 | DQ12: 0.8370540125 | DR12: 0.1946152922 | DS12: 0.284326566 | DT12: 5.288431454 | DU12: 1.207216097 | DV12: 5.197504423 | DW12: 3.549466204 | DY12: 10102.08155 | DZ12: 5276.187652 | EA12: 0.02309736818 | EC12: 0.02258798363 | ED12: 0.001407905486 | EE12: 0.03079414173 | EF12: 0 | EG12: 0.04665525829 | EH12: 0.02039961439 | EI12: 0.05464587809 | EJ12: 0.02282676397 | EK12: =+EK11*(1+EK$7) -> 0.1346797405 | EL12: 0.1357225932 | EM12: 0.2089415436 | EN12: 0.009930377269 | EO12: =+EO11*(1+EO$7) -> 0.04165704634 | EP12: 0.08649047624 | EQ12: 1.015075125 | ER12: 1 | ES12: 1.008283524 | ET12: 1.008283524 | EU12: 1.030301 | EV12: 1 | EW12: 1.030301 | EX12: 1.030301 | EY12: 11.48811465 | EZ12: 35.43424582 | FA12: 82.3461612 | FB12: 1.790588074 | FC12: 108.4738255 | FD12: 25.09623267 | FE12: 45.6894028 | FF12: 289.7558173 | FG12: 487.9288205 | FH12: 1176.92714 | FI12: 184.8692657 | FJ12: 352.0699035 | FK12: 311.2042072 | FL12: 180.8687935 | FM12: 99.93570471 | FN12: 10.03849307 | FO12: 18.27576112 | FP12: 115.9023269 | FQ12: 195.1715282 | FR12: 470.7708559 | FS12: 231.4921061 | FT12: 451.4693133 | FU12: 799.2085126 | FV12: 865.7597302 | FW12: 1856.107526 | FY12: 0 | FZ12: 0 | GA12: 0 | GB12: 13043.95358 | GC12: 0 | GD12: 0 | GE12: 0 | GF12: 21623.66385 | GG12: 0 | GH12: 34571.43475 | GI12: 105.0463415 | GJ12: 0 | GK12: 2726.525476 | GL12: 48592.12727 | GM12: 33963.81063 | GN12: 636.9193848 | GO12: 2.15378125 | GP12: 0.025 | GQ12: 1.076890625 | GR12: 0 | GS12: 0 | GT12: 0 | GU12: 0 | GV12: 0 | GX12: 0.4941758793 | GY12: 1.008283524 | GZ12: 0.1894785026 | HA12: 0.1080317809 | HB12: 0.2975102835 | HC12: 51695.82388 | HE12: 2.397428034e-09 | HF12: 26351.26871 | HG12: 26351.26871 | HH12: 34706.08255 | HI12: -8169.719164 | HJ12: 52509.66413 | HK12: -34642.46206 | HL12: -18052.29675 | HM12: 6130.585626 | HN12: 14300.30479 | HO12: 75154.6903 | HP12: 22645.02617 | HQ12: =p_1*Ex_1+p_2*Ex_2+p_3*Ex_3+p_4*Ex_4 -> 34677.97878 | HR12: 86408.67596 | HS12: 275.0496529 | HT12: 70381.77663 | HU12: 0 | HV12: 3618.630406 | HW12: 2511.95522 | HX12: 2264.930348 | HY12: 24.21483879 | HZ12: 1595.309898 | IA12: 780.4723951 | IB12: 1218.633274 | ID12: 84957.02266 | IE12: 74585.69762 | IG12: 0 | IH12: -5.238689482e-10
A13: 2007 | B13: 4 | C13: 206339.9576 | D13: 90642.9967 | E13: 28100.28409 | F13: 37787.703 | G13: 124434.7455 | H13: -74625.77173 | I13: 0.6462490259 | J13: 0.07674770972 | K13: 0.7588617949 | L13: 0.5679835514 | M13: 0.6133972399 | N13: 0.9371574468 | O13: 0.4280982755 | P13: 0.6604628399 | Q13: 0.9997544798 | R13: 1 | S13: 1.019446138 | T13: 1.013330083 | U13: 5288.453429 | V13: 81665.75591 | W13: 29452.90205 | X13: 92015.27513 | Y13: 8579.812449 | Z13: 85393.34794 | AA13: 63208.35481 | AB13: 135699.8579 | AC13: 288.6935657 | AD13: 74337.07817 | AE13: 22893.20748 | AF13: 21876.60616 | AG13: 85393.34794 | AH13: 96847.29611 | AI13: 167277.0622 | AJ13: 24261.33801 | AK13: 85442.15098 | AL13: 116635.5197 | AM13: 166156.4112 | AN13: 6282.768539 | AO13: 85442.15098 | AP13: 74776.68429 | AQ13: 137056.179 | AR13: 77768.07848 | AT13: 30156.28933 | AU13: 16848.71853 | AV13: 3007.390341 | AW13: 77200.86008 | AX13: 15637.95499 | AY13: 59122.73315 | AZ13: 5457.268822 | BA13: 8612.367068 | BB13: 14173.72813 | BC13: 22420.3109 | BD13: 78565.69086 | BE13: 3149.543804 | BF13: 430.345199 | BG13: 605.461926 | BH13: 613.5113903 | BI13: 718.2374074 | BJ13: 781.9878809 | BK13: 0 | BL13: 0 | BM13: 0 | BN13: 0 | BO13: 0 | BP13: 0 | BQ13: 33815.92274 | BR13: 2378.930824 | BS13: 4163.858897 | BT13: 5831.397472 | BU13: 7834.063195 | BV13: 13607.67236 | BW13: 53677.53015 | BX13: 2093.942397 | BY13: 2538.061461 | BZ13: 5054.947874 | CA13: 9365.43513 | CB13: 34625.14329 | CC13: 243.1077307 | CD13: 0 | CE13: 5527.049368 | CF13: 22330.12699 | CG13: 28100.28409 | CH13: 1071.05029 | CI13: 5685.092195 | CJ13: 5818.501345 | CK13: 15525.64026 | CL13: 1026.560683 | CM13: 5276.187652 | CN13: 5479.64311 | CO13: 14293.45857 | CP13: 452.667502 | CQ13: 1939.229844 | CR13: 8134.005547 | CS13: 18022.9794 | CT13: 1847.155915 | CU13: 847.8455555 | CV13: 2765.969944 | CW13: 12257.4343 | CX13: 0.9103735917 | CY13: 0.9999996589 | CZ13: 1.005941579 | DA13: 1.023547758 | DB13: 2.345332936 | DC13: 5809.102414 | DD13: 81665.78377 | DE13: 29278.93891 | DF13: 89898.37008 | DG13: 10.07262873 | DH13: 16194.59571 | DI13: 94504.45766 | DJ13: 81930.81795 | DK13: 210841.6083 | DL13: 15556.959 | DM13: 91987.90723 | DN13: 78613.03326 | DO13: 201587.8458 | DP13: 0.1933147951 | DQ13: 0.8392500972 | DR13: 0.1989231854 | DS13: 0.2932852073 | DT13: 5.194778476 | DU13: 1.208246025 | DV13: 5.104886616 | DW13: 3.451859655 | DY13: 11112.2897 | DZ13: 5685.092195 | EA13: 0.02332834186 | EC13: 0.02371738281 | ED13: 0.00142198454 | EE13: 0.04093101428 | EF13: 0 | EG13: 0.062278363 | EH13: 0.02700135703 | EI13: 0.05491910748 | EJ13: 0.02270937832 | EK13: =+EK12*(1+EK$7) -> 0.1366999366 | EL13: 0.1364012062 | EM13: 0.2068521281 | EN13: 0.009928707282 | EO13: =+EO12*(1+EO$7) -> 0.04124047587 | EP13: 0.08562557147 | EQ13: 1.020150501 | ER13: 1 | ES13: 1.011406585 | ET13: 1.011406585 | EU13: 1.04060401 | EV13: 1 | EW13: 1.04060401 | EX13: 1.04060401 | EY13: 12.17740153 | EZ13: 37.56030057 | FA13: 87.28693087 | FB13: 1.898023358 | FC13: 114.982255 | FD13: 26.60200663 | FE13: 48.43076697 | FF13: 307.1411663 | FG13: 517.2045497 | FH13: 1247.542768 | FI13: 195.9614216 | FJ13: 373.1940978 | FK13: 329.8764597 | FL13: 191.7209211 | FM13: 105.931847 | FN13: 10.64080265 | FO13: 19.37230679 | FP13: 122.8564665 | FQ13: 206.8818199 | FR13: 499.0171073 | FS13: 245.3816324 | FT13: 478.5574721 | FU13: 847.1610234 | FV13: 917.705314 | FW13: 1967.473977 | FY13: 0 | FZ13: 0 | GA13: 0 | GB13: 14217.9094 | GC13: 0 | GD13: 0 | GE13: 0 | GF13: 23569.79359 | GG13: 0 | GH13: 35518.65355 | GI13: 111.349122 | GJ13: 0 | GK13: 2890.117004 | GL13: 49923.49743 | GM13: 35322.36305 | GN13: 668.765354 | GO13: 2.207625781 | GP13: 0.025 | GQ13: 1.103812891 | GR13: 0 | GS13: 0 | GT13: 0 | GU13: 0 | GV13: 0 | GX13: 0.4953201989 | GY13: 1.011406585 | GZ13: 0.1945957016 | HA13: 0.1087231976 | HB13: 0.3033188993 | HC13: 50804.04824 | HE13: 3.616150934e-09 | HF13: 28505.36662 | HG13: 28505.36662 | HH13: 37214.02731 | HI13: -9110.942697 | HJ13: 52458.11067 | HK13: -35594.08632 | HL13: -16461.74235 | HM13: 6493.177372 | HN13: 15604.12007 | HO13: 77200.86008 | HP13: 24742.74941 | HQ13: =p_1*Ex_1+p_2*Ex_2+p_3*Ex_3+p_4*Ex_4 -> 35632.16798 | HR13: 89499.83149 | HS13: 291.9865736 | HT13: 75185.0104 | HU13: 0 | HV13: 3808.244695 | HW13: 2684.932677 | HX13: 2400.826169 | HY13: 25.6201534 | HZ13: 1638.743979 | IA13: 833.1525959 | IB13: 1310.727966 | ID13: 90642.9967 | IE13: 74585.69762 | IG13: 0 | IH13: -7.566995919e-10
A14: 2008 | B14: 5 | C14: 217397.2222 | D14: 96790.25459 | E14: 30309.16939 | F14: 41188.59626 | G14: 128642.0365 | H14: -79532.83449 | I14: 0.6464771784 | J14: 0.07690977489 | K14: 0.7628572142 | L14: 0.5700703021 | M14: 0.6120141246 | N14: 0.9369929408 | O14: 0.4317880022 | P14: 0.6626022604 | Q14: 1.000099647 | R14: 1 | S14: 1.024857745 | T14: 1.017048822 | U14: 5599.933093 | V14: 84117.78773 | W14: 31455.30051 | X14: 99057.5725 | Y14: 9105.678674 | Z14: 87972.744 | AA14: 66959.2893 | AB14: 145619.2352 | AC14: 305.7376356 | AD14: 79227.09686 | AE14: 24369.92203 | AF14: 23225.46349 | AG14: 87972.744 | AH14: 103134.3499 | AI14: 180175.1148 | AJ14: 25748.34234 | AK14: 88023.02119 | AL14: 123551.3119 | AM14: 178313.676 | AN14: 6691.766336 | AO14: 88023.02119 | AP14: 78872.10513 | AQ14: 147304.5723 | AR14: 83523.58659 | AT14: 32544.21963 | AU14: 17815.85758 | AV14: 3192.84344 | AW14: 79518.83244 | AX14: 16653.1685 | AY14: 63677.57464 | AZ14: 5789.380019 | BA14: 9196.641195 | BB14: 15191.15253 | BC14: 24055.50989 | BD14: 84374.63635 | BE14: 3366.024557 | BF14: 455.5024582 | BG14: 645.2255342 | BH14: 656.438034 | BI14: 769.685271 | BJ14: 839.1732593 | BK14: 0 | BL14: 0 | BM14: 0 | BN14: 0 | BO14: 0 | BP14: 0 | BQ14: 36057.30212 | BR14: 2511.810258 | BS14: 4424.702796 | BT14: 6219.087209 | BU14: 8363.049028 | BV14: 14538.65283 | BW14: 57366.92792 | BX14: 2212.667832 | BY14: 2699.552827 | BZ14: 5396.74933 | CA14: 10010.39297 | CB14: 37047.56496 | CC14: 262.2177543 | CD14: 0 | CE14: 5961.515371 | CF14: 24085.43626 | CG14: 30309.16939 | CH14: 1117.930759 | CI14: 6125.68684 | CJ14: 6187.539117 | CK14: 16878.01267 | CL14: 1071.05029 | CM14: 5685.092195 | CN14: 5818.501345 | CO14: 15525.64026 | CP14: 478.1906475 | CQ14: 1987.518045 | CR14: 8618.969031 | CS14: 19314.90318 | CT14: 1961.062242 | CU14: 873.3022999 | CV14: 2945.536266 | CW14: 13201.75246 | CX14: 0.9093894981 | CY14: 0.9999996588 | CZ14: 1.012365168 | DA14: 1.031979028 | DB14: 2.303374132 | DC14: 6157.903852 | DD14: 84117.81643 | DE14: 31071.10111 | DF14: 95987.97054 | DG14: 9.919541595 | DH14: 16860.7811 | DI14: 97354.41613 | DJ14: 85496.2218 | DK14: 221096.2083 | DL14: 16194.59571 | DM14: 94504.45766 | DN14: 81930.81795 | DO14: 210841.6083 | DP14: 0.1971548718 | DQ14: 0.8414294353 | DR14: 0.203258907 | DS14: 0.3020161683 | DT14: 5.099345923 | DU14: 1.209302812 | DV14: 5.015820806 | DW14: 3.36274318 | DY14: 12223.51867 | DZ14: 6125.68684 | EA14: 0.02356162528 | EC14: 0.02490325195 | ED14: 0.001436204386 | EE14: 0.05099530306 | EF14: 0 | EG14: 0.07792829173 | EH14: 0.03350000455 | EI14: 0.05519370302 | EJ14: 0.02259242982 | EK14: =+EK13*(1+EK$7) -> 0.1387504357 | EL14: 0.1370832122 | EM14: 0.2047836069 | EN14: 0.009926964424 | EO14: =+EO13*(1+EO$7) -> 0.04082807111 | EP14: 0.08476931576 | EQ14: 1.025251253 | ER14: 1 | ES14: 1.014709519 | ET14: 1.014709519 | EU14: 1.05101005 | EV14: 1 | EW14: 1.05101005 | EX14: 1.05101005 | EY14: 12.90804562 | EZ14: 39.81391861 | FA14: 92.52414673 | FB14: 2.01190476 | FC14: 121.8811903 | FD14: 28.19812702 | FE14: 51.33661298 | FF14: 325.5696363 | FG14: 548.2368227 | FH14: 1322.395334 | FI14: 207.7191069 | FJ14: 395.5857436 | FK14: 349.6690472 | FL14: 203.2241764 | FM14: 112.2877578 | FN14: 11.27925081 | FO14: 20.53464519 | FP14: 130.2278545 | FQ14: 219.2947291 | FR14: 528.9581337 | FS14: 260.1045304 | FT14: 507.2709204 | FU14: 897.9906848 | FV14: 972.7676329 | FW14: 2085.522416 | FY14: 0 | FZ14: 0 | GA14: 0 | GB14: 15497.52125 | GC14: 0 | GD14: 0 | GE14: 0 | GF14: 25691.07502 | GG14: 0 | GH14: 36591.53191 | GI14: 118.0300693 | GJ14: 0 | GK14: 3063.524025 | GL14: 51431.48928 | GM14: 36735.25758 | GN14: 702.2036217 | GO14: 2.262816426 | GP14: 0.025 | GQ14: 1.131408213 | GR14: 0 | GS14: 0 | GT14: 0 | GU14: 0 | GV14: 0 | GX14: 0.4964510716 | GY14: 1.014709519 | GZ14: 0.1996058438 | HA14: 0.109271303 | HB14: 0.3088771469 | HC14: 49676.60481 | HE14: 4.987668945e-09 | HF14: 30868.01367 | HG14: 30868.01367 | HH14: 39942.3882 | HI14: -10141.28016 | HJ14: 52479.46024 | HK14: -36671.40025 | HL14: -14741.15435 | HM14: 6888.941403 | HN14: 17030.22157 | HO14: 79518.83244 | HP14: 27039.3722 | HQ14: =p_1*Ex_1+p_2*Ex_2+p_3*Ex_3+p_4*Ex_4 -> 36712.49594 | HR14: 92857.90718 | HS14: 310.2348893 | HT14: 80392.48936 | HU14: 0 | HV14: 4016.373196 | HW14: 2872.568207 | HX14: 2544.875739 | HY14: 27.12913082 | HZ14: 1687.947618 | IA14: 890.2008262 | IB14: 1411.095621 | ID14: 96790.25459 | IE14: 74585.69762 | IG14: -2.910383046e-11 | IH14: -1.047737896e-09
A15: 2009 | B15: 6 | C15: 229465.659 | D15: 103437.3181 | E15: 32720.01806 | F15: 44895.56993 | G15: 133240.319 | H15: -84827.56611 | I15: 0.6468121436 | J15: 0.07707868334 | K15: 0.7670202762 | L15: 0.5722453482 | M15: 0.6107152593 | N15: 0.9368214884 | O15: 0.4355927086 | P15: 0.6648319576 | Q15: 1.000609971 | R15: 1 | S15: 1.03049519 | T15: 1.020924906 | U15: 5934.533889 | V15: 86875.96814 | W15: 33623.95985 | X15: 106734.2954 | Y15: 9670.273797 | Z15: 90873.95476 | AA15: 70983.30978 | AB15: 156384.1711 | AC15: 324.0116001 | AD15: 84503.55451 | AE15: 25965.30913 | AF15: 24678.13819 | AG15: 90873.95476 | AH15: 109928.6943 | AI15: 194244.5095 | AJ15: 27344.86129 | AK15: 90925.89002 | AL15: 130970.2675 | AM15: 191507.8586 | AN15: 7131.09533 | AO15: 90925.89002 | AP15: 83241.94749 | AQ15: 158427.4157 | AR15: 89788.74906 | AT15: 35156.90789 | AU15: 18855.59175 | AV15: 3392.57174 | AW15: 82126.2154 | AX15: 17750.3072 | AY15: 68645.87012 | AZ15: 6147.46064 | BA15: 9830.347741 | BB15: 16297.45868 | BC15: 25834.68168 | BD15: 90698.37553 | BE15: 3600.684813 | BF15: 482.5675962 | BG15: 688.2707821 | BH15: 703.0255614 | BI15: 825.5428588 | BJ15: 901.2780146 | BK15: 0 | BL15: 0 | BM15: 0 | BN15: 0 | BO15: 0 | BP15: 0 | BQ15: 38476.46215 | BR15: 2654.020716 | BS15: 4705.555012 | BT15: 6637.59236 | BU15: 8934.454496 | BV15: 15544.83957 | BW15: 61360.17113 | BX15: 2339.992006 | BY15: 2873.802214 | BZ15: 5766.515977 | CA15: 10708.57165 | CB15: 39671.28928 | CC15: 283.0750506 | CD15: 0 | CE15: 6435.705582 | CF15: 26001.23743 | CG15: 32720.01806 | CH15: 1167.330689 | CI15: 6600.42757 | CJ15: 6589.860739 | CK15: 18362.39906 | CL15: 1117.930759 | CM15: 6125.68684 | CN15: 6187.539117 | CO15: 16878.01267 | CP15: 505.5759805 | CQ15: 2042.475396 | CR15: 9141.095699 | CS15: 20718.31226 | CT15: 2083.736478 | CU15: 901.9374479 | CV15: 3139.59314 | CW15: 14231.78866 | CX15: 0.9087249323 | CY15: 0.9999996587 | CZ15: 1.018587722 | DA15: 1.039324424 | DB15: 2.263449176 | DC15: 6530.616337 | DD15: 86875.99778 | DE15: 33010.37224 | DF15: 102695.8406 | DG15: 9.772637522 | DH15: 17557.19233 | DI15: 100559.4705 | DJ15: 89332.61482 | DK15: 232446.8158 | DL15: 16860.7811 | DM15: 97354.41613 | DN15: 85496.2218 | DO15: 221096.2083 | DP15: 0.2012108288 | DQ15: 0.8435797642 | DR15: 0.2076151066 | DS15: 0.3104796353 | DT15: 5.002344731 | DU15: 1.210403881 | DV15: 4.930292515 | DW15: 3.281625849 | DY15: 13445.87054 | DZ15: 6600.42757 | EA15: 0.02379724153 | EC15: 0.02614841455 | ED15: 0.00145056643 | EE15: 0.06098179475 | EF15: 0 | EG15: 0.09359971336 | EH15: 0.03989323368 | EI15: 0.05546967153 | EJ15: 0.02247591625 | EK15: =+EK14*(1+EK$7) -> 0.1408316922 | EL15: 0.1377686283 | EM15: 0.2027357708 | EN15: 0.009925147973 | EO15: =+EO14*(1+EO$7) -> 0.0404197904 | EP15: 0.0839216226 | EQ15: 1.030377509 | ER15: 1 | ES15: 1.018191599 | ET15: 1.018191599 | EU15: 1.061520151 | EV15: 1 | EW15: 1.061520151 | EX15: 1.061520151 | EY15: 13.68252836 | EZ15: 42.20275372 | FA15: 98.07559553 | FB15: 2.132619045 | FC15: 129.1940618 | FD15: 29.89001465 | FE15: 54.41680976 | FF15: 345.1038145 | FG15: 581.131032 | FH15: 1401.739054 | FI15: 220.1822533 | FJ15: 419.3208882 | FK15: 370.6491901 | FL15: 215.417627 | FM15: 119.0250233 | FN15: 11.95600586 | FO15: 21.76672391 | FP15: 138.0415258 | FQ15: 232.4524128 | FR15: 560.6956217 | FS15: 275.7108022 | FT15: 537.7071756 | FU15: 951.8701259 | FV15: 1031.133691 | FW15: 2210.653761 | FY15: 0 | FZ15: 0 | GA15: 0 | GB15: 16892.29816 | GC15: 0 | GD15: 0 | GE15: 0 | GF15: 28003.27177 | GG15: 0 | GH15: 37798.26642 | GI15: 125.1118735 | GJ15: 0 | GK15: 3247.335466 | GL15: 53127.6236 | GM15: 38204.66788 | GN15: 737.3138028 | GO15: 2.319386836 | GP15: 0.025 | GQ15: 1.159693418 | GR15: 0 | GS15: 0 | GT15: 0 | GU15: 0 | GV15: 0 | GX15: 0.4975693789 | GY15: 1.018191599 | GZ15: 0.2045017315 | HA15: 0.1096797583 | HB15: 0.3141814898 | HC15: 48295.34589 | HE15: 6.584741641e-09 | HF15: 33460.52225 | HG15: 33460.52225 | HH15: 42911.50701 | HI15: -11269.59518 | HJ15: 52572.0655 | HK15: -37882.57527 | HL15: -12870.87981 | HM15: 7320.767715 | HN15: 18590.3629 | HO15: 82126.2154 | HP15: 29554.14989 | HQ15: =p_1*Ex_1+p_2*Ex_2+p_3*Ex_3+p_4*Ex_4 -> 37927.1936 | HR15: 96499.40835 | HS15: 329.9058891 | HT15: 86040.80926 | HU15: 0 | HV15: 4244.569562 | HW15: 3076.198153 | HX15: 2697.568284 | HY15: 28.75011961 | HZ15: 1743.29458 | IA15: 952.0142168 | IB15: 1520.510645 | ID15: 103437.3181 | IE15: 74585.69762 | IG15: -2.910383046e-11 | IH15: -1.396983862e-09
A16: 2010 | B16: 7 | C16: 242625.8533 | D16: 110626.2772 | E16: 35352.28152 | F16: 48936.17122 | G16: 138253.9551 | H16: -90542.83179 | I16: 0.6472547904 | J16: 0.07725450398 | K16: 0.7713532217 | L16: 0.5745095295 | M16: 0.609500965 | N16: 0.9366430197 | O16: 0.4395142123 | P16: 0.6671526301 | Q16: 1.001286794 | R16: 1 | S16: 1.0363615 | T16: 1.024959829 | U16: 6294.140008 | V16: 89960.47345 | W16: 35974.06914 | X16: 115105.2545 | Y16: 10276.68227 | Z16: 94118.33736 | AA16: 75302.1967 | AB16: 168069.1234 | AC16: 343.6129898 | AD16: 90199.2188 | AE16: 27689.89327 | AF16: 26243.40681 | AG16: 94118.33736 | AH16: 117275.5597 | AI16: 209596.7227 | AJ16: 29059.61682 | AK16: 94172.12681 | AL16: 138932.502 | AM16: 205830.2919 | AN16: 7603.123883 | AO16: 94172.12681 | AP16: 87906.81573 | AQ16: 170502.2074 | AR16: 96611.41767 | AT16: 38016.14874 | AU16: 19973.42628 | AV16: 3607.782166 | AW16: 85042.08216 | AX16: 18936.67504 | AY16: 74066.96046 | AZ16: 6533.597821 | BA16: 10517.84772 | BB16: 17500.78861 | BC16: 27771.17104 | BD16: 97585.08759 | BE16: 3855.100387 | BF16: 511.6867163 | BG16: 734.8753625 | BH16: 753.5956762 | BI16: 886.2012072 | BJ16: 968.7414251 | BK16: 0 | BL16: 0 | BM16: 0 | BN16: 0 | BO16: 0 | BP16: 0 | BQ16: 41087.89665 | BR16: 2806.209505 | BS16: 5007.971282 | BT16: 7089.418858 | BU16: 9551.780708 | BV16: 16632.51629 | BW16: 65683.28019 | BX16: 2476.54223 | BY16: 3061.845346 | BZ16: 6166.61458 | CA16: 11464.53243 | CB16: 42513.74561 | CC16: 305.8479021 | CD16: 0 | CE16: 6953.445903 | CF16: 28092.98772 | CG16: 35352.28152 | CH16: 1219.40956 | CI16: 7111.960706 | CJ16: 7029.110207 | CK16: 19991.80105 | CL16: 1167.330689 | CM16: 6600.42757 | CN16: 6589.860739 | CO16: 18362.39906 | CP16: 534.9727222 | CQ16: 2104.470523 | CR16: 9703.536569 | CS16: 22243.25911 | CT16: 2215.919922 | CU16: 933.9604677 | CV16: 3349.432457 | CW16: 15355.69913 | CX16: 0.908366976 | CY16: 0.9999996587 | CZ16: 1.024577341 | DA16: 1.045570811 | DB16: 2.225465772 | DC16: 6929.071811 | DD16: 89960.50416 | DE16: 35111.13089 | DF16: 110088.4352 | DG16: 9.63214061 | DH16: 18285.59321 | DI16: 104143.1139 | DJ16: 93465.82865 | DK16: 244998.0444 | DL16: 17557.19233 | DM16: 100559.4705 | DN16: 89332.61482 | DO16: 232446.8158 | DP16: 0.2054874206 | DQ16: 0.8456894388 | DR16: 0.2119794107 | DS16: 0.3186404607 | DT16: 4.904062752 | DU16: 1.211565659 | DV16: 4.84838914 | DW16: 3.20802034 | DY16: 14790.4576 | DZ16: 7111.960706 | EA16: 0.02403521395 | EC16: 0.02745583528 | ED16: 0.001465072094 | EE16: 0.07088527528 | EF16: 0 | EG16: 0.1092872943 | EH16: 0.04617878772 | EI16: 0.05574701989 | EJ16: 0.02235983531 | EK16: =+EK15*(1+EK$7) -> 0.1429441676 | EL16: 0.1384574714 | EM16: 0.2007084131 | EN16: 0.009923257188 | EO16: =+EO15*(1+EO$7) -> 0.0400155925 | EP16: 0.08308240637 | EQ16: 1.035529397 | ER16: 1 | ES16: 1.021852129 | ET16: 1.021852129 | EU16: 1.072135352 | EV16: 1 | EW16: 1.072135352 | EX16: 1.072135352 | EY16: 14.50348006 | EZ16: 44.73491895 | FA16: 103.9601313 | FB16: 2.260576188 | FC16: 136.9457055 | FD16: 31.68341553 | FE16: 57.68181835 | FF16: 365.8100433 | FG16: 615.998894 | FH16: 1485.843398 | FI16: 233.3931885 | FJ16: 444.4801415 | FK16: 392.8881415 | FL16: 228.3426846 | FM16: 126.1665247 | FN16: 12.67336621 | FO16: 23.07272734 | FP16: 146.3240173 | FQ16: 246.3995576 | FR16: 594.337359 | FS16: 292.2534503 | FT16: 569.9696062 | FU16: 1008.982333 | FV16: 1093.001712 | FW16: 2343.292987 | FY16: 0 | FZ16: 0 | GA16: 0 | GB16: 18412.605 | GC16: 0 | GD16: 0 | GE16: 0 | GF16: 30523.56623 | GG16: 0 | GH16: 39147.7404 | GI16: 132.6185859 | GJ16: 0 | GK16: 3442.175594 | GL16: 55024.38641 | GM16: 39732.85459 | GN16: 774.179493 | GO16: 2.377371507 | GP16: 0.025 | GQ16: 1.188685754 | GR16: 0 | GS16: 0 | GT16: 0 | GU16: 0 | GV16: 0 | GX16: 0.49867596 | GY16: 1.021852129 | GZ16: 0.2092783722 | HA16: 0.109953435 | HB16: 0.3192318072 | HC16: 46640.192 | HE16: 8.643837646e-09 | HF16: 36306.70899 | HG16: 36306.70899 | HH16: 46143.79382 | HI16: -12505.61753 | HJ16: 52733.8459 | HK16: -39236.46435 | HL16: -10828.84886 | HM16: 7791.833629 | HN16: 20297.45116 | HO16: 85042.08216 | HP16: 32308.23626 | HQ16: =p_1*Ex_1+p_2*Ex_2+p_3*Ex_3+p_4*Ex_4 -> 39285.1812 | HR16: 100442.095 | HS16: 351.121665 | HT16: 92170.26374 | HU16: 0 | HV16: 4494.539002 | HW16: 3297.294627 | HX16: 2859.422381 | HY16: 30.49224782 | HZ16: 1805.189734 | IA16: 1019.030436 | IB16: 1639.826584 | ID16: 110626.2772 | IE16: 74585.69762 | IG16: 0 | IH16: -1.746229827e-09
A17: 2011 | B17: 8 | C17: 256965.5059 | D17: 118402.9739 | E17: 38227.36985 | F17: 53340.42663 | G17: 143709.2174 | H17: -96714.48189 | I17: 0.6478060158 | J17: 0.07743730747 | K17: 0.7758583454 | L17: 0.5768637073 | M17: 0.6083715802 | N17: 0.936457463 | O17: 0.4435543713 | P17: 0.6695649955 | Q17: 1.002131501 | R17: 1 | S17: 1.042459775 | T17: 1.029155124 | U17: 6680.805065 | V17: 93393.14654 | W17: 38522.32634 | X17: 124236.2018 | Y17: 10928.25473 | Z17: 97729.02536 | AA17: 79939.62798 | AB17: 180755.401 | AC17: 364.6478264 | AD17: 96349.83406 | AE17: 29555.22074 | AF17: 27930.86068 | AG17: 97729.02536 | AH17: 125224.5872 | AI17: 226354.4187 | AJ17: 30902.08365 | AK17: 97784.87835 | AL17: 147481.6259 | AM17: 221380.7136 | AN17: 8110.417687 | AO17: 97784.87835 | AP17: 92889.0432 | AQ17: 183613.594 | AR17: 104044.2166 | AT17: 41145.95961 | AU17: 21175.31787 | AV17: 3839.793694 | AW17: 88287.08138 | AX17: 20220.28824 | AY17: 79984.13462 | AZ17: 6950.060768 | BA17: 11263.9162 | BB17: 18810.08124 | BC17: 29879.64076 | BD17: 105087.7452 | BE17: 4130.990021 | BF17: 543.0176887 | BG17: 785.341605 | BH17: 808.4995718 | BI17: 952.0875039 | BJ17: 1042.043652 | BK17: 0 | BL17: 0 | BM17: 0 | BN17: 0 | BO17: 0 | BP17: 0 | BQ17: 43907.35124 | BR17: 2969.072435 | BS17: 5333.63678 | BT17: 7577.288668 | BU17: 10218.83396 | BV17: 17808.5194 | BW17: 70364.63263 | BX17: 2622.995301 | BY17: 3264.807959 | BZ17: 6599.624453 | CA17: 12283.25002 | CB17: 45593.95489 | CC17: 330.7215367 | CD17: 0 | CE17: 7518.947485 | CF17: 30377.70082 | CG17: 38227.36985 | CH17: 1274.336603 | CI17: 7663.137661 | CJ17: 7509.389809 | CK17: 21780.50577 | CL17: 1219.40956 | CM17: 7111.960706 | CN17: 7029.110207 | CO17: 19991.80105 | CP17: 566.5433681 | CQ17: 2173.902492 | CR17: 10309.73733 | CS17: 23900.75868 | CT17: 2358.422696 | CU17: 969.5981299 | CV17: 3576.472088 | CW17: 16582.45861 | CX17: 0.908303566 | CY17: 0.9999996586 | CZ17: 1.030301312 | DA17: 1.050717208 | DB17: 2.189328029 | DC17: 7355.255792 | DD17: 93393.17842 | DE17: 37389.37911 | DF17: 118239.4282 | DG17: 9.498266097 | DH17: 19047.86294 | DI17: 108130.7812 | DJ17: 97924.62857 | DK17: 258864.8944 | DL17: 18285.59321 | DM17: 104143.1139 | DN17: 93465.82865 | DO17: 244998.0444 | DP17: 0.209990108 | DQ17: 0.8477476623 | DR17: 0.2163388324 | DS17: 0.3264684614 | DT17: 4.804765755 | DU17: 1.21280328 | DV17: 4.770184565 | DW17: 3.141449535 | DY17: 16269.50335 | DZ17: 7663.137661 | EA17: 0.02427556609 | EC17: 0.02882862704 | ED17: 0.001479722815 | EE17: 0.08070053689 | EF17: 0 | EG17: 0.1249857063 | EH17: 0.05235447864 | EI17: 0.05602575499 | EJ17: 0.02224418472 | EK17: =+EK16*(1+EK$7) -> 0.1450883301 | EL17: 0.1391497588 | EM17: 0.1987013289 | EN17: 0.009921291309 | EO17: =+EO16*(1+EO$7) -> 0.03961543657 | EP17: 0.08225158231 | EQ17: 1.040707044 | ER17: 1 | ES17: 1.025690493 | ET17: 1.025690493 | EU17: 1.082856706 | EV17: 1 | EW17: 1.082856706 | EX17: 1.082856706 | EY17: 15.37368886 | EZ17: 47.41901409 | FA17: 110.1977391 | FB17: 2.396210759 | FC17: 145.1624478 | FD17: 33.58442046 | FE17: 61.14272745 | FF17: 387.7586459 | FG17: 652.9588276 | FH17: 1574.994001 | FI17: 247.3967798 | FJ17: 471.14895 | FK17: 416.46143 | FL17: 242.0432456 | FM17: 133.7365162 | FN17: 13.43376818 | FO17: 24.45709098 | FP17: 155.1034584 | FQ17: 261.183531 | FR17: 629.9976006 | FS17: 309.7886574 | FT17: 604.1677825 | FU17: 1069.521273 | FV17: 1158.581815 | FW17: 2483.890566 | FY17: 0 | FZ17: 0 | GA17: 0 | GB17: 20069.73945 | GC17: 0 | GD17: 0 | GE17: 0 | GF17: 33270.68719 | GG17: 0 | GH17: 40649.57607 | GI17: 140.575701 | GJ17: 0 | GK17: 3648.70613 | GL17: 57135.30227 | GM17: 41322.16878 | GN17: 812.8884676 | GO17: 2.436805795 | GP17: 0.025 | GQ17: 1.218402898 | GR17: 0 | GS17: 0 | GT17: 0 | GU17: 0 | GV17: 0 | GX17: 0.499771589 | GY17: 1.025690493 | GZ17: 0.2139327299 | HA17: 0.1100981385 | HB17: 0.3240308684 | HC17: 44688.94273 | HE17: 1.091393642e-08 | HF17: 39432.99324 | HG17: 39432.99324 | HH17: 49663.87918 | HI17: -13860.03723 | HJ17: 52962.20772 | HK17: -40742.65388 | HL17: -8590.402563 | HM17: 8305.624894 | HN17: 22165.66212 | HO17: 88287.08138 | HP17: 35324.87366 | HQ17: =p_1*Ex_1+p_2*Ex_2+p_3*Ex_3+p_4*Ex_4 -> 40796.12059 | HR17: 104705.0727 | HS17: 374.0158087 | HT17: 98825.10876 | HU17: 0 | HV17: 4768.149513 | HW17: 3537.47538 | HX17: 3030.987723 | HY17: 32.36546429 | HZ17: 1874.071388 | IA17: 1091.730826 | IB17: 1769.981834 | ID17: 118402.9739 | IE17: 74585.69762 | IG17: -5.820766091e-11 | IH17: -2.211891115e-09
A18: 2012 | B18: 9 | C18: 272580.0937 | D18: 126817.3644 | E18: 41368.87684 | F18: 58141.06503 | G18: 149634.4314 | H18: -103381.644 | I18: 0.6484667445 | J18: 0.07762716622 | K18: 0.7805379967 | L18: 0.5793087647 | M18: 0.6073274616 | N18: 0.9362647448 | O18: 0.4477150853 | P18: 0.6720697904 | Q18: 1.00314552 | R18: 1 | S18: 1.048793188 | T18: 1.033512362 | U18: 7096.769078 | V18: 97197.62258 | W18: 41287.10183 | X18: 134199.4617 | Y18: 11628.63349 | Z18: 101731.0641 | AA18: 84921.36322 | AB18: 194531.8399 | AC18: 387.2314331 | AD18: 102994.4126 | AE18: 31573.96853 | AF18: 29750.98954 | AG18: 101731.0641 | AH18: 133830.3017 | AI18: 244652.6485 | AJ18: 32882.56117 | AK18: 101789.2043 | AL18: 156665.0828 | AM18: 238268.0951 | AN18: 8655.757841 | AO18: 101789.2043 | AP18: 98212.85817 | AQ18: 197854.0779 | AR18: 112145.0532 | AT18: 44572.82071 | AU18: 22467.71553 | AV18: 4090.04886 | AW18: 91883.55605 | AX18: 21609.95139 | AY18: 86445.05291 | AZ18: 7399.318217 | BA18: 12073.78486 | BB18: 20235.15622 | BC18: 32176.21141 | BD18: 113264.6258 | BE18: 4430.229269 | BF18: 576.731191 | BG18: 839.9988248 | BH18: 868.1208133 | BI18: 1023.66865 | BJ18: 1121.70979 | BK18: 0 | BL18: 0 | BM18: 0 | BN18: 0 | BO18: 0 | BP18: 0 | BQ18: 46951.9414 | BR18: 3143.357969 | BS18: 5684.378001 | BT18: 8104.160085 | BU18: 10939.75466 | BV18: 19080.29068 | BW18: 75435.1937 | BX18: 2780.081874 | BY18: 3483.914341 | BZ18: 7068.358099 | CA18: 13170.15303 | CB18: 48932.68635 | CC18: 357.9000746 | CD18: 0 | CE18: 8136.850997 | CF18: 32874.12577 | CG18: 41368.87684 | CH18: 1332.293203 | CI18: 8257.03083 | CJ18: 8035.339611 | CK18: 23744.21319 | CL18: 1274.336603 | CM18: 7663.137661 | CN18: 7509.389809 | CO18: 21780.50577 | CP18: 600.4650072 | CQ18: 2251.202868 | CR18: 10963.46884 | CS18: 25702.88773 | CT18: 2512.130814 | CU18: 1009.095812 | CV18: 3822.269349 | CW18: 17921.94813 | CX18: 0.9085235157 | CY18: 0.9999996585 | CZ18: 1.035726244 | DA18: 1.054774295 | DB18: 2.154937507 | DC18: 7811.321287 | DD18: 97197.65577 | DE18: 39862.94841 | DF18: 127230.5006 | DG18: 9.371221149 | DH18: 19846.00297 | DI18: 112549.9955 | DJ18: 102741.0911 | DK18: 274173.7778 | DL18: 19047.86294 | DM18: 108130.7812 | DN18: 97924.62857 | DO18: 258864.8944 | DP18: 0.2147248157 | DQ18: 0.8497446796 | DR18: 0.2206794318 | DS18: 0.33393888 | DT18: 4.704704082 | DU18: 1.214130326 | DV18: 4.695748738 | DW18: 3.081448561 | DY18: 17896.45369 | DZ18: 8257.03083 | EA18: 0.02451832175 | EC18: 0.03027005839 | ED18: 0.001494520043 | EE18: 0.09042238519 | EF18: 0 | EG18: 0.1406896341 | EH18: 0.05841818904 | EI18: 0.05630588376 | EJ18: 0.02212896216 | EK18: =+EK17*(1+EK$7) -> 0.1472646551 | EL18: 0.1398455076 | EM18: 0.1967143157 | EN18: 0.009919249557 | EO18: =+EO17*(1+EO$7) -> 0.03921928221 | EP18: 0.08142906649 | EQ18: 1.045910579 | ER18: 1 | ES18: 1.029706196 | ET18: 1.029706196 | EU18: 1.093685273 | EV18: 1 | EW18: 1.093685273 | EX18: 1.093685273 | EY18: 16.2961102 | EZ18: 50.26415493 | FA18: 116.8096035 | FB18: 2.539983405 | FC18: 153.8721947 | FD18: 35.59948568 | FE18: 64.8112911 | FF18: 411.0241647 | FG18: 692.1363573 | FH18: 1669.493641 | FI18: 262.2405866 | FJ18: 499.417887 | FK18: 441.4491158 | FL18: 256.5658404 | FM18: 141.7607071 | FN18: 14.23979427 | FO18: 25.92451644 | FP18: 164.4096659 | FQ18: 276.8545429 | FR18: 667.7974566 | FS18: 328.3759768 | FT18: 640.4178495 | FU18: 1133.69255 | FV18: 1228.096724 | FW18: 2632.924 | FY18: 0 | FZ18: 0 | GA18: 0 | GB18: 21876.016 | GC18: 0 | GD18: 0 | GE18: 0 | GF18: 36265.04903 | GG18: 0 | GH18: 42314.19083 | GI18: 149.0102431 | GJ18: 0 | GK18: 3867.628497 | GL18: 59475.01345 | GM18: 42975.05553 | GN18: 853.532891 | GO18: 2.49772594 | GP18: 0.025 | GQ18: 1.24886297 | GR18: 0 | GS18: 0 | GT18: 0 | GU18: 0 | GV18: 0 | GX18: 0.5008569766 | GY18: 1.029706196 | GZ18: 0.2184635816 | HA18: 0.110120417 | HB18: 0.3285839986 | HC18: 42417.06823 | HE18: 1.375155989e-08 | HF18: 42868.71514 | HG18: 42868.71514 | HH18: 53498.8503 | HI18: -15344.59947 | HJ18: 53253.95357 | HK18: -42411.5192 | HL18: -6127.970066 | HM18: 8865.967646 | HN18: 24210.56711 | HO18: 91883.55605 | HP18: 38629.60248 | HQ18: =p_1*Ex_1+p_2*Ex_2+p_3*Ex_3+p_4*Ex_4 -> 42470.47176 | HR18: 109308.8899 | HS18: 398.7346061 | HT18: 106053.9848 | HU18: 0 | HV18: 5067.448248 | HW18: 3798.519397 | HX18: 3212.846987 | HY18: 34.38062089 | HZ18: 1950.413818 | IA18: 1170.645154 | IB18: 1912.008656 | ID18: 126817.3644 | IE18: 74585.69762 | IG18: -5.820766091e-11 | IH18: -2.677552402e-09
A19: 2013 | B19: 10 | C19: 289573.5766 | D19: 135923.9068 | E19: 44802.81717 | F19: 63373.76088 | G19: 156060.1276 | H19: -110587.036 | I19: 0.64923793 | J19: 0.07782415444 | K19: 0.7853945806 | L19: 0.581845607 | M19: 0.6063689836 | N19: 0.9360647897 | O19: 0.4519982958 | P19: 0.6746677704 | Q19: 1.004330323 | R19: 1 | S19: 1.055364989 | T19: 1.038033154 | U19: 7544.476703 | V19: 101399.4646 | W19: 44288.61723 | X19: 145074.6168 | Y19: 12381.77965 | Z19: 106151.5567 | AA19: 90275.43975 | AB19: 209495.5291 | AC19: 411.4892979 | AD19: 110175.5467 | AE19: 33760.06295 | AF19: 31715.27205 | AG19: 106151.5567 | AH19: 143152.6252 | AI19: 264640.1581 | AJ19: 35012.25034 | AK19: 106212.2233 | AL19: 166534.5115 | AM19: 256611.532 | AN19: 9242.160176 | AO19: 106212.2233 | AP19: 103904.5596 | AQ19: 213324.7761 | AR19: 120977.6754 | AT19: 48325.93806 | AU19: 23857.60317 | AV19: 4360.126203 | AW19: 95855.67161 | AX19: 23115.34056 | AY19: 93502.20862 | AZ19: 7884.056984 | BA19: 12953.18803 | BB19: 21786.80525 | BC19: 34678.61371 | BD19: 122179.8702 | BE19: 4754.865389 | BF19: 613.0117922 | BG19: 899.2058326 | BH19: 932.8784367 | BI19: 1101.455092 | BJ19: 1208.314235 | BK19: 0 | BL19: 0 | BM19: 0 | BN19: 0 | BO19: 0 | BP19: 0 | BQ19: 50240.27773 | BR19: 3329.871464 | BS19: 6062.175303 | BT19: 8673.249325 | BU19: 11719.0481 | BV19: 20455.93354 | BW19: 80928.76371 | BX19: 2948.590999 | BY19: 3720.496419 | BZ19: 7575.883317 | CA19: 14131.16736 | CB19: 52552.62562 | CC19: 387.6085799 | CD19: 0 | CE19: 8812.27327 | CF19: 35602.93532 | CG19: 44802.81717 | CH19: 1393.47375 | CI19: 8896.950719 | CJ19: 8612.217092 | CK19: 25900.17561 | CL19: 1332.293203 | CM19: 8257.03083 | CN19: 8035.339611 | CO19: 23744.21319 | CP19: 636.9307341 | CQ19: 2336.83792 | CR19: 11668.86005 | CS19: 27662.89208 | CT19: 2678.013824 | CU19: 1052.718908 | CV19: 4088.535698 | CW19: 19385.05069 | CX19: 0.9090164483 | CY19: 0.9999996585 | CZ19: 1.040818093 | DA19: 1.057763585 | DB19: 2.122194309 | DC19: 8299.604168 | DD19: 101399.4993 | DE19: 42551.7365 | DF19: 137152.2133 | DG19: 9.251207935 | DH19: 20682.1461 | DI19: 117430.5264 | DJ19: 107951.0507 | DK19: 291063.6466 | DL19: 19846.00297 | DM19: 112549.9955 | DN19: 102741.0911 | DO19: 274173.7778 | DP19: 0.2196979517 | DQ19: 0.8516719279 | DR19: 0.2249863254 | DS19: 0.341032645 | DT19: 4.604112497 | DU19: 1.215558646 | DV19: 4.625148553 | DW19: 3.027566644 | DY19: 19686.09906 | DZ19: 8896.950719 | EA19: 0.02476350497 | EC19: 0.03178356131 | ED19: 0.001509465243 | EE19: 0.1000456465 | EF19: 0 | EG19: 0.1563937831 | EH19: 0.06436787402 | EI19: 0.05658741318 | EJ19: 0.02201416533 | EK19: =+EK18*(1+EK$7) -> 0.1494736249 | EL19: 0.1405447351 | EM19: 0.1947471725 | EN19: 0.009917131134 | EO19: =+EO18*(1+EO$7) -> 0.03882708939 | EP19: 0.08061477582 | EQ19: 1.051140132 | ER19: 1 | ES19: 1.033898904 | ET19: 1.033898904 | EU19: 1.104622125 | EV19: 1 | EW19: 1.104622125 | EX19: 1.104622125 | EY19: 17.27387681 | EZ19: 53.28000423 | FA19: 123.8181797 | FB19: 2.692382409 | FC19: 163.1045264 | FD19: 37.73545483 | FE19: 68.69996856 | FF19: 435.6856146 | FG19: 733.6645387 | FH19: 1769.66326 | FI19: 277.9750218 | FJ19: 529.3829603 | FK19: 467.9360627 | FL19: 271.9597908 | FM19: 150.2663496 | FN19: 15.09418193 | FO19: 27.47998743 | FP19: 174.2742458 | FQ19: 293.4658155 | FR19: 707.865304 | FS19: 348.0785354 | FT19: 678.8429205 | FU19: 1201.714103 | FV19: 1301.782527 | FW19: 2790.89944 | FY19: 0 | FZ19: 0 | GA19: 0 | GB19: 23844.85744 | GC19: 0 | GD19: 0 | GE19: 0 | GF19: 39528.90345 | GG19: 0 | GH19: 44152.85802 | GI19: 157.9508577 | GJ19: 0 | GK19: 4099.686207 | GL19: 62059.36526 | GM19: 44694.05775 | GN19: 896.2095355 | GO19: 2.560169088 | GP19: 0.025 | GQ19: 1.280084544 | GR19: 0 | GS19: 0 | GT19: 0 | GU19: 0 | GV19: 0 | GX19: 0.5019327694 | GY19: 1.033898904 | GZ19: 0.2228713375 | HA19: 0.1100273712 | HB19: 0.3328987088 | HC19: 39797.47945 | HE19: 1.71494321e-08 | HF19: 46646.47899 | HG19: 46646.47899 | HH19: 57678.50859 | HI19: -16972.20953 | HJ19: 53605.17974 | HK19: -44254.28446 | HL19: -3410.715355 | HM19: 9477.063238 | HN19: 26449.27277 | HO19: 95855.67161 | HP19: 42250.49187 | HQ19: =p_1*Ex_1+p_2*Ex_2+p_3*Ex_3+p_4*Ex_4 -> 44319.55383 | HR19: 114275.6434 | HS19: 425.438334 | HT19: 113910.3769 | HU19: 0 | HV19: 5394.679336 | HW19: 4082.383902 | HX19: 3405.617806 | HY19: 36.54956087 | HZ19: 2034.729983 | IA19: 1256.356806 | IB19: 2067.042986 | ID19: 135923.9068 | IE19: 74585.69762 | IG19: -8.003553376e-11 | IH19: -3.492459655e-09
A20: 2014 | B20: 11 | C20: 308059.1768 | D20: 145781.9895 | E20: 48557.89354 | F20: 69077.39936 | G20: 163019.2061 | H20: -118377.3118 | I20: 0.6501205545 | J20: 0.07802834818 | K20: 0.7904305588 | L20: 0.584475162 | M20: 0.6054965391 | N20: 0.9358575206 | O20: 0.4564059873 | P20: 0.6773597111 | Q20: 1.005687427 | R20: 1 | S20: 1.062178503 | T20: 1.042719151 | U20: 8026.597499 | V20: 106026.3098 | W20: 47549.1453 | X20: 156949.2733 | Y20: 13192.0032 | Z20: 111019.8219 | AA20: 96032.38981 | AB20: 225752.6127 | AC20: 437.5580283 | AD20: 117939.7537 | AE20: 36128.81208 | AF20: 33836.27639 | AG20: 111019.8219 | AH20: 153257.4522 | AI20: 286480.8461 | AJ20: 37303.33858 | AK20: 111083.2707 | AL20: 177146.1456 | AM20: 276541.2283 | AN20: 9872.896546 | AO20: 111083.2707 | AP20: 109992.7121 | AQ20: 230136.2603 | AR20: 130612.2925 | AT20: 52437.53665 | AU20: 25352.54652 | AV20: 4651.754108 | AW20: 100229.5542 | AX20: 24747.09595 | AY20: 101213.4424 | AZ20: 8407.202495 | BA20: 13908.414 | BB20: 23476.89374 | BC20: 37406.35829 | BD20: 131904.1037 | BE20: 5107.133794 | BF20: 652.0591445 | BG20: 963.3537034 | BH20: 1003.230373 | BI20: 1186.005062 | BJ20: 1302.485512 | BK20: 0 | BL20: 0 | BM20: 0 | BN20: 0 | BO20: 0 | BP20: 0 | BQ20: 53792.60431 | BR20: 3529.479845 | BS20: 6469.176724 | BT20: 9288.054336 | BU20: 12561.61844 | BV20: 21944.27496 | BW20: 86882.25145 | BX20: 3129.375103 | BY20: 3976.003791 | BZ20: 8125.547644 | CA20: 15172.76418 | CB20: 56478.56073 | CC20: 420.0953723 | CD20: 0 | CE20: 9550.859841 | CF20: 38586.93832 | CG20: 48557.89354 | CH20: 1458.086694 | CI20: 9586.4644 | CJ20: 9245.991225 | CK20: 28267.35122 | CL20: 1393.47375 | CM20: 8896.950719 | CN20: 8612.217092 | CO20: 25900.17561 | CP20: 676.1512163 | CQ20: 2431.310992 | CR20: 12430.43467 | CS20: 29795.30582 | CT20: 2857.133309 | CU20: 1100.754343 | CV20: 4377.153128 | CW20: 20983.75794 | CX20: 0.9097727456 | CY20: 0.9999996584 | CZ20: 1.045542199 | DA20: 1.059716382 | DB20: 2.090998099 | DC20: 8822.640091 | DD20: 106026.346 | DE20: 45477.97819 | DF20: 148104.9797 | DG20: 9.138426525 | DH20: 21558.5662 | DI20: 122804.5613 | DJ20: 113594.6139 | DK20: 309687.231 | DL20: 20682.1461 | DM20: 117430.5264 | DN20: 107951.0507 | DO20: 291063.6466 | DP20: 0.2249164127 | DQ20: 0.8535221395 | DR20: 0.2292436784 | DS20: 0.3477364612 | DT20: 4.503210526 | DU20: 1.217098238 | DV20: 4.558449316 | DW20: 2.979368487 | DY20: 21654.70897 | DZ20: 9586.4644 | EA20: 0.02501114002 | EC20: 0.03337273938 | ED20: 0.001524559896 | EE20: 0.1095651748 | EF20: 0 | EG20: 0.1720928866 | EH20: 0.07020156292 | EI20: 0.05687035025 | EJ20: 0.02189979186 | EK20: =+EK19*(1+EK$7) -> 0.1517157293 | EL20: 0.1412474588 | EM20: 0.1927997008 | EN20: 0.009914935224 | EO20: =+EO19*(1+EO$7) -> 0.03843881849 | EP20: 0.07980862806 | EQ20: 1.056395833 | ER20: 1 | ES20: 1.038268468 | ET20: 1.038268468 | EU20: 1.115668347 | EV20: 1 | EW20: 1.115668347 | EX20: 1.115668347 | EY20: 18.31030942 | EZ20: 56.47680448 | FA20: 131.2472705 | FB20: 2.853925354 | FC20: 172.8907979 | FD20: 39.99958211 | FE20: 72.82196668 | FF20: 461.8267515 | FG20: 777.684411 | FH20: 1875.843056 | FI20: 294.6535231 | FJ20: 561.1459379 | FK20: 496.0122265 | FL20: 288.2773783 | FM20: 159.2823305 | FN20: 15.99983285 | FO20: 29.12878667 | FP20: 184.7307006 | FQ20: 311.0737644 | FR20: 750.3372222 | FS20: 368.9632475 | FT20: 719.5734957 | FU20: 1273.816949 | FV20: 1379.889479 | FW20: 2958.353406 | FY20: 0 | FZ20: 0 | GA20: 0 | GB20: 25990.89461 | GC20: 0 | GD20: 0 | GE20: 0 | GF20: 43086.50476 | GG20: 0 | GH20: 46177.77248 | GI20: 167.4279091 | GJ20: 0 | GK20: 4345.66738 | GL20: 64905.49825 | GM20: 46481.82006 | GN20: 941.0200123 | GO20: 2.624173316 | GP20: 0.025 | GQ20: 1.312086658 | GR20: 0 | GS20: 0 | GT20: 0 | GU20: 0 | GV20: 0 | GX20: 0.5029995521 | GY20: 1.038268468 | GZ20: 0.227157846 | HA20: 0.109826476 | HB20: 0.3369843219 | HC20: 36800.27483 | HE20: 2.103479346e-08 | HF20: 50802.54222 | HG20: 50802.54222 | HH20: 62235.65657 | HI20: -18757.04798 | HJ20: 54011.16018 | HK20: -46283.08721 | HL20: -404.1393453 | HM20: 10143.52698 | HN20: 28900.57496 | HO20: 100229.5542 | HP20: 46218.39397 | HQ20: =p_1*Ex_1+p_2*Ex_2+p_3*Ex_3+p_4*Ex_4 -> 46355.6108 | HR20: 119629.091 | HS20: 454.3027036 | HT20: 122453.1274 | HU20: 0 | HV20: 5752.303646 | HW20: 4391.223329 | HX20: 3609.954874 | HY20: 38.88521701 | HZ20: 2127.574462 | IA20: 1349.5086 | IB20: 2236.335368 | ID20: 145781.9895 | IE20: 74585.69762 | IG20: -1.236912794e-10 | IH20: -4.074536264e-09
A21: 2015 | B21: 12 | C21: 328160.2353 | D21: 156456.4035 | E21: 52665.79695 | F21: 75294.3653 | G21: 170547.1138 | H21: -126803.4442 | I21: 0.65111563 | J21: 0.07823982533 | K21: 0.7956484508 | L21: 0.5871983805 | M21: 0.6047105396 | N21: 0.9356428584 | O21: 0.4609401882 | P21: 0.6801464075 | Q21: 1.007218396 | R21: 1 | S21: 1.069237134 | T21: 1.047572044 | U21: 8546.048409 | V21: 111108.0266 | W21: 51093.23309 | X21: 169919.9108 | Y21: 14063.99613 | Z21: 116367.5638 | AA21: 102225.4807 | AB21: 243419.1773 | AC21: 465.5864066 | AD21: 126337.8578 | AE21: 38697.05342 | AF21: 36127.77225 | AG21: 116367.5638 | AH21: 164217.2899 | AI21: 310355.3863 | AJ21: 39769.09355 | AK21: 116434.0689 | AL21: 188561.2555 | AM21: 298199.5845 | AN21: 10551.51825 | AO21: 116434.0689 | AP21: 116508.3615 | AQ21: 248409.4847 | AR21: 141126.2669 | AT21: 56943.18714 | AU21: 26960.74462 | AV21: 4966.826203 | AW21: 105033.4393 | AX21: 26516.92537 | AY21: 109642.5153 | AZ21: 8971.941447 | BA21: 14946.36183 | BB21: 25318.47394 | BC21: 40380.92455 | BD21: 142515.1292 | BE21: 5489.476206 | BF21: 694.0892895 | BG21: 1032.868829 | BH21: 1079.677228 | BI21: 1277.929253 | BJ21: 1404.911605 | BK21: 0 | BL21: 0 | BM21: 0 | BN21: 0 | BO21: 0 | BP21: 0 | BQ21: 57630.95099 | BR21: 3743.116719 | BS21: 6907.713186 | BT21: 9952.381031 | BU21: 13472.80617 | BV21: 23554.93388 | BW21: 93335.9763 | BX21: 3323.355471 | BY21: 4252.014783 | BZ21: 8721.005339 | CA21: 16302.01292 | CB21: 60737.58778 | CC21: 455.6346242 | CD21: 0 | CE21: 10358.84402 | CF21: 41851.3183 | CG21: 52665.79695 | CH21: 1526.355684 | CI21: 10329.41539 | CJ21: 9943.452634 | CK21: 30866.57324 | CL21: 1458.086694 | CM21: 9586.4644 | CN21: 9245.991225 | CO21: 28267.35122 | CP21: 718.3564336 | CQ21: 2535.165056 | CR21: 13253.15196 | CS21: 32116.08359 | CT21: 3050.652346 | CU21: 1153.51221 | CV21: 4690.192459 | CW21: 22731.2889 | CX21: 0.9107835042 | CY21: 0.9999996583 | CZ21: 1.049863337 | DA21: 1.060672611 | DB21: 2.061249021 | DC21: 9383.183127 | DD21: 111108.0646 | DE21: 48666.55622 | DF21: 160200.1496 | DG21: 9.033077835 | DH21: 22477.68874 | DI21: 128706.8889 | DJ21: 119716.7532 | DK21: 330212.4014 | DL21: 21558.5662 | DM21: 122804.5613 | DN21: 113594.6139 | DO21: 309687.231 | DP21: 0.2303875943 | DQ21: 0.8552893979 | DR21: 0.2334347066 | DS21: 0.3540427384 | DT21: 4.402202788 | DU21: 1.218757197 | DV21: 4.495716154 | DW21: 2.936435248 | DY21: 23820.17986 | DZ21: 10329.41539 | EA21: 0.02526125142 | EC21: 0.03504137635 | ED21: 0.001539805495 | EE21: 0.1189758597 | EF21: 0 | EG21: 0.1877817138 | EH21: 0.07591736091 | EI21: 0.057154702 | EJ21: 0.0217858394 | EK21: =+EK20*(1+EK$7) -> 0.1539914652 | EL21: 0.1419536961 | EM21: 0.1908717038 | EN21: 0.009912660986 | EO21: =+EO20*(1+EO$7) -> 0.03805443031 | EP21: 0.07901054178 | EQ21: 1.061677812 | ER21: 1 | ES21: 1.042814953 | ET21: 1.042814953 | EU21: 1.12682503 | EV21: 1 | EW21: 1.12682503 | EX21: 1.12682503 | EY21: 19.40892798 | EZ21: 59.86541275 | FA21: 139.1221067 | FB21: 3.025160875 | FC21: 183.2642458 | FD21: 42.39955704 | FE21: 77.19128468 | FF21: 489.5363565 | FG21: 824.3454757 | FH21: 1988.393639 | FI21: 312.3327345 | FJ21: 594.8146941 | FK21: 525.7729601 | FL21: 305.574021 | FM21: 168.8392704 | FN21: 16.95982282 | FO21: 30.87651387 | FP21: 195.8145426 | FQ21: 329.7381903 | FR21: 795.3574556 | FS21: 391.1010424 | FT21: 762.7479054 | FU21: 1350.245966 | FV21: 1462.682848 | FW21: 3135.854611 | FY21: 0 | FZ21: 0 | GA21: 0 | GB21: 28330.07512 | GC21: 0 | GD21: 0 | GE21: 0 | GF21: 46964.29018 | GG21: 0 | GH21: 48402.12128 | GI21: 177.4735837 | GJ21: 0 | GK21: 4606.407422 | GL21: 68031.94761 | GM21: 48341.09286 | GN21: 988.0710129 | GO21: 2.689777648 | GP21: 0.025 | GQ21: 1.344888824 | GR21: 0 | GS21: 0 | GT21: 0 | GU21: 0 | GV21: 0 | GX21: 0.5040578483 | GY21: 1.042814953 | GZ21: 0.2313261907 | HA21: 0.1095254176 | HB21: 0.3408516083 | HC21: 33392.4611 | HE21: 2.590968506e-08 | HF21: 55377.25533 | HG21: 55377.25533 | HH21: 67206.41726 | HI21: -20714.69721 | HJ21: 54466.21534 | HK21: -48511.04801 | HL21: 2930.367948 | HM21: 10870.43118 | HN21: 31585.12838 | HO21: 105033.4393 | HP21: 50567.22399 | HQ21: =p_1*Ex_1+p_2*Ex_2+p_3*Ex_3+p_4*Ex_4 -> 48591.88262 | HR21: 125394.7731 | HS21: 485.5204669 | HT21: 131747.0073 | HU21: 0 | HV21: 6143.020713 | HW21: 4727.410463 | HX21: 3826.552167 | HY21: 41.4017206 | HZ21: 2229.546615 | IA21: 1450.809274 | IB21: 2421.263104 | ID21: 156456.4035 | IE21: 74585.69762 | IG21: -1.236912794e-10 | IH21: -5.355104804e-09
A22: 2016 | B22: 13 | C22: 350011.1551 | D22: 168017.8649 | E22: 57161.54491 | F22: 82070.85818 | G22: 178682.0355 | H22: -135921.1484 | I22: 0.652224198 | J22: 0.07845866568 | K22: 0.8010508346 | L22: 0.5900162363 | M22: 0.6040114151 | N22: 0.9354207221 | O22: 0.4656029713 | P22: 0.6830286751 | Q22: 1.008924837 | R22: 1 | S22: 1.076544363 | T22: 1.052593566 | U22: 9106.018752 | V22: 116676.8853 | W22: 54947.95151 | X22: 184092.8307 | Y22: 15002.86916 | Z22: 122229.0555 | AA22: 108890.9807 | AB22: 262622.2327 | AC22: 495.7365576 | AD22: 135425.4118 | AE22: 41483.31883 | AF22: 38604.85541 | AG22: 122229.0555 | AH22: 176111.9743 | AI22: 336463.0388 | AJ22: 42423.96695 | AK22: 122298.9105 | AL22: 200846.6388 | AM22: 321742.4013 | AN22: 11281.88188 | AO22: 122298.9105 | AP22: 123485.2736 | AQ22: 268276.8136 | AR22: 152604.8856 | AT22: 61882.17032 | AU22: 28691.08653 | AV22: 5307.418498 | AW22: 110297.8329 | AX22: 28437.71974 | AY22: 118859.7474 | AZ22: 9581.746886 | BA22: 16074.60464 | BB22: 27325.91082 | BC22: 43625.97126 | BD22: 154098.6992 | BE22: 5904.560726 | BF22: 739.3360953 | BG22: 1108.216289 | BH22: 1162.766464 | BI22: 1377.896006 | BJ22: 1516.345872 | BK22: 0 | BL22: 0 | BM22: 0 | BN22: 0 | BO22: 0 | BP22: 0 | BQ22: 61779.30164 | BR22: 3971.787997 | BS22: 7380.315258 | BT22: 10670.37224 | BU22: 14458.42942 | BV22: 25298.39672 | BW22: 100334.0026 | BX22: 3531.528265 | BY22: 4550.248671 | BZ22: 9366.247227 | CA22: 17526.63994 | CB22: 65359.33848 | CC22: 494.5292875 | CD22: 0 | CE22: 11243.1134 | CF22: 45423.90222 | CG22: 57161.54491 | CH22: 1598.520816 | CI22: 11129.94508 | CJ22: 10712.34298 | CK22: 33720.73603 | CL22: 1526.355684 | CM22: 10329.41539 | CN22: 9943.452634 | CO22: 30866.57324 | CP22: 763.7976082 | CQ22: 2648.98544 | CR22: 14142.4522 | CS22: 34642.74769 | CT22: 3259.846033 | CU22: 1211.327533 | CV22: 5029.933781 | CW22: 24642.2225 | CX22: 0.9120405 | CY22: 0.9999996582 | CZ22: 1.053745781 | DA22: 1.060679529 | DB22: 2.03284852 | DC22: 9984.226306 | DD22: 116676.9252 | DE22: 52145.35849 | DF22: 173561.2177 | DG22: 8.935366611 | DH22: 23442.1022 | DI22: 135175.0976 | DJ22: 126367.9952 | DK22: 352823.6646 | DL22: 22477.68874 | DM22: 128706.8889 | DN22: 119716.7532 | DO22: 330212.4014 | DP22: 0.2361194053 | DQ22: 0.8569691477 | DR22: 0.2375416887 | DS22: 0.3599493747 | DT22: 4.301279358 | DU22: 1.220541725 | DV22: 4.437015415 | DW22: 2.898365183 | DY22: 26202.19785 | DZ22: 11129.94508 | EA22: 0.02551386393 | EC22: 0.03679344516 | ED22: 0.00155520355 | EE22: 0.1282726328 | EF22: 0 | EG22: 0.2034550764 | EH22: 0.08151345052 | EI22: 0.05744047551 | EJ22: 0.02167230557 | EK22: =+EK21*(1+EK$7) -> 0.1563013372 | EL22: 0.1426634645 | EM22: 0.1889629867 | EN22: 0.009910307565 | EO22: =+EO21*(1+EO$7) -> 0.037673886 | EP22: 0.07822043637 | EQ22: 1.066986201 | ER22: 1 | ES22: 1.047538657 | ET22: 1.047538657 | EU22: 1.13809328 | EV22: 1 | EW22: 1.13809328 | EX22: 1.13809328 | EY22: 20.57346366 | EZ22: 63.45733751 | FA22: 147.4694331 | FB22: 3.206670527 | FC22: 194.2601006 | FD22: 44.94353046 | FE22: 81.82276176 | FF22: 518.9085379 | FG22: 873.8062042 | FH22: 2107.697257 | FI22: 331.0726986 | FJ22: 630.5035758 | FK22: 557.3193377 | FL22: 323.9084622 | FM22: 178.9696266 | FN22: 17.97741219 | FO22: 32.7291047 | FP22: 207.5634152 | FQ22: 349.5224817 | FR22: 843.0789029 | FS22: 414.5671049 | FT22: 808.5127798 | FU22: 1431.260724 | FV22: 1550.443819 | FW22: 3324.005887 | FY22: 0 | FZ22: 0 | GA22: 0 | GB22: 30879.78188 | GC22: 0 | GD22: 0 | GE22: 0 | GF22: 51191.0763 | GG22: 0 | GH22: 50840.16003 | GI22: 188.1219987 | GJ22: 0 | GK22: 4882.791868 | GL22: 71458.75042 | GM22: 50274.73658 | GN22: 1037.474564 | GO22: 2.75702209 | GP22: 0.025 | GQ22: 1.378511045 | GR22: 0 | GS22: 0 | GT22: 0 | GU22: 0 | GV22: 0 | GX22: 0.505108124 | GY22: 1.047538657 | GZ22: 0.2353804885 | HA22: 0.1091319508 | HB22: 0.3445124393 | HC22: 29537.64549 | HE22: 3.14830686e-08 | HF22: 60415.56047 | HG22: 60415.56047 | HH22: 72630.59032 | HI22: -22862.28034 | HJ22: 54963.56401 | HK22: -50952.34551 | HL22: 6636.031991 | HM22: 11663.3531 | HN22: 34525.63344 | HO22: 110297.8329 | HP22: 55334.26888 | HQ22: =p_1*Ex_1+p_2*Ex_2+p_3*Ex_3+p_4*Ex_4 -> 51042.68171 | HR22: 131600.1437 | HS22: 519.3032077 | HT22: 141863.354 | HU22: 0 | HV22: 6569.793062 | HW22: 5093.56004 | HX22: 4056.145297 | HY22: 44.11452241 | HZ22: 2341.293987 | IA22: 1561.040746 | IB22: 2623.343806 | ID22: 168017.8649 | IE22: 74585.69762 | IG22: -1.455191523e-10 | IH22: -6.286427379e-09
A23: 2017 | B23: 14 | C23: 373758.4418 | D23: 180543.594 | E23: 62083.86323 | F23: 89457.23542 | G23: 187465.0997 | H23: -145791.3506 | I23: 0.6534473308 | J23: 0.07868495095 | K23: 0.8066403483 | L23: 0.5929297271 | M23: 0.6033996151 | N23: 0.9351910287 | O23: 0.4703964548 | P23: 0.6860073495 | Q23: 1.010808407 | R23: 1 | S23: 1.084103754 | T23: 1.057785493 | U23: 9709.998038 | V23: 122767.7403 | W23: 59143.17478 | X23: 199585.2119 | Y23: 16014.19237 | Z23: 128641.337 | AA23: 116068.4542 | AB23: 283500.8004 | AC23: 528.1852433 | AD23: 145263.1653 | AE23: 44508.01907 | AF23: 41284.08672 | AG23: 128641.337 | AH23: 189029.4712 | AI23: 365023.6696 | AJ23: 45283.70945 | AK23: 128714.8567 | AL23: 214075.1637 | AM23: 347340.2138 | AN23: 12068.17783 | AO23: 128714.8567 | AP23: 130960.2003 | AQ23: 289883.1594 | AR23: 165142.222 | AT23: 67297.88421 | AU23: 30553.21386 | AV23: 5675.8085 | AW23: 116055.6838 | AX23: 30523.68238 | AY23: 128942.7312 | AZ23: 10240.40599 | BA23: 17301.46003 | BB23: 29515.0227 | BC23: 47167.5715 | BD23: 166749.3776 | BE23: 6355.304052 | BF23: 788.0528368 | BG23: 1189.903574 | BH23: 1253.097027 | BI23: 1486.637039 | BJ23: 1637.613576 | BK23: 0 | BL23: 0 | BM23: 0 | BN23: 0 | BO23: 0 | BP23: 0 | BQ23: 66263.77999 | BR23: 4216.578082 | BS23: 7889.731656 | BT23: 11446.53969 | BU23: 15524.82968 | BV23: 27186.10089 | BW23: 107924.5099 | BX23: 3754.971162 | BY23: 4872.57919 | BZ23: 10065.63375 | CA23: 18855.09349 | CB23: 70376.23233 | CC23: 537.1143956 | CD23: 0 | CE23: 12211.28498 | CF23: 49335.46386 | CG23: 62083.86323 | CH23: 1674.839994 | CI23: 11992.51583 | CJ23: 11561.50727 | CK23: 36855.00014 | CL23: 1598.520816 | CM23: 11129.94508 | CN23: 10712.34298 | CO23: 33720.73603 | CP23: 812.7493533 | CQ23: 2773.402767 | CR23: 15104.30733 | CS23: 37394.55168 | CT23: 3486.113226 | CU23: 1274.562169 | CV23: 5398.889311 | CW23: 26732.64532 | CX23: 0.9135361601 | CY23: 0.9999996581 | CZ23: 1.057153383 | DA23: 1.059790415 | DB23: 2.005700065 | DC23: 10629.02429 | DD23: 122767.7823 | DE23: 55945.68937 | DF23: 188325.1717 | DG23: 8.845504488 | DH23: 24454.57047 | DI23: 142249.7898 | DJ23: 133605.2183 | DK23: 377723.8091 | DL23: 23442.1022 | DM23: 135175.0976 | DN23: 126367.9952 | DO23: 352823.6646 | DP23: 0.2421202864 | DQ23: 0.8585581649 | DR23: 0.2415459891 | DS23: 0.3654594181 | DT23: 4.200616147 | DU23: 1.222456191 | DV23: 4.382416083 | DW23: 2.864773983 | DY23: 28822.41763 | DZ23: 11992.51583 | EA23: 0.02576900257 | EC23: 0.03863311742 | ED23: 0.001570755585 | EE23: 0.1374504759 | EF23: 0 | EG23: 0.2191078359 | EH23: 0.08698809294 | EI23: 0.05772767789 | EJ23: 0.02155918798 | EK23: =+EK22*(1+EK$7) -> 0.1586458572 | EL23: 0.1433767819 | EM23: 0.1870733569 | EN23: 0.00990787408 | EO23: =+EO22*(1+EO$7) -> 0.03729714714 | EP23: 0.077438232 | EQ23: 1.072321132 | ER23: 1 | ES23: 1.05244012 | ET23: 1.05244012 | EU23: 1.149474213 | EV23: 1 | EW23: 1.149474213 | EX23: 1.149474213 | EY23: 21.80787148 | EZ23: 67.26477776 | FA23: 156.3175991 | FB23: 3.399070759 | FC23: 205.9157066 | FD23: 47.64014229 | FE23: 86.73212746 | FF23: 550.0430502 | FG23: 926.2345765 | FH23: 2234.159093 | FI23: 350.9370605 | FJ23: 668.3337903 | FK23: 590.7584979 | FL23: 343.3429699 | FM23: 189.7078042 | FN23: 19.05605692 | FO23: 34.69285099 | FP23: 220.0172201 | FQ23: 370.4938306 | FR23: 893.6636371 | FS23: 439.4411312 | FT23: 857.0235466 | FU23: 1517.136367 | FV23: 1643.470448 | FW23: 3523.44624 | FY23: 0 | FZ23: 0 | GA23: 0 | GB23: 33658.96225 | GC23: 0 | GD23: 0 | GE23: 0 | GF23: 55798.27317 | GG23: 0 | GH23: 53507.29527 | GI23: 199.4093186 | GJ23: 0 | GK23: 5175.75938 | GL23: 75207.56141 | GM23: 52285.72604 | GN23: 1089.348292 | GO23: 2.825947642 | GP23: 0.025 | GQ23: 1.412973821 | GR23: 0 | GS23: 0 | GT23: 0 | GU23: 0 | GV23: 0 | GX23: 0.5061507893 | GY23: 1.05244012 | GZ23: 0.2393256949 | HA23: 0.1086537746 | HB23: 0.3479794695 | HC23: 25195.6964 | HE23: 3.81260179e-08 | HF23: 65967.55759 | HG23: 65967.55759 | HH23: 78552.0495 | HI23: -25218.61371 | HJ23: 55495.15628 | HK23: -53622.29735 | HL23: 10761.26287 | HM23: 12528.42838 | HN23: 37747.0421 | HO23: 116055.6838 | HP23: 60560.52748 | HQ23: =p_1*Ex_1+p_2*Ex_2+p_3*Ex_3+p_4*Ex_4 -> 53723.47566 | HR23: 138274.7112 | HS23: 555.8833406 | HT23: 152880.7831 | HU23: 0 | HV23: 7035.873258 | HW23: 5492.555124 | HX23: 4299.514015 | HY23: 47.04052756 | HZ23: 2463.515986 | IA23: 1681.066244 | IB23: 2844.250501 | ID23: 180543.594 | IE23: 74585.69762 | IG23: -1.964508556e-10 | IH23: -7.566995919e-09
A24: 2018 | B24: 15 | C24: 399561.8518 | D24: 194117.956 | E24: 67475.6179 | F24: 97508.3866 | G24: 196940.6007 | H24: -156480.7094 | I24: 0.6547861312 | J24: 0.07891876478 | K24: 0.8124196908 | L24: 0.5959398745 | M24: 0.6028756078 | N24: 0.9349536934 | O24: 0.4753228033 | P24: 0.6890832872 | Q24: 1.01287081 | R24: 1 | S24: 1.091918953 | T24: 1.063149642 | U24: 10361.80699 | V24: 129418.2278 | W24: 63711.89378 | X24: 216526.2922 | Y24: 17104.04038 | Z24: 135644.4291 | AA24: 123801.0899 | AB24: 306207.1196 | AC24: 563.1253007 | AD24: 155917.5841 | AE24: 47793.6503 | AF24: 44183.64729 | AG24: 135644.4291 | AH24: 203066.7734 | AI24: 396280.0097 | AJ24: 48365.49838 | AK24: 135721.9511 | AL24: 228326.3729 | AM24: 375179.7717 | AN24: 12914.96184 | AO24: 135721.9511 | AP24: 138973.1746 | AQ24: 313387.2462 | AR24: 178842.0989 | AT24: 73238.29919 | AU24: 32557.58978 | AV24: 6074.496554 | AW24: 122342.5705 | AX24: 32790.47382 | AY24: 139977.1285 | AZ24: 10952.05087 | BA24: 18636.06863 | BB24: 31903.23802 | BC24: 51034.47524 | BD24: 180571.5039 | BE24: 6844.8961 | BF24: 840.5139402 | BG24: 1278.484717 | BH24: 1351.324475 | BI24: 1604.953812 | BJ24: 1769.619156 | BK24: 0 | BL24: 0 | BM24: 0 | BN24: 0 | BO24: 0 | BP24: 0 | BQ24: 71112.85554 | BR24: 4478.656699 | BS24: 8438.94972 | BT24: 12285.79944 | BU24: 16678.92241 | BV24: 29230.52727 | BW24: 116160.2043 | BX24: 3994.850682 | BY24: 5221.049507 | BZ24: 10823.93164 | CA24: 20296.61581 | CB24: 75823.75669 | CC24: 583.7608009 | CD24: 0 | CE24: 13271.79007 | CF24: 53620.06703 | CG24: 67475.6179 | CH24: 1755.590428 | CI24: 12921.9358 | CJ24: 12501.0737 | CK24: 40297.01796 | CL24: 1674.839994 | CM24: 11992.51583 | CN24: 11561.50727 | CO24: 36855.00014 | CP24: 865.5120662 | CQ24: 2909.096106 | CR24: 16145.27767 | CS24: 40392.66283 | CT24: 3730.989652 | CU24: 1343.606853 | CV24: 5799.829012 | CW24: 29020.31697 | CX24: 0.9152635427 | CY24: 0.9999996581 | CZ24: 1.060049661 | DA24: 1.058063256 | DB24: 1.979709754 | DC24: 11321.11846 | DD24: 129418.2721 | DE24: 60102.74438 | DF24: 204643.9955 | DG24: 8.763713139 | DH24: 25518.0462 | DI24: 149974.8119 | DJ24: 141492.582 | DK24: 405135.714 | DL24: 24454.57047 | DM24: 142249.7898 | DN24: 133605.2183 | DO24: 377723.8091 | DP24: 0.2483992333 | DQ24: 0.8600544905 | DR24: 0.2454280922 | DS24: 0.3705806336 | DT24: 4.100375295 | DU24: 1.224503239 | DV24: 4.3319912 | DW24: 2.835294858 | DY24: 31704.6594 | DZ24: 12921.9358 | EA24: 0.0260266926 | EC24: 0.04056477329 | ED24: 0.001586463141 | EE24: 0.146504428 | EF24: 0 | EG24: 0.2347349107 | EH24: 0.09233962929 | EI24: 0.05801631628 | EJ24: 0.02144648421 | EK24: =+EK23*(1+EK$7) -> 0.1610255451 | EL24: 0.1440936658 | EM24: 0.1852026233 | EN24: 0.009905359633 | EO24: =+EO23*(1+EO$7) -> 0.03692417567 | EP24: 0.07666384968 | EQ24: 1.077682738 | ER24: 1 | ES24: 1.057520138 | ET24: 1.057520138 | EU24: 1.160968955 | EV24: 1 | EW24: 1.160968955 | EX24: 1.160968955 | EY24: 23.11634377 | EZ24: 71.30066443 | FA24: 165.696655 | FB24: 3.603015005 | FC24: 218.270649 | FD24: 50.49855083 | FE24: 91.93605511 | FF24: 583.0456332 | FG24: 981.8086511 | FH24: 2368.208638 | FI24: 371.9932842 | FJ24: 708.4338178 | FK24: 626.2040078 | FL24: 363.9435481 | FM24: 201.0902724 | FN24: 20.19942033 | FO24: 36.77442204 | FP24: 233.2182533 | FQ24: 392.7234604 | FR24: 947.2834553 | FS24: 465.8075991 | FT24: 908.4449593 | FU24: 1608.164549 | FV24: 1742.078675 | FW24: 3734.853015 | FY24: 0 | FZ24: 0 | GA24: 0 | GB24: 36688.26885 | GC24: 0 | GD24: 0 | GE24: 0 | GF24: 60820.11775 | GG24: 0 | GH24: 56420.17323 | GI24: 211.3738778 | GJ24: 0 | GK24: 5486.304943 | GL24: 79301.77785 | GM24: 54377.15508 | GN24: 1143.815706 | GO24: 2.896596333 | GP24: 0.025 | GQ24: 1.448298166 | GR24: 0 | GS24: 0 | GT24: 0 | GU24: 0 | GV24: 0 | GX24: 0.5071862022 | GY24: 1.057520138 | GZ24: 0.2431674207 | HA24: 0.1080984296 | HB24: 0.3512658503 | HC24: 20322.36932 | HE24: 4.630419426e-08 | HF24: 72089.14843 | HG24: 72089.14843 | HH24: 85019.18686 | HI24: -27804.37419 | HJ24: 56051.48508 | HK24: -56537.44735 | HL24: 15360.29804 | HM24: 13472.41062 | HN24: 41276.78481 | HO24: 122342.5705 | HP24: 66291.0854 | HQ24: =p_1*Ex_1+p_2*Ex_2+p_3*Ex_3+p_4*Ex_4 -> 56650.97637 | HR24: 145450.1895 | HS24: 595.5163458 | HT24: 164885.985 | HU24: 0 | HV24: 7544.834009 | HW24: 5927.57661 | HX24: 4557.484856 | HY24: 50.19824568 | HZ24: 2596.967838 | IA24: 1811.839421 | IB24: 3085.828504 | ID24: 194117.956 | IE24: 74585.69762 | IG24: -2.182787284e-10 | IH24: -9.080395103e-09
A25: 2019 | B25: 16 | C25: 427595.6629 | D25: 208833.1742 | E25: 73384.30494 | F25: 106284.1414 | G25: 207156.2373 | H25: -168062.1949 | I25: 0.6562417335 | J25: 0.07916019283 | K25: 0.8183916231 | L25: 0.5990477243 | M25: 0.6024398814 | N25: 0.9347086292 | O25: 0.4803842285 | P25: 0.6922573658 | Q25: 1.015113796 | R25: 1 | S25: 1.099993688 | T25: 1.068687873 | U25: 11065.63216 | V25: 136668.9785 | W25: 68690.56783 | X25: 235058.6874 | Y25: 18279.04251 | Z25: 143281.5633 | AA25: 132136.0654 | AB25: 330907.989 | AC25: 600.7672411 | AD25: 167461.4277 | AE25: 51365.02595 | AF25: 47323.51205 | AG25: 143281.5633 | AH25: 218330.9076 | AI25: 430500.1825 | AJ25: 51688.0796 | AK25: 143363.4499 | AL25: 243687.1567 | AM25: 405465.6852 | AN25: 13827.19 | AO25: 143363.4499 | AP25: 147567.8401 | AQ25: 338963.0147 | AR25: 193819.167 | AT25: 79756.46776 | AU25: 34715.57543 | AV25: 6506.22972 | AW25: 129196.9023 | AX25: 35255.37428 | AY25: 152057.563 | AZ25: 11721.19289 | BA25: 20088.4818 | BB25: 34509.77091 | BC25: 55258.40306 | BD25: 195680.2713 | BE25: 7376.827351 | BF25: 897.0169113 | BG25: 1374.564866 | BH25: 1458.166682 | BI25: 1733.724599 | BJ25: 1913.354293 | BK25: 0 | BL25: 0 | BM25: 0 | BN25: 0 | BO25: 0 | BP25: 0 | BQ25: 76357.5718 | BR25: 4759.286445 | BS25: 9031.218089 | BT25: 13193.51115 | BU25: 17928.2532 | BV25: 31445.30292 | BW25: 125098.775 | BX25: 4252.430298 | BY25: 5597.888844 | BZ25: 11646.35461 | CA25: 21861.32328 | CB25: 81740.77799 | CC25: 634.8794121 | CD25: 0 | CE25: 14433.97067 | CF25: 58315.45486 | CG25: 73384.30494 | CH25: 1841.070274 | CI25: 13923.38583 | CJ25: 13542.66638 | CK25: 44077.18245 | CL25: 1755.590428 | CM25: 12921.9358 | CN25: 12501.0737 | CO25: 40297.01796 | CP25: 922.4145997 | CQ25: 3056.796357 | CR25: 17272.57528 | CS25: 43660.36564 | CT25: 3996.16257 | CU25: 1418.883407 | CV25: 6235.80933 | CW25: 31524.85498 | CX25: 0.9172163242 | CY25: 0.999999658 | CZ25: 1.062397906 | DA25: 1.055559485 | DB25: 1.95478682 | DC25: 12064.36461 | DD25: 136669.0252 | DE25: 64656.15893 | DF25: 222686.3486 | DG25: 8.690227563 | DH25: 26635.68547 | DI25: 158397.5034 | DJ25: 150102.6097 | DK25: 435304.3391 | DL25: 25518.0462 | DM25: 149974.8119 | DN25: 141492.582 | DO25: 405135.714 | DP25: 0.2549658258 | DQ25: 0.8614573381 | DR25: 0.2491676508 | DS25: 0.3753250029 | DT25: 4.000705575 | DU25: 1.226683928 | DV25: 4.285819332 | DW25: 2.809578404 | DY25: 34875.12534 | DZ25: 13923.38583 | EA25: 0.02628695952 | EC25: 0.04259301196 | ED25: 0.001602327773 | EE25: 0.1554295924 | EF25: 0 | EG25: 0.2503312825 | EH25: 0.0975664817 | EI25: 0.05830639786 | EJ25: 0.02133419183 | EK25: =+EK24*(1+EK$7) -> 0.1634409283 | EL25: 0.1448141341 | EM25: 0.1833505971 | EN25: 0.009902763302 | EO25: =+EO24*(1+EO$7) -> 0.03655493392 | EP25: 0.07589721119 | EQ25: 1.083071151 | ER25: 1 | ES25: 1.06277977 | ET25: 1.06277977 | EU25: 1.172578645 | EV25: 1 | EW25: 1.172578645 | EX25: 1.172578645 | EY25: 24.50332439 | EZ25: 75.5787043 | FA25: 175.6384543 | FB25: 3.819195905 | FC25: 231.3668879 | FD25: 53.52846388 | FE25: 97.45221842 | FF25: 618.0283712 | FG25: 1040.71717 | FH25: 2510.301157 | FI25: 394.3128812 | FJ25: 750.9398468 | FK25: 663.7762483 | FL25: 385.780161 | FM25: 213.1556888 | FN25: 21.41138555 | FO25: 38.98088737 | FP25: 247.2113485 | FQ25: 416.286868 | FR25: 1004.120463 | FS25: 493.756055 | FT25: 962.9516569 | FU25: 1704.654422 | FV25: 1846.603395 | FW25: 3958.944196 | FY25: 0 | FZ25: 0 | GA25: 0 | GB25: 39990.21305 | GC25: 0 | GD25: 0 | GE25: 0 | GF25: 66293.92835 | GG25: 0 | GH25: 59596.77573 | GI25: 224.0563104 | GJ25: 0 | GK25: 5815.483239 | GL25: 83766.67421 | GM25: 56552.24129 | GN25: 1201.006492 | GO25: 2.969011241 | GP25: 0.025 | GQ25: 1.484505621 | GR25: 0 | GS25: 0 | GT25: 0 | GU25: 0 | GV25: 0 | GX25: 0.5082146716 | GY25: 1.06277977 | GZ25: 0.2469117649 | HA25: 0.1074732149 | HB25: 0.3543849798 | HC25: 14868.8944 | HE25: 5.592301022e-08 | HF25: 78842.77092 | HG25: 78842.77092 | HH25: 92085.40985 | HI25: -30642.28256 | HJ25: 56621.37399 | HK25: -59715.65956 | HL25: 20493.92919 | HM25: 14502.73801 | HN25: 45145.02057 | HO25: 129196.9023 | HP25: 72575.52826 | HQ25: =p_1*Ex_1+p_2*Ex_2+p_3*Ex_3+p_4*Ex_4 -> 59843.23626 | HR25: 153160.661 | HS25: 638.4832703 | HT25: 177974.6176 | HU25: 0 | HV25: 8100.601704 | HW25: 6402.136305 | HX25: 4830.933947 | HY25: 53.60795878 | HZ25: 2742.464856 | IA25: 1954.4146 | IB25: 3350.114288 | ID25: 208833.1742 | IE25: 74585.69762 | IG25: -2.764863893e-10 | IH25: -1.11758709e-08
A26: 2020 | B26: 17 | C26: 458050.0813 | D26: 224790.1229 | E26: 79862.60738 | F26: 115849.7141 | G26: 218163.3708 | H26: -180615.7339 | I26: 0.6578153039 | J26: 0.07940932274 | K26: 0.8245589693 | L26: 0.6022543476 | M26: 0.6020929437 | N26: 0.9344557471 | O26: 0.48558299 | P26: 0.695530484 | Q26: 1.017539167 | R26: 1 | S26: 1.108331774 | T26: 1.074402094 | U26: 11826.06473 | V26: 144563.8463 | W26: 74119.52054 | X26: 255339.8696 | Y26: 19546.43871 | Z26: 151599.4307 | AA26: 141124.9557 | AB26: 357786.261 | AC26: 641.3410329 | AD26: 179974.3928 | AE26: 55249.53713 | AF26: 50725.64431 | AG26: 151599.4307 | AH26: 234940.066 | AI26: 467980.5376 | AJ26: 55271.92574 | AK26: 151686.0711 | AL26: 260252.5035 | AM26: 438422.2564 | AN26: 14810.25752 | AO26: 151686.0711 | AP26: 156791.8198 | AQ26: 366801.1863 | AR26: 210200.115 | AT26: 86911.09609 | AU26: 37039.51473 | AV26: 6974.028531 | AW26: 136660.1356 | AX26: 37937.46627 | AY26: 165288.6202 | AZ26: 12552.76076 | BA26: 21669.75971 | BB26: 37355.81768 | BC26: 59874.37538 | BD26: 212202.9366 | BE26: 7954.919278 | BF26: 957.8844721 | BG26: 1478.805376 | BH26: 1574.410176 | BI26: 1873.912357 | BJ26: 2069.906897 | BK26: 0 | BL26: 0 | BM26: 0 | BN26: 0 | BO26: 0 | BP26: 0 | BQ26: 82031.80021 | BR26: 5059.831164 | BS26: 9670.071905 | BT26: 14175.52174 | BU26: 19281.06021 | BV26: 33845.31519 | BW26: 134803.4034 | BX26: 4529.079436 | BY26: 6005.530958 | BZ26: 12538.60876 | CA26: 23560.29568 | CB26: 88169.88853 | CC26: 690.926013 | CD26: 0 | CE26: 15708.18901 | CF26: 63463.49236 | CG26: 79862.60738 | CH26: 1931.600436 | CI26: 15002.44823 | CJ26: 14699.65782 | CK26: 48228.90089 | CL26: 1841.070274 | CM26: 13923.38583 | CN26: 13542.66638 | CO26: 44077.18245 | CP26: 983.8172499 | CQ26: 3217.289872 | CR26: 18494.13506 | CS26: 47223.28938 | CT26: 4283.487208 | CU26: 1500.847121 | CV26: 6710.205492 | CW26: 34267.9422 | CX26: 0.9193887949 | CY26: 0.9999996579 | CZ26: 1.064161306 | DA26: 1.052342805 | DB26: 1.93084402 | DC26: 12862.96374 | DD26: 144563.8958 | DE26: 69650.64425 | DF26: 242639.4407 | DG26: 8.625299523 | DH26: 27810.86361 | DI26: 167568.9641 | DJ26: 159517.4544 | DK26: 468498.9131 | DL26: 26635.68547 | DM26: 158397.5034 | DN26: 150102.6097 | DO26: 435304.3391 | DP26: 0.261830263 | DQ26: 0.8627669797 | DR26: 0.2527435488 | DS26: 0.3797081842 | DT26: 3.901742799 | DU26: 1.228997897 | DV26: 4.243986073 | DW26: 2.787292277 | DY26: 38362.63787 | DZ26: 15002.44823 | EA26: 0.02654982912 | EC26: 0.04472266255 | ED26: 0.00161835105 | EE26: 0.1642211443 | EF26: 0 | EG26: 0.2658920029 | EH26: 0.1026671543 | EI26: 0.05859792985 | EJ26: 0.0212223084 | EK26: =+EK25*(1+EK$7) -> 0.1658925422 | EL26: 0.1455382048 | EM26: 0.1815170911 | EN26: 0.009900084145 | EO26: =+EO25*(1+EO$7) -> 0.03618938458 | EP26: 0.07513823907 | EQ26: 1.088486507 | ER26: 1 | ES26: 1.068220338 | ET26: 1.068220338 | EU26: 1.184304431 | EV26: 1 | EW26: 1.184304431 | EX26: 1.184304431 | EY26: 25.97352386 | EZ26: 80.11342655 | FA26: 186.1767616 | FB26: 4.048347659 | FC26: 245.2489012 | FD26: 56.74017171 | FE26: 103.2993515 | FF26: 655.1100735 | FG26: 1103.1602 | FH26: 2660.919226 | FI26: 417.9716541 | FJ26: 795.9962376 | FK26: 703.6028232 | FL26: 408.9269707 | FM26: 225.9450301 | FN26: 22.69606868 | FO26: 41.31974061 | FP26: 262.0440294 | FQ26: 441.2640801 | FR26: 1064.36769 | FS26: 523.3814183 | FT26: 1020.728756 | FU26: 1806.933688 | FV26: 1957.399599 | FW26: 4196.480848 | FY26: 0 | FZ26: 0 | GA26: 0 | GB26: 43589.33222 | GC26: 0 | GD26: 0 | GE26: 0 | GF26: 72260.3819 | GG26: 0 | GH26: 63056.52359 | GI26: 237.4996891 | GJ26: 0 | GK26: 6164.412234 | GL26: 88629.54754 | GM26: 58814.33094 | GN26: 1261.056816 | GO26: 3.043236522 | GP26: 0.025 | GQ26: 1.521618261 | GR26: 0 | GS26: 0 | GT26: 0 | GU26: 0 | GV26: 0 | GX26: 0.5092364606 | GY26: 1.068220338 | GZ26: 0.2505651655 | HA26: 0.1067851236 | HB26: 0.3573502891 | HC26: 8781.521675 | HE26: 6.728805602e-08 | HF26: 86298.23835 | HG26: 86298.23835 | HH26: 99809.69862 | HI26: -33757.30463 | HJ26: 57191.73834 | HK26: -63176.21946 | HL26: 26230.32548 | HM26: 15627.6079 | HN26: 49384.91253 | HO26: 136660.1356 | HP26: 79468.39723 | HQ26: =p_1*Ex_1+p_2*Ex_2+p_3*Ex_3+p_4*Ex_4 -> 63319.75204 | HR26: 161442.7523 | HS26: 685.0935351 | HT26: 192252.3068 | HU26: 0 | HV26: 8707.493859 | HW26: 6920.114045 | HX26: 5120.789984 | HY26: 57.29190899 | HZ26: 2900.887038 | IA26: 2109.958292 | IB26: 3639.35662 | ID26: 224790.1229 | IE26: 74585.69762 | IG26: -3.346940503e-10 | IH26: -1.327134669e-08
A27: 2021 | B27: 18 | C27: 491132.8035 | D27: 242099.2116 | E27: 86969.03043 | F27: 126276.1884 | G27: 230017.3028 | H27: -194228.9298 | I27: 0.659508041 | J27: 0.07966624424 | K27: 0.830924618 | L27: 0.6055608401 | M27: 0.6018353225 | N27: 0.9341949561 | O27: 0.4909213968 | P27: 0.6989035624 | Q27: 1.020148774 | R27: 1 | S27: 1.116937113 | T27: 1.080294253 | U27: 12648.14395 | V27: 153150.1561 | W27: 80043.38565 | X27: 277543.8258 | Y27: 20914.14208 | Z27: 160648.4504 | AA27: 150824.1884 | AB27: 387042.5072 | AC27: 685.0980939 | AD27: 193543.8317 | AE27: 59477.44578 | AF27: 54414.21412 | AG27: 160648.4504 | AH27: 253024.8807 | AI27: 509048.8321 | AJ27: 59139.41281 | AK27: 160740.2624 | AL27: 278126.3399 | AM27: 474295.5245 | AN27: 15870.04198 | AO27: 160740.2624 | AP27: 166697.1292 | AQ27: 397111.0083 | AR27: 228125.0275 | AT27: 94767.18612 | AU27: 39542.82853 | AV27: 7481.217029 | AW27: 144777.0077 | AX27: 40857.84029 | AY27: 179785.9702 | AZ27: 13452.14321 | BA27: 23392.08131 | BB27: 40464.77739 | BC27: 64921.08205 | BD27: 230280.178 | BE27: 8583.358258 | BF27: 1023.466936 | BG27: 1591.929477 | BH27: 1700.917209 | BI27: 2026.573503 | BJ27: 2240.471132 | BK27: 0 | BL27: 0 | BM27: 0 | BN27: 0 | BO27: 0 | BP27: 0 | BQ27: 88172.52284 | BR27: 5381.765261 | BS27: 10359.36086 | BT27: 15238.214 | BU27: 20746.34373 | BV27: 36446.83899 | BW27: 145343.3305 | BX27: 4826.283478 | BY27: 6446.634744 | BZ27: 13506.94308 | CA27: 25405.67574 | CB27: 95157.79351 | CC27: 752.4067573 | CD27: 0 | CE27: 17105.95249 | CF27: 69110.67117 | CG27: 86969.03043 | CH27: 2027.526552 | CI27: 16165.13797 | CJ27: 15987.46935 | CK27: 52788.89656 | CL27: 1931.600436 | CM27: 15002.44823 | CN27: 14699.65782 | CO27: 48228.90089 | CP27: 1050.115104 | CQ27: 3391.422358 | CR27: 19818.69469 | CS27: 51109.66296 | CT27: 4595.005211 | CU27: 1589.989313 | CV27: 7226.747889 | CW27: 37273.5596 | CX27: 0.9217758623 | CY27: 0.9999996578 | CZ27: 1.065303084 | DA27: 1.048478125 | DB27: 1.907797935 | DC27: 13721.49616 | DD27: 153150.2085 | DE27: 75136.72577 | DF27: 264711.1268 | DG27: 8.569201193 | DH27: 29047.19245 | DI27: 177544.3434 | DJ27: 169830.3822 | DK27: 505015.3411 | DL27: 27810.86361 | DM27: 167568.9641 | DN27: 159517.4544 | DO27: 468498.9131 | DP27: 0.2690034058 | DQ27: 0.8639846195 | DR27: 0.2561339789 | DS27: 0.383748959 | DT27: 3.803610228 | DU27: 1.231443541 | DV27: 4.206585612 | DW27: 2.76812072 | DY27: 42198.90166 | DZ27: 16165.13797 | EA27: 0.02681532741 | EC27: 0.04695879568 | ED27: 0.001634534561 | EE27: 0.1728743375 | EF27: 0 | EG27: 0.2814121996 | EH27: 0.1076402339 | EI27: 0.0588909195 | EJ27: 0.02111083145 | EK27: =+EK26*(1+EK$7) -> 0.1683809303 | EL27: 0.1462658958 | EM27: 0.1797019202 | EN27: 0.009897321197 | EO27: =+EO26*(1+EO$7) -> 0.03582749073 | EP27: 0.07438685668 | EQ27: 1.09392894 | ER27: 1 | ES27: 1.073843432 | ET27: 1.073843432 | EU27: 1.196147476 | EV27: 1 | EW27: 1.196147476 | EX27: 1.196147476 | EY27: 27.53193529 | EZ27: 84.92023215 | FA27: =+FA26*(1+FA$7) -> 197.3473673 | FB27: 4.291248519 | FC27: 259.9638353 | FD27: 60.14458201 | FE27: 109.4973126 | FF27: 694.4166779 | FG27: 1169.349812 | FH27: 2820.574379 | FI27: 443.0499533 | FJ27: 843.7560119 | FK27: 745.8189926 | FL27: 433.4625889 | FM27: 239.5017319 | FN27: 24.05783281 | FO27: 43.79892505 | FP27: 277.7666712 | FQ27: 467.7399249 | FR27: 1128.229752 | FS27: 554.7843034 | FT27: 1081.972482 | FU27: 1915.349709 | FV27: 2074.843575 | FW27: 4448.269698 | FY27: 0 | FZ27: 0 | GA27: 0 | GB27: 47512.37212 | GC27: 0 | GD27: 0 | GE27: 0 | GF27: 78763.81627 | GG27: 0 | GH27: 66820.38812 | GI27: 251.7496704 | GJ27: 0 | GK27: 6534.276968 | GL27: 93919.87425 | GM27: 61166.90417 | GN27: 1324.109657 | GO27: 3.119317435 | GP27: 0.025 | GQ27: 1.559658718 | GR27: 0 | GS27: 0 | GT27: 0 | GU27: 0 | GV27: 0 | GX27: 0.5102517904 | GY27: 1.073843432 | GZ27: 0.254134269 | HA27: 0.1060407957 | HB27: 0.3601750647 | HC27: 2001.019639 | HE27: 8.109782357e-08 | HF27: 94533.70093 | HG27: 94533.70093 | HH27: 108257.2316 | HI27: -37176.87142 | HJ27: 57747.31649 | HK27: -66939.9432 | HL27: 32645.96742 | HM27: 16856.06042 | HN27: 54032.93184 | HO27: 144777.0077 | HP27: 87029.69118 | HQ27: =p_1*Ex_1+p_2*Ex_2+p_3*Ex_3+p_4*Ex_4 -> 67101.57667 | HR27: 170335.8223 | HS27: 735.6880886 | HT27: 207835.7725 | HU27: 0 | HV27: 9370.260982 | HW27: 7485.79944 | HX27: 5428.037383 | HY27: 61.2745092 | HZ27: 3073.184021 | IA27: 2279.762181 | IB27: 3956.040271 | ID27: 242099.2116 | IE27: 74585.69762 | IG27: -4.074536264e-10 | IH27: -1.583248377e-08
A28: 2022 | B28: 19 | C28: 527070.7537 | D28: 260881.3744 | E28: 94768.62791 | F28: 137641.0454 | G28: 242777.5745 | H28: -208997.8685 | I28: 0.6613211764 | J28: 0.07993104911 | K28: 0.8374915232 | L28: 0.6089683237 | M28: 0.6016675661 | N28: 0.933926163 | O28: 0.4964018073 | P28: 0.7023775435 | Q28: 1.022944521 | R28: 1 | S28: 1.125813694 | T28: 1.086366347 | U28: 13537.406 | V28: 162478.9689 | W28: 86511.61061 | X28: 301862.9221 | Y28: 22390.80878 | Z28: 170483.0582 | AA28: 161295.5549 | AB28: 418896.8832 | AC28: 732.3135214 | AD28: 208265.555 | AE28: 64082.21551 | AF28: 58415.84409 | AG28: 170483.0582 | AH28: 272729.8617 | AI28: 554067.8094 | AJ28: 63315.01808 | AK28: 170580.4908 | AL28: 297422.4719 | AM28: 513355.5507 | AN28: 17012.95151 | AO28: 170580.4908 | AP28: 177340.6398 | AQ28: 430122.2063 | AR28: 247748.9147 | AT28: 103396.7581 | AU28: 42240.11976 | AV28: 8031.456572 | AW28: 153595.7881 | AX28: 44039.8268 | AY28: 195677.6314 | AZ28: 14425.23659 | BA28: 25268.86778 | BB28: 43862.49976 | BC28: 70441.29804 | BD28: 250067.6233 | BE28: 9266.733471 | BF28: 1094.144852 | BG28: 1714.728603 | BH28: 1838.633657 | BI28: 2192.867729 | BJ28: 2426.35863 | BK28: 0 | BL28: 0 | BM28: 0 | BN28: 0 | BO28: 0 | BP28: 0 | BQ28: 94820.14823 | BR28: 5726.68409 | BS28: 11103.28053 | BT28: 16388.56091 | BU28: 22333.94384 | BV28: 39267.67887 | BW28: 156794.4927 | BX28: 5145.654928 | BY28: 6924.107263 | BZ28: 14558.20605 | CA28: 27410.78055 | CB28: 102755.7439 | CC28: 819.8844539 | CD28: 0 | CE28: 18640.05657 | CF28: 75308.68689 | CG28: 94768.62791 | CH28: 2129.221189 | CI28: 17417.93616 | CJ28: 17423.92945 | CK28: 57797.54111 | CL28: 2027.526552 | CM28: 16165.13797 | CN28: 15987.46935 | CO28: 52788.89656 | CP28: 1121.741804 | CQ28: 3580.103051 | CR28: 21255.8845 | CS28: 55350.60088 | CT28: 4932.965406 | CU28: 1686.840097 | CV28: 7789.563108 | CW28: 40568.24816 | CX28: 0.9243730634 | CY28: 0.9999996577 | CZ28: 1.065786652 | DA28: 1.044030621 | DB28: 1.885569165 | DC28: 14644.95942 | DD28: 162479.0245 | DE28: 81171.60263 | DF28: 289132.2495 | DG28: 8.522229035 | DH28: 30348.53919 | DI28: 188383.1511 | DJ28: 181147.516 | DK28: 545178.8541 | DL28: 29047.19245 | DM28: 177544.3434 | DN28: 169830.3822 | DO28: 505015.3411 | DP28: 0.2764968279 | DQ28: 0.8651122597 | DR28: 0.2593165383 | DS28: 0.3874686874 | DT28: 3.706418978 | DU28: 1.234018197 | DV28: 4.173722383 | DW28: 2.75176394 | DY28: 46418.79182 | DZ28: 17417.93616 | EA28: 0.02708348068 | EC28: 0.04930673547 | ED28: 0.001650879906 | EE28: 0.1813845121 | EF28: 0 | EG28: 0.2968870824 | EH28: 0.112484391 | EI28: 0.0591853741 | EJ28: 0.0209997585 | EK28: =+EK27*(1+EK$7) -> 0.1709066443 | EL28: 0.1469972253 | EM28: 0.177904901 | EN28: 0.00989447347 | EO28: =+EO27*(1+EO$7) -> 0.03546921582 | EP28: 0.07364298812 | EQ28: 1.099398584 | ER28: 1 | ES28: 1.079650909 | ET28: 1.079650909 | EU28: =+EU27*(1+EU$7) -> 1.20810895 | EV28: 1 | EW28: 1.20810895 | EX28: 1.20810895 | EY28: 29.18385141 | EZ28: 90.01544608 | FA28: 209.1882093 | FB28: 4.54872343 | FC28: 275.5616654 | FD28: 63.75325694 | FE28: 116.0671514 | FF28: 736.0816786 | FG28: 1239.510801 | FH28: 2989.808842 | FI28: 469.6329505 | FJ28: 894.3813726 | FK28: 790.5681321 | FL28: 459.4703443 | FM28: 253.8718358 | FN28: 25.50130277 | FO28: 46.42686055 | FP28: 294.4326714 | FQ28: 495.8043204 | FR28: 1195.923537 | FS28: 588.0713616 | FT28: 1146.890831 | FU28: 2030.270691 | FV28: 2199.334189 | FW28: 4715.16588 | FY28: 0 | FZ28: 0 | GA28: 0 | GB28: 51788.48562 | GC28: 0 | GD28: 0 | GE28: 0 | GF28: 85852.55974 | GG28: 0 | GH28: 70911.01155 | GI28: 266.8546506 | GJ28: 0 | GK28: 6926.333586 | GL28: 99669.47925 | GM28: 63613.58034 | GN28: 1390.31514 | GO28: 3.197300371 | GP28: 0.025 | GQ28: 1.598650186 | GR28: 0 | GS28: 0 | GT28: 0 | GU28: 0 | GV28: 0 | GX28: 0.5112608437 | GY28: 1.079650909 | GZ28: 0.2576258197 | HA28: 0.1052464863 | HB28: 0.362872306 | HC28: -5537.877738 | HE28: 9.771611076e-08 | HF28: 103636.7503 | HG28: 103636.7503 | HH28: 117500.0896 | HI28: -40931.1202 | HJ28: 58270.36773 | HK28: -71029.2951 | HL28: 39826.7083 | HM28: 18198.07237 | HN28: 59129.19257 | HO28: 153595.7881 | HP28: 95325.42039 | HQ28: =p_1*Ex_1+p_2*Ex_2+p_3*Ex_3+p_4*Ex_4 -> 71211.44017 | HR28: 179882.1657 | HS28: 790.642959 | HT28: 224854.0957 | HU28: 0 | HV28: 10094.13347 | HW28: 8103.938903 | HX28: 5753.719626 | HY28: 65.5825797 | HZ28: 3260.380424 | IA28: 2465.25779 | IB28: 4302.912673 | ID28: 260881.3744 | IE28: 74585.69762 | IG28: -4.511093721e-10 | IH28: -1.885928214e-08
A29: 2023 | B29: 20 | C29: 566112.0199 | D29: 281269.1774 | E29: 103333.8359 | F29: 150028.7394 | G29: 256508.2892 | H29: -225028.0221 | I29: 0.663255975 | J29: 0.08020383127 | K29: 0.8442627056 | L29: 0.6124779459 | M29: 0.6015902434 | N29: 0.9336492724 | O29: 0.5020266312 | P29: 0.7059533921 | Q29: 1.025928359 | R29: 1 | S29: 1.134965597 | T29: 1.092620418 | U29: 14499.93905 | V29: 172605.3694 | W29: 93579.02622 | X29: 328510.0028 | Y29: 23985.91665 | Z29: 181162.0196 | AA29: 172606.7859 | AB29: 453591.2164 | AC29: 783.2885974 | AD29: 224244.7335 | AE29: 69100.88553 | AF29: 62759.8866 | AG29: 181162.0196 | AH29: 294215.0233 | AI29: 603439.2327 | AJ29: 67825.54222 | AK29: 181265.5553 | AL29: 318265.6447 | AM29: 555898.9807 | AN29: 18245.97873 | AO29: 181265.5553 | AP29: 188784.6033 | AQ29: 466087.1724 | AR29: 269243.4365 | AT29: 112879.665 | AU29: 45147.29086 | AV29: 8628.783966 | AW29: 163168.5499 | AX29: 47509.25872 | AY29: 213105.3938 | AZ29: 15478.4984 | BA29: 27314.92144 | BB29: 47577.56453 | BC29: 76482.35193 | BD29: 271737.573 | BE29: 10010.07936 | BF29: 1170.331966 | BG29: 1848.069479 | BH29: 1988.597871 | BI29: 2374.06899 | BJ29: 2629.011049 | BK29: 0 | BL29: 0 | BM29: 0 | BN29: 0 | BO29: 0 | BP29: 0 | BQ29: 102018.8651 | BR29: 6096.315587 | BS29: 11906.40738 | BT29: 17634.1864 | BU29: 24054.62744 | BV29: 42327.32826 | BW29: 169240.233 | BX29: 5488.945904 | BY29: 7441.12953 | BZ29: 15699.909 | CA29: 29590.22639 | CB29: 111020.0222 | CC29: 893.9857786 | CD29: 0 | CE29: 20324.7487 | CF29: 82115.10142 | CG29: 103333.8359 | CH29: 2237.086266 | CI29: 18767.82621 | CJ29: 19029.70267 | CK29: 63299.22074 | CL29: 2129.221189 | CM29: 17417.93616 | CN29: 17423.92945 | CO29: 57797.54111 | CP29: 1199.17378 | CQ29: 3784.309198 | CR29: 22816.32906 | CS29: 59980.42485 | CT29: 5299.847222 | CU29: 1791.971355 | CV29: 8403.220354 | CW29: 44181.40409 | CX29: 0.9271765872 | CY29: 0.9999996576 | CZ29: 1.065575792 | DA29: 1.039064941 | DB29: 1.864082436 | DC29: 15638.81062 | DD29: 172605.4285 | DE29: 87820.15035 | DF29: 316159.2601 | DG29: 8.484707961 | DH29: 31719.0469 | DI29: 200149.5927 | DJ29: 193589.8888 | DK29: 589346.9239 | DL29: 30348.53919 | DM29: 188383.1511 | DN29: 181147.516 | DO29: 545178.8541 | DP29: 0.2843228767 | DQ29: 0.8661525673 | DR29: 0.2622683422 | DS29: 0.3908907915 | DT29: 3.610268415 | DU29: 1.236718324 | DV29: 4.145512801 | DW29: 2.737937378 | DY29: 51060.671 | DZ29: 18767.82621 | EA29: 0.02735431549 | EC29: 0.05177207224 | ED29: 0.001667388705 | EE29: 0.1897471005 | EF29: 0 | EG29: 0.312311949 | EH29: 0.11719838 | EI29: 0.05948130097 | EJ29: 0.02088908705 | EK29: =+EK28*(1+EK$7) -> 0.173470244 | EL29: 0.1477322114 | EM29: 0.176125852 | EN29: 0.009891539955 | EO29: =+EO28*(1+EO$7) -> 0.03511452367 | EP29: 0.07290655823 | EQ29: 1.104895577 | ER29: 1 | ES29: 1.085644891 | ET29: 1.085644891 | EU29: 1.22019004 | EV29: 1 | EW29: 1.22019004 | EX29: 1.22019004 | EY29: 30.93488249 | EZ29: 95.41637284 | FA29: 221.7395019 | FB29: 4.821646836 | FC29: 292.0953653 | FD29: 67.57845235 | FE29: 123.0311805 | FF29: 780.2465793 | FG29: 1313.881449 | FH29: 3169.197373 | FI29: 497.8109276 | FJ29: 948.044255 | FK29: 838.0022201 | FL29: 487.0385649 | FM29: 269.104146 | FN29: 27.03138094 | FO29: 49.21247218 | FP29: 312.0986317 | FQ29: 525.5525797 | FR29: 1267.678949 | FS29: 623.3556433 | FT29: 1215.70428 | FU29: 2152.086933 | FV29: 2331.294241 | FW29: 4998.075833 | FY29: 0 | FZ29: 0 | GA29: 0 | GB29: 56449.44932 | GC29: 0 | GD29: 0 | GE29: 0 | GF29: 93579.29011 | GG29: 0 | GH29: 75352.83678 | GI29: 282.8659297 | GJ29: 0 | GK29: 7341.913601 | GL29: 105912.7185 | GM29: 66158.12356 | GN29: 1459.830897 | GO29: 3.277232881 | GP29: 0.025 | GQ29: 1.63861644 | GR29: 0 | GS29: 0 | GT29: 0 | GU29: 0 | GV29: 0 | GX29: 0.5122637681 | GY29: 1.085644891 | GZ29: 0.261046568 | HA29: 0.1044080467 | HB29: 0.3654546147 | HC29: -13907.08082 | HE29: 1.176376827e-07 | HF29: 113705.6923 | HG29: 113705.6923 | HH29: 127618.0489 | HI29: -45053.15803 | HJ29: 58740.33288 | HK29: -75468.51439 | HL29: 47868.98299 | HM29: 19664.66297 | HN29: 64717.821 | HO29: 163168.5499 | HP29: 104428.217 | HQ29: =p_1*Ex_1+p_2*Ex_2+p_3*Ex_3+p_4*Ex_4 -> 75673.87988 | HR29: 190127.2311 | HS29: 850.3732637 | HT29: 243450.1491 | HU29: 0 | HV29: 10884.87423 | HW29: 8779.788744 | HX29: 6098.942803 | HY29: 70.24561488 | HZ29: 3463.581603 | IA29: 2668.03307 | IB29: 4683.013943 | ID29: 281269.1774 | IE29: 74585.69762 | IG29: -5.675246939e-10 | IH29: -2.328306437e-08
A30: 2024 | B30: 21 | C30: 608528.0194 | D30: 303408.0648 | E30: 112745.4326 | F30: 163531.326 | G30: 271278.4604 | H30: -242435.2644 | I30: 0.6653137358 | J30: 0.0804846868 | K30: 0.8512412541 | L30: 0.6160908809 | M30: 0.6016039442 | N30: 0.9333641869 | O30: 0.5077983297 | P30: 0.7096320958 | Q30: 1.029102297 | R30: 1 | S30: 1.144396994 | T30: 1.099058554 | U30: 15542.44544 | V30: 183588.7747 | W30: 101306.4928 | X30: 357720.7611 | Y30: 25709.85365 | Z30: 192748.7656 | AA30: 184832.199 | AB30: 491391.3538 | AC30: 838.3536095 | AD30: 241596.9108 | AE30: 74574.49452 | AF30: 67478.73725 | AG30: 192748.7656 | AH30: 317657.7274 | AI30: 657608.4414 | AJ30: 72700.35952 | AK30: 192858.9232 | AL30: 340792.7365 | AM30: 602251.9233 | AN30: 19576.76129 | AO30: 192858.9232 | AP30: 201097.243 | AQ30: 505283.424 | AR30: 292798.8514 | AT30: 123304.5137 | AU30: 48281.67564 | AV30: 9277.654576 | AW30: 173551.4617 | AX30: 51294.76882 | AY30: 232226.428 | AZ30: 16619.0074 | BA30: 29546.58249 | BB30: 51641.59687 | BC30: 83096.65518 | BD30: 295480.9467 | BE30: 10818.92329 | BF30: 1252.478536 | BG30: 1992.902078 | BH30: 2151.950613 | BI30: 2571.577866 | BJ30: 2850.014198 | BK30: 0 | BL30: 0 | BM30: 0 | BN30: 0 | BO30: 0 | BP30: 0 | BQ30: 109817.0395 | BR30: 6492.533331 | BS30: 12773.73822 | BT30: 18983.43367 | BU30: 25920.18599 | BV30: 45647.14825 | BW30: 182772.102 | BX30: 5858.062171 | BY30: 8001.185501 | BZ30: 16940.29735 | CA30: 31960.06917 | CB30: 120012.4878 | CC30: 975.4095786 | CD30: 0 | CE30: 22175.91715 | CF30: 89594.10585 | CG30: 112745.4326 | CH30: 2351.55574 | CI30: 20222.33275 | CJ30: 20828.80424 | CK30: 69342.73985 | CL30: 2237.086266 | CM30: 18767.82621 | CN30: 19029.70267 | CO30: 63299.22074 | CP30: 1282.935035 | CQ30: 4005.090864 | CR30: 24511.76208 | CS30: 65037.02631 | CT30: 5698.387168 | CU30: 1905.99995 | CV30: 9072.784065 | CW30: 48145.61223 | CX30: 0.9301833062 | CY30: 0.9999996575 | CZ30: 1.064634844 | DA30: 1.033644543 | DB30: 1.84326664 | DC30: 16709.01353 | DD30: 183588.8376 | DE30: 95156.09357 | DF30: 346077.1534 | DG30: 8.456995824 | DH30: 33163.157 | DI30: 212912.9311 | DJ30: 207295.8695 | DK30: 637912.4715 | DL30: 31719.0469 | DM30: 200149.5927 | DN30: 193589.8888 | DO30: 589346.9239 | DP30: 0.2924947463 | DQ30: 0.867108743 | DR30: 0.2649661568 | DS30: 0.3940402818 | DT30: 3.515246547 | DU30: 1.239539679 | DV30: 4.122087118 | DW30: 2.726370874 | DY30: 56166.7381 | DZ30: 20222.33275 | EA30: 0.02762785865 | EC30: 0.05436067585 | ED30: 0.001684062592 | EE30: 0.1979576351 | EF30: 0 | EG30: 0.3276821903 | EH30: 0.12178104 | EI30: 0.05977870747 | EJ30: 0.02077881459 | EK30: =+EK29*(1+EK$7) -> 0.1760722976 | EL30: 0.1484708725 | EM30: 0.1743645934 | EN30: 0.009888519619 | EO30: =+EO29*(1+EO$7) -> 0.03476337843 | EP30: 0.07217749265 | EQ30: 1.110420055 | ER30: 1 | ES30: 1.091827765 | ET30: 1.091827765 | EU30: 1.23239194 | EV30: 1 | EW30: 1.23239194 | EX30: 1.23239194 | EY30: 32.79097544 | EZ30: 101.1413552 | FA30: 235.043872 | FB30: 5.110945646 | FC30: 309.6210872 | FD30: 71.63315949 | FE30: 130.4130513 | FF30: 827.061374 | FG30: 1392.714336 | FH30: 3359.349215 | FI30: 527.6795832 | FJ30: 1004.92691 | FK30: 888.2823533 | FL30: 516.2608788 | FM30: 285.2503947 | FN30: 28.6532638 | FO30: 52.16522051 | FP30: 330.8245496 | FQ30: 557.0857344 | FR30: 1343.739686 | FS30: 660.7569819 | FT30: 1288.646537 | FU30: 2281.212149 | FV30: 2471.171895 | FW30: 5297.960383 | FY30: 0 | FZ30: 0 | GA30: 0 | GB30: 61529.89976 | GC30: 0 | GD30: 0 | GE30: 0 | GF30: 102001.4262 | GG30: 0 | GH30: 80172.24752 | GI30: 299.8378854 | GJ30: 0 | GK30: 7782.428417 | GL30: 112686.6757 | GM30: 68804.4485 | GN30: 1532.822442 | GO30: 3.359163703 | GP30: 0.025 | GQ30: 1.679581851 | GR30: 0 | GS30: 0 | GT30: 0 | GU30: 0 | GV30: 0 | GX30: 0.5132606799 | GY30: 1.091827765 | GZ30: 0.264403197 | HA30: 0.1035309172 | HB30: 0.3679341142 | HC30: -23185.81683 | HE30: 1.413718564e-07 | HF30: 124851.0176 | HG30: 124851.0176 | HH30: 138699.4778 | HI30: -49579.34959 | HJ30: 59133.45325 | HK30: -80283.75158 | HL30: 56881.18769 | HM30: 21268.01319 | HN30: 70847.36279 | HO30: 173551.4617 | HP30: 114418.0085 | HQ30: =p_1*Ex_1+p_2*Ex_2+p_3*Ex_3+p_4*Ex_4 -> 80515.38109 | HR30: 201119.8563 | HS30: 915.3377477 | HT30: 263782.2151 | HU30: 0 | HV30: 11748.83793 | HW30: 9519.175261 | HX30: 6464.879372 | HY30: 75.29608455 | HZ30: 3683.97985 | IA30: 2889.851228 | IB30: 5099.710771 | ID30: 303408.0648 | IE30: 74585.69762 | IG30: -7.275957614e-10 | IH30: -2.793967724e-08
A31: 2025 | B31: 22 | C31: 654615.9248 | D31: 327457.7627 | E31: 123093.6477 | F31: 178249.1453 | G31: 287162.3865 | H31: -261347.0175 | I31: 0.6674957924 | J31: 0.08077371397 | K31: 0.8584303266 | L31: 0.6198083299 | M31: 0.6017092793 | N31: 0.9330708067 | O31: 0.5137194173 | P31: 0.713414665 | Q31: 1.032468393 | R31: 1 | S31: 1.154112149 | T31: 1.105682894 | U31: 16672.31218 | V31: 195493.2676 | W31: 109761.635 | X31: 389756.4207 | Y31: 27574.01784 | Z31: 205311.7568 | AA31: 198053.4333 | AB31: 532589.8077 | AC31: 897.871037 | AD31: 260449.1464 | AE31: 80548.5624 | AF31: 72608.19034 | AG31: 205311.7568 | AH31: 343254.7794 | AI31: 717069.5107 | AJ31: 77971.70057 | AK31: 205429.0942 | AL31: 365154.1106 | AM31: 652773.1962 | AN31: 21013.64993 | AO31: 205429.0942 | AP31: 214353.4264 | AQ31: 548016.377 | AR31: 318626.225 | AT31: 134769.7073 | AU31: 51662.18762 | AV31: 9982.991224 | AW31: 184805.1026 | AX31: 55428.12793 | AY31: 253215.1058 | AZ31: 17854.53147 | BA31: 31981.90633 | BB31: 56089.62446 | BC31: 90342.3015 | BD31: 321509.489 | BE31: 11699.33933 | BF31: 1341.075067 | BG31: 2150.268586 | BH31: 2329.94626 | BI31: 2786.935473 | BJ31: 3091.113948 | BK31: 0 | BL31: 0 | BM31: 0 | BN31: 0 | BO31: 0 | BP31: 0 | BQ31: 118267.6626 | BR31: 6917.37129 | BS31: 13710.73448 | BT31: 20445.44207 | BU31: 27943.54561 | BV31: 49250.56913 | BW31: 197490.7608 | BX31: 6255.078942 | BY31: 8608.09474 | BZ31: 18288.43093 | CA31: 34537.96266 | CB31: 129801.1935 | CC31: 1064.936471 | CD31: 0 | CE31: 24211.30924 | CF31: 97817.40199 | CG31: 123093.6477 | CH31: 2473.098601 | CI31: 21789.56353 | CJ31: 22849.21958 | CK31: 75981.76599 | CL31: 2351.55574 | CM31: 20222.33275 | CN31: 20828.80424 | CO31: 69342.73985 | CP31: 1373.602567 | CQ31: 4243.576092 | CR31: 26355.15681 | CS31: 70562.2763 | CT31: 6131.60887 | CU31: 2029.591182 | CV31: 9803.873717 | CW31: 52497.02371 | CX31: 0.9333908215 | CY31: 0.9999996574 | CZ31: 1.062928929 | DA31: 1.02783119 | DB31: 1.823054783 | DC31: 17862.09142 | DD31: 195493.3346 | DE31: 103263.381 | DF31: 379202.7568 | DG31: 8.439488292 | DH31: 34685.63381 | DI31: 226747.8759 | DJ31: 222424.0373 | DK31: 691307.3996 | DL31: 33163.157 | DM31: 212912.9311 | DN31: 207295.8695 | DO31: 637912.4715 | DP31: 0.3010265647 | DQ31: 0.867984399 | DR31: 0.2673865527 | DS31: 0.3969433381 | DT31: 3.421430391 | DU31: 1.242477478 | DV31: 4.103591409 | DW31: 2.716807745 | DY31: 61783.41191 | DZ31: 21789.56353 | EA31: 0.02790413723 | EC31: 0.05707870964 | ED31: 0.001700903218 | EE31: 0.2060117544 | EF31: 0 | EG31: 0.3429932953 | EH31: 0.1262312946 | EI31: 0.06007760101 | EJ31: 0.02066893859 | EK31: =+EK30*(1+EK$7) -> 0.1787133821 | EL31: 0.1492132268 | EM31: 0.1726209475 | EN31: 0.009885411405 | EO31: =+EO30*(1+EO$7) -> 0.03441574464 | EP31: 0.07145571773 | EQ31: 1.115972155 | ER31: 1 | ES31: 1.098202183 | ET31: 1.098202183 | EU31: 1.24471586 | EV31: 1 | EW31: 1.24471586 | EX31: 1.24471586 | EY31: 34.75843397 | EZ31: 107.2098365 | FA31: 249.1465043 | FB31: 5.417602385 | FC31: 328.1983525 | FD31: 75.93114906 | FE31: 138.2378344 | FF31: 876.6850565 | FG31: 1476.277196 | FH31: 3560.910168 | FI31: 559.3403582 | FJ31: 1065.222525 | FK31: 941.5792945 | FL31: 547.2365315 | FM31: 302.3654184 | FN31: 30.37245962 | FO31: 55.29513374 | FP31: 350.6740226 | FQ31: 590.5108785 | FR31: 1424.364067 | FS31: 700.4024009 | FT31: 1365.965329 | FU31: 2418.084878 | FV31: 2619.442209 | FW31: 5615.838006 | FY31: 0 | FZ31: 0 | GA31: 0 | GB31: 67067.59074 | GC31: 0 | GD31: 0 | GE31: 0 | GF31: 111181.5546 | GG31: 0 | GH31: 85397.71931 | GI31: 317.8281586 | GJ31: 0 | GK31: 8249.374122 | GL31: 120031.3749 | GM31: 71556.62644 | GN31: 1609.463564 | GO31: 3.443142795 | GP31: 0.025 | GQ31: 1.721571398 | GR31: 0 | GS31: 0 | GT31: 0 | GU31: 0 | GV31: 0 | GX31: 0.5142516673 | GY31: 1.098202183 | GZ31: 0.2677022663 | HA31: 0.1026201287 | HB31: 0.370322395 | HC31: -33461.37171 | HE31: 1.707812771e-07 | HF31: 137197.1075 | HG31: 137197.1075 | HH31: 150842.3525 | HI31: -54549.63128 | HJ31: 59422.34298 | HK31: -85503.21544 | HL31: 66985.25868 | HM31: 23021.60067 | HN31: 77571.23195 | HO31: 184805.1026 | HP31: 125382.7596 | HQ31: =p_1*Ex_1+p_2*Ex_2+p_3*Ex_3+p_4*Ex_4 -> 85764.52864 | HR31: 212912.5212 | HS31: 986.0439333 | HT31: 286025.8213 | HU31: 0 | HV31: 12693.03777 | HW31: 10328.56291 | HX31: 6852.772134 | HY31: 80.76977539 | HZ31: 3922.861077 | IA31: 3132.67213 | IB31: 5556.734783 | ID31: 327457.7627 | IE31: 74585.69762 | IG31: -8.731149137e-10 | IH31: -3.399327397e-08
A32: 2026 | B32: 23 | C32: 704701.3928 | D32: 353593.8681 | E32: 134479.4498 | F32: 194291.5684 | G32: 304240.0548 | H32: -281903.5482 | I32: 0.6698035137 | J32: 0.08107101326 | K32: 0.8658331516 | L32: 0.6236315213 | M32: 0.6019068815 | N32: 0.9327690298 | O32: 0.5197924618 | P32: 0.7173021337 | Q32: 1.036028762 | R32: 1 | S32: 1.164115422 | T32: 1.112495623 | U32: 17897.69105 | V32: 208387.9549 | W32: 119019.6797 | X32: 424906.7804 | Y32: 29590.93079 | Z32: 218924.8746 | AA32: 212360.2819 | AB32: 577508.748 | AC32: 962.2391646 | AD32: 280941.3091 | AE32: 87073.63932 | AF32: 78187.84328 | AG32: 218924.8746 | AH32: 371224.8175 | AI32: 782371.1102 | AJ32: 83674.9729 | AK32: 219049.9921 | AL32: 391515.151 | AM32: 707857.9946 | AN32: 22565.78551 | AO32: 219049.9921 | AP32: 228635.4308 | AQ32: 594622.4804 | AR32: 346959.9394 | AT32: 147384.6302 | AU32: 55309.4878 | AV32: 10750.23981 | AW32: 196994.8012 | AX32: 59944.63041 | AY32: 276265.0692 | AZ32: 19193.60449 | BA32: 34640.86473 | BB32: 60960.48288 | BC32: 98283.7476 | BD32: 350058.2746 | BE32: 12658.00897 | BF32: 1436.656541 | BG32: 2321.313532 | BH32: 2523.965461 | BI32: 3021.839207 | BJ32: 3354.234224 | BK32: 0 | BL32: 0 | BM32: 0 | BN32: 0 | BO32: 0 | BP32: 0 | BQ32: 127428.857 | BR32: 7373.040512 | BS32: 14723.37247 | BT32: 22030.23411 | BU32: 30138.89161 | BV32: 53163.31832 | BW32: 213507.0021 | BX32: 6682.258783 | BY32: 9266.04938 | BZ32: 19754.27482 | CA32: 37343.33764 | CB32: 140461.0815 | CC32: 1163.439977 | CD32: 0 | CE32: 26450.78447 | CF32: 106865.2253 | CG32: 134479.4498 | CH32: 2602.222199 | CI32: 23478.25471 | CJ32: 25123.65232 | CK32: 83275.32055 | CL32: 2473.098601 | CM32: 21789.56353 | CN32: 22849.21958 | CO32: 75981.76599 | CP32: 1471.812527 | CQ32: 4500.976434 | CR32: 28360.87456 | CS32: 76602.48997 | CT32: 6602.85723 | CU32: 2163.462512 | CV32: 10602.73202 | CW32: 57275.78471 | CX32: 0.9367975196 | CY32: 0.9999996573 | CZ32: 1.060424185 | DA32: 1.021684565 | DB32: 1.803383895 | DC32: 19105.18621 | DD32: 208388.0264 | DE32: 112237.802 | DF32: 415888.421 | DG32: 8.432624155 | DH32: 36291.59157 | DI32: 241735.0032 | DJ32: 239156.5959 | DK32: 750006.4806 | DL32: 34685.63381 | DM32: 226747.8759 | DN32: 222424.0373 | DO32: 691307.3996 | DP32: 0.3099334978 | DQ32: 0.8687834468 | DR32: 0.26950608 | DS32: 0.3996269523 | DT32: 3.328886331 | DU32: 1.245526546 | DV32: 4.09018971 | DW32: 2.709003779 | DY32: 67961.75311 | DZ32: 23478.25471 | EA32: 0.0281831786 | EC32: 0.05993264513 | ED32: 0.001717912251 | EE32: 0.2139052095 | EF32: 0 | EG32: 0.3582408566 | EH32: 0.1305481526 | EI32: 0.06037798901 | EJ32: 0.02055945649 | EK32: =+EK31*(1+EK$7) -> 0.1813940828 | EL32: 0.149959293 | EM32: 0.170894738 | EN32: 0.009882214231 | EO32: =+EO31*(1+EO$7) -> 0.0340715872 | EP32: 0.07074116055 | EQ32: 1.121552016 | ER32: 1 | ES32: 1.104771061 | ET32: 1.104771061 | EU32: 1.257163018 | EV32: 1 | EW32: 1.257163018 | EX32: 1.257163018 | EY32: 36.84394 | EZ32: 113.6424267 | FA32: 264.0952946 | FB32: 5.742658528 | FC32: 347.8902536 | FD32: 80.48701801 | FE32: 146.5321044 | FF32: 929.2861599 | FG32: 1564.853828 | FH32: 3774.564778 | FI32: 592.9007797 | FJ32: 1129.135876 | FK32: 998.0740521 | FL32: 580.0707234 | FM32: 320.5073435 | FN32: 32.1948072 | FO32: 58.61284177 | FP32: 371.714464 | FQ32: 625.9415312 | FR32: 1509.825911 | FS32: 742.4265449 | FT32: 1447.923249 | FU32: 2563.169971 | FV32: 2776.608741 | FW32: 5952.788286 | FY32: 0 | FZ32: 0 | GA32: 0 | GB32: 73103.67391 | GC32: 0 | GD32: 0 | GE32: 0 | GF32: 121187.8945 | GG32: 0 | GH32: 91059.98258 | GI32: 336.8978481 | GJ32: 0 | GK32: 8744.336569 | GL32: 127990.0095 | GM32: 74418.89149 | GN32: 1689.936742 | GO32: 3.529221365 | GP32: 0.025 | GQ32: 1.764610683 | GR32: 0 | GS32: 0 | GT32: 0 | GU32: 0 | GV32: 0 | GX32: 0.515236794 | GY32: 1.104771061 | GZ32: 0.2709501714 | HA32: 0.1016803121 | HB32: 0.3726304835 | HC32: -44829.90826 | HE32: 2.060551196e-07 | HF32: 150884.2188 | HG32: 150884.2188 | HH32: 164155.4098 | HI32: -60007.85318 | HJ32: 59575.50946 | HK32: -91157.33115 | HL32: 78318.48386 | HM32: 24940.35284 | HN32: 84948.20602 | HO32: 196994.8012 | HP32: 137419.2917 | HQ32: =p_1*Ex_1+p_2*Ex_2+p_3*Ex_3+p_4*Ex_4 -> 91452.17056 | HR32: 225561.6203 | HS32: 1063.053983 | HT32: 310375.828 | HU32: 0 | HV32: 13725.22099 | HW32: 11215.13186 | HX32: 7263.938462 | HY32: 86.70617913 | HZ32: 4181.612018 | IA32: 3398.676722 | IB32: 6058.226067 | ID32: 353593.8681 | IE32: 74585.69762 | IG32: -1.076841727e-09 | IH32: -4.097819328e-08
A33: 2027 | B33: 24 | C33: 759141.6434 | D33: 382009.6519 | E33: 147016.046 | F33: 211777.8096 | G33: 322597.5772 | H33: -304259.4413 | I33: 0.6722383041 | J33: 0.08137668745 | K33: 0.8734530295 | L33: 0.6275617115 | M33: 0.6021974049 | N33: 0.9324587518 | O33: 0.5260200864 | P33: 0.7212955595 | Q33: 1.039785574 | R33: 1 | S33: 1.174411272 | T33: 1.119498977 | U33: 19227.59007 | V33: 222347.3548 | W33: 129164.4144 | X33: 463493.6782 | Y33: 31774.36665 | Z33: 233667.8447 | AA33: 227851.6429 | AB33: 626503.3967 | AC33: 1031.896193 | AD33: 303227.5451 | AE33: 94205.93363 | AF33: 84261.55809 | AG33: 233667.8447 | AH33: 401811.0451 | AI33: 854123.1759 | AJ33: 89849.12595 | AK33: 233801.388 | AL33: 420058.0127 | AM33: 767942.0562 | AN33: 24243.18628 | AO33: 233801.388 | AP33: 244033.82 | AQ33: 645472.775 | AR33: 378060.5527 | AT33: 161270.9977 | AU33: 59246.17497 | AV33: 11585.43279 | AW33: 210191.0016 | AX33: 64883.53502 | AY33: 301591.5849 | AZ33: 20645.61364 | BA33: 37545.57469 | BB33: 66297.27734 | BC33: 106992.5886 | BD33: 381388.5629 | BE33: 13702.29002 | BF33: 1539.807203 | BG33: 2507.295281 | BH33: 2735.529498 | BI33: 3278.160605 | BJ33: 3641.497431 | BK33: 0 | BL33: 0 | BM33: 0 | BN33: 0 | BO33: 0 | BP33: 0 | BQ33: 137364.4515 | BR33: 7861.948126 | BS33: 15818.2003 | BT33: 23748.81416 | BU33: 32521.80985 | BV33: 57413.67906 | BW33: 230942.9104 | BX33: 7142.071941 | BY33: 9979.656091 | BZ33: 21348.80252 | CA33: 40397.60525 | CB33: 152074.7746 | CC33: 1271.899501 | CD33: 0 | CE33: 28916.60958 | CF33: 116827.5369 | CG33: 147016.046 | CH33: 2739.475967 | CI33: 25297.81945 | CJ33: 27690.43044 | CK33: 91288.32012 | CL33: 2602.222199 | CM33: 23478.25471 | CN33: 25123.65232 | CO33: 83275.32055 | CP33: 1578.267244 | CQ33: 4778.592883 | CR33: 30544.83431 | CS33: 83208.95503 | CT33: 7115.837415 | CU33: 2308.387579 | CV33: 11476.30287 | CW33: 62526.52475 | CX33: 0.9404026455 | CY33: 0.9999996571 | CZ33: 1.057088025 | DA33: 1.015262023 | DB33: 1.784194863 | DC33: 20446.12503 | DD33: 222347.4311 | DE33: 122188.8918 | DF33: 456526.1655 | DG33: 8.436891135 | DH33: 37986.52398 | DI33: 257961.2078 | DJ33: 257703.4418 | DK33: 814531.6391 | DL33: 36291.59157 | DM33: 241735.0032 | DN33: 239156.5959 | DO33: 750006.4806 | DP33: 0.3192318741 | DQ33: 0.8695099957 | DR33: 0.2713014658 | DS33: 0.4021186386 | DT33: 3.237670446 | DU33: 1.248681449 | DV33: 4.082066334 | DW33: 2.702726153 | DY33: 74757.92842 | DZ33: 25297.81945 | EA33: 0.02846501039 | EC33: 0.06292927738 | ED33: 0.001735091373 | EE33: 0.2216338704 | EF33: 0 | EG33: 0.3734205743 | EH33: 0.1347307078 | EI33: 0.06067987896 | EJ33: 0.02045036572 | EK33: =+EK32*(1+EK$7) -> 0.1841149941 | EL33: 0.1507090894 | EM33: 0.1691857907 | EN33: 0.009878926994 | EO33: =+EO32*(1+EO$7) -> 0.03373087133 | EP33: 0.07003374894 | EQ33: 1.127159776 | ER33: 1 | ES33: 1.111537576 | ET33: 1.111537576 | EU33: 1.269734649 | EV33: 1 | EW33: 1.269734649 | EX33: 1.269734649 | EY33: 39.0545764 | EZ33: 120.4609723 | FA33: 279.9410123 | FB33: 6.087218039 | FC33: 368.7636688 | FD33: 85.31623909 | FE33: 155.3240307 | FF33: 985.0433295 | FG33: 1658.745058 | FH33: 4001.038665 | FI33: 628.4748265 | FJ33: 1196.884029 | FK33: 1057.958495 | FL33: 614.8749668 | FM33: 339.7377841 | FN33: 34.12649563 | FO33: 62.12961227 | FP33: 394.0173318 | FQ33: 663.4980231 | FR33: 1600.415466 | FS33: 786.9721376 | FT33: 1534.798644 | FU33: 2716.960169 | FV33: 2943.205266 | FW33: 6309.955584 | FY33: 0 | FZ33: 0 | GA33: 0 | GB33: 79683.00456 | GC33: 0 | GD33: 0 | GE33: 0 | GF33: 132094.805 | GG33: 0 | GH33: 97192.19849 | GI33: 357.111719 | GJ33: 0 | GK33: 9268.996763 | GL33: 136609.1895 | GM33: 77395.64715 | GN33: 1774.433579 | GO33: 3.617451899 | GP33: 0.025 | GQ33: 1.80872595 | GR33: 0 | GS33: 0 | GT33: 0 | GU33: 0 | GV33: 0 | GX33: 0.5162161023 | GY33: 1.111537576 | GZ33: 0.2741531178 | HA33: 0.1007157134 | HB33: 0.3748688312 | HC33: -57397.3688 | HE33: 2.492743079e-07 | HF33: 166070.803 | HG33: 166070.803 | HH33: 178759.4616 | HI33: -66002.15103 | HJ33: 59556.81562 | HK33: -97278.91058 | HL33: 91035.58743 | HM33: 27040.82114 | HN33: 93042.97217 | HO33: 210191.0016 | HP33: 150634.186 | HQ33: =p_1*Ex_1+p_2*Ex_2+p_3*Ex_3+p_4*Ex_4 -> 97611.59452 | HR33: 239127.7556 | HS33: 1146.991393 | HT33: 337048.8103 | HU33: 0 | HV33: 14853.9546 | HW33: 12186.86654 | HX33: 7699.77477 | HY33: 93.14893547 | HZ33: 4461.72799 | IA33: 3690.294955 | IB33: 6608.782724 | ID33: 382009.6519 | IE33: 74585.69762 | IG33: -1.309672371e-09 | IH33: -4.982575774e-08
A34: 2028 | B34: 25 | C34: 818328.9474 | D34: 412918.1158 | E34: 160830.6373 | F34: 230837.8124 | G34: 342327.6598 | H34: -328585.2779 | I34: 0.6748016046 | J34: 0.08169084162 | K34: 0.881293334 | L34: 0.6316001852 | M34: 0.602581526 | N34: 0.9321398661 | O34: 0.53240497 | P34: 0.7253960241 | Q34: 1.043741055 | R34: 1 | S34: 1.185004253 | T34: 1.126695241 | U34: 20671.97815 | V34: 237451.8131 | W34: 140289.2878 | X34: 505874.9484 | Y34: 34139.49968 | Z34: 249626.6926 | AA34: 244636.6072 | AB34: 679965.8961 | AC34: 1107.324937 | AD34: 327477.953 | AE34: 102008.0323 | AF34: 90877.99016 | AG34: 249626.6926 | AH34: 435284.3671 | AI34: 933004.5327 | AJ34: 96537.06842 | AK34: 249769.3565 | AL34: 450983.6267 | AM34: 833506.4034 | AN34: 26056.8473 | AO34: 249769.3565 | AP34: 260648.4516 | AQ34: 700976.9474 | AR34: 412218.0688 | AT34: 176564.3985 | AU34: 63497.0027 | AV34: 12495.2619 | AW34: 224469.6568 | AX34: 70288.57092 | AY34: 329434.236 | AZ34: 22220.899 | BA34: 40720.56004 | BB34: 72147.91018 | BC34: 116548.4443 | BD34: 415791.0617 | BE34: 14840.29521 | BF34: 1651.166041 | BG34: 2709.599135 | BH34: 2966.31665 | BI34: 3557.965677 | BJ34: 3955.247711 | BK34: 0 | BL34: 0 | BM34: 0 | BN34: 0 | BO34: 0 | BP34: 0 | BQ34: 148144.6364 | BR34: 8386.719065 | BS34: 17002.40297 | BT34: 25613.28107 | BU34: 35109.44793 | BV34: 62032.78537 | BW34: 249933.1842 | BX34: 7637.219567 | BY34: 10753.98393 | BZ34: 23084.11353 | CA34: 43724.38879 | CB34: 164733.4784 | CC34: 1391.415516 | CD34: 0 | CE34: 31633.80376 | CF34: 127805.4181 | CG34: 160830.6373 | CH34: 2885.455607 | CI34: 27258.40045 | CJ34: 30594.60744 | CK34: 100092.1738 | CL34: 2739.475967 | CM34: 25297.81945 | CN34: 27690.43044 | CO34: 91288.32012 | CP34: 1693.743271 | CQ34: 5077.822236 | CR34: 32924.70725 | CS34: 90438.53471 | CT34: 7674.659529 | CU34: 2465.200525 | CV34: 12432.32089 | CW34: 68298.91462 | CX34: 0.944206393 | CY34: 0.999999657 | CZ34: 1.05288943 | DA34: 1.008618456 | DB34: 1.765432229 | DC34: 21893.49522 | DD34: 237451.8945 | DE34: 133242.1846 | DF34: 501552.3415 | DG34: 8.452832261 | DH34: 39776.33685 | DI34: 275520.191 | DJ34: 278307.0276 | DK34: 885456.6683 | DL34: 37986.52398 | DM34: 257961.2078 | DN34: 257703.4418 | DO34: 814531.6391 | DP34: 0.3289393342 | DQ34: 0.8701682655 | DR34: 0.2727498338 | DS34: 0.4044462119 | DT34: 3.147828815 | DU34: 1.251936605 | DV34: 4.079428376 | DW34: 2.697752274 | DY34: 82233.72126 | DZ34: 27258.40045 | EA34: 0.02874966049 | EC34: 0.06607574125 | ED34: 0.001752442287 | EE34: 0.2291937321 | EF34: 0 | EG34: 0.3885282606 | EH34: 0.1387781389 | EI34: 0.06098327835 | EJ34: 0.02034166371 | EK34: =+EK33*(1+EK$7) -> 0.186876719 | EL34: 0.1514626349 | EM34: 0.1674939328 | EN34: 0.009875548562 | EO34: =+EO33*(1+EO$7) -> 0.03339356261 | EP34: 0.06933341145 | EQ34: 1.132795575 | ER34: 1 | ES34: 1.118505174 | ET34: 1.118505174 | EU34: 1.282431995 | EV34: 1 | EW34: 1.282431995 | EX34: 1.282431995 | EY34: 41.39785099 | EZ34: 127.6886307 | FA34: 296.737473 | FB34: 6.452451122 | FC34: 390.889489 | FD34: 90.43521343 | FE34: 164.6434725 | FF34: 1044.145929 | FG34: 1758.269761 | FH34: 4241.100985 | FI34: 666.1833161 | FJ34: 1268.697071 | FK34: 1121.436005 | FL34: 651.7674649 | FM34: 360.1220512 | FN34: 36.17408537 | FO34: 65.85738901 | FP34: 417.6583717 | FQ34: 703.3079045 | FR34: 1696.440394 | FS34: 834.1904659 | FT34: 1626.886563 | FU34: 2879.977779 | FV34: 3119.797582 | FW34: 6688.552919 | FY34: 0 | FZ34: 0 | GA34: 0 | GB34: 86854.47497 | GC34: 0 | GD34: 0 | GE34: 0 | GF34: 143983.3374 | GG34: 0 | GH34: 103830.1487 | GI34: 378.5384221 | GJ34: 0 | GK34: 9825.136569 | GL34: 145939.2078 | GM34: 80491.47304 | GN34: 1863.155258 | GO34: 3.707888197 | GP34: 0.025 | GQ34: 1.853944098 | GR34: 0 | GS34: 0 | GT34: 0 | GU34: 0 | GV34: 0 | GX34: 0.5171896163 | GY34: 1.118505174 | GZ34: 0.2773171075 | HA34: 0.09973021334 | HB34: 0.3770473209 | HC34: -71280.47089 | HE34: 3.020977601e-07 | HF34: 182936.2258 | HG34: 182936.2258 | HH34: 194788.8964 | HI34: -72585.34962 | HJ34: 59324.87751 | HK34: -103903.3355 | HL34: 105311.1371 | HM34: 29341.37991 | HN34: 101926.7295 | HO34: 224469.6568 | HP34: 165144.7793 | HQ34: =p_1*Ex_1+p_2*Ex_2+p_3*Ex_3+p_4*Ex_4 -> 104278.7183 | HR34: 253676.0522 | HS34: 1238.548671 | HT34: 366285.7847 | HU34: 0 | HV34: 16088.72291 | HW34: 13252.65701 | HX34: 8161.761256 | HY34: 100.1463393 | HZ34: 4764.821248 | IA34: 4010.237859 | IB34: 7213.51746 | ID34: 412918.1158 | IE34: 74585.69762 | IG34: -1.600710675e-09 | IH34: -5.960464478e-08
R35: =(1+tau_2)*Costo_2+iva_2*VA_2 ->  | AN35: =+AN9 -> 4893.458328 | AO35: =+AO9 -> 78024.59952 | AP35: =+AP9 -> 60567.93337 | AQ35: =+AQ9 -> 102855.648 | AV35: =+AV10/AV9-1 -> 0.06230126143 | AW35: 0.01801599301 | AX35: 0.06549424598 | AY35: 0.07924531976 | AZ35: 0.06169165929 | BA35: 0.06833710236 | BB35: 0.07246497318 | BC35: 0.07395554149 | BE35: =+BE10/BE9-1 -> 0.06978316795 | BQ35: =+BQ10/BQ9-1 -> 0.06812273574 | BW35: =+BW10/BW9-1 -> 0.07043996761 | GX35: 0.5048623985
C36: 762662.6541 | D36: 415380.4112 | GX36: =+GX35/GX33-1 -> -0.02199409064
C37: =+C36/C34-1 -> -0.06802434823 | D37: =+D36/D34-1 -> 0.005963156447

Sheet RAS (Fac))
C1: Capital
E2: Calif | F2: No calif | G2: Capital | H2: Total de la MCS de base
D3: H1 | E3: =+E26 -> 620.6309473 | F3: 3517.250491 | G3: 0 | H3: =+SAM!AC28-SAM!AB28-SAM!AA28-SAM!V28-SAM!W28 -> 4137.881438
D4: H2 | E4: 2518.039394 | F4: 3096.678009 | G4: 670.6200225 | H4: =+SAM!AC29-SAM!AB29-SAM!AA29-SAM!V29-SAM!W29 -> 6285.337425
D5: H3 | E5: 4296.487925 | F5: 2403.588109 | G5: 3432.802722 | H5: =+SAM!AC30-SAM!AB30-SAM!AA30-SAM!V30-SAM!W30 -> 10132.87876
D6: H4 | E6: 4719.017942 | F6: 2137.51013 | G6: 9425.988111 | H6: =+SAM!AC31-SAM!AB31-SAM!AA31-SAM!V31-SAM!W31 -> 16282.51618
D7: H5 | E7: 10223.80985 | F7: 2388.732606 | G7: 45188.03995 | H7: =+SAM!AC32-SAM!AB32-SAM!AA32-SAM!V32-SAM!W32 -> 57800.5824
D8: Total | E8: =+SAM!M48 -> 22377.98606 | F8: =+SAM!N48 -> 13543.75934 | G8: =+SAM!O48 -> 58717.4508 | H8: =IF(ROUND(SUM(E8:G8),6)=ROUND(SUM(H3:H7),6),"","error") -> 
E9: =+SAM!M49 -> 0 | F9: =+SAM!N49 -> 0 | G9: =+SAM!O49 -> 0 | H9: =SUM(H3:H7) -> 94639.1962
H10: =SUM(E8:G8) -> 94639.1962
C11: Now get factor share matrix to be consistent with incomes and factor payments
F12: run-RAS-> | G12: 1
C13: H1 | E13: 0.03285379108 | F13: 0.3 | G13: 0
C14: H2 | E14: 0.1059790135 | F14: 0.21 | G14: 0.01047743926
C15: H3 | E15: 0.1775037936 | F15: 0.16 | G15: 0.05264585373
C16: H4 | D16: when run = 0 | E16: 0.2055269672 | F16: 0.15 | G16: 0.1523931184
C17: H5 | E17: =1-SUM(E13:E16) -> 0.4781364346 | F17: =1-SUM(F13:F16) -> 0.18 | G17: 0.7844835886
C18: scale rows to agree with row sums | E18: =SUM(E13:E17) -> 1 | F18: =SUM(F13:F17) -> 1 | G18: =SUM(G13:G17) -> 1
C19: H1 | E19: =+IF($G$12=0,E13*$H3,E26*$H3/$H26) -> 620.6309473 | F19: 3517.250491 | G19: 0 | H19: =+SUM(E19:G19) -> 4137.881438
C20: H2 | E20: 2518.039394 | F20: 3096.678009 | G20: 670.6200225 | H20: =+SUM(E20:G20) -> 6285.337425
C21: H3 | E21: 4296.487925 | F21: 2403.588109 | G21: 3432.802722 | H21: 10132.87876
C22: H4 | E22: 4719.017942 | F22: 2137.51013 | G22: 9425.988111 | H22: 16282.51618
C23: H5 | E23: 10223.80985 | F23: 2388.732606 | G23: 45188.03995 | H23: 57800.5824
E24: =SUM(E19:E23) -> 22377.98606 | F24: =SUM(F19:F23) -> 13543.75934 | G24: =SUM(G19:G23) -> 58717.4508
E25: scale columns to agree with col sums
C26: H1 | E26: =+E19*E$8/E$24 -> 620.6309473 | F26: 3517.250491 | G26: 0 | H26: =+SUM(E26:G26) -> 4137.881438
C27: H2 | D27: when run = 1 | E27: 2518.039394 | F27: 3096.678009 | G27: 670.6200225 | H27: =+SUM(E27:G27) -> 6285.337425
C28: H3 | E28: 4296.487925 | F28: 2403.588109 | G28: 3432.802722 | H28: =+SUM(E28:G28) -> 10132.87876
C29: H4 | E29: 4719.017942 | F29: 2137.51013 | G29: 9425.988111 | H29: =+SUM(E29:G29) -> 16282.51618
C30: H5 | E30: 10223.80985 | F30: 2388.732606 | G30: 45188.03995 | H30: =+SUM(E30:G30) -> 57800.5824
E31: =SUM(E26:E30) -> 22377.98606 | F31: =SUM(F26:F30) -> 13543.75934 | G31: 58717.4508

Sheet notas
A1: Notas
A3: PX = Tax + VA + PA | C3: VA es privado aqui
A4: PX = (1+iva) VA + PA
A5: VA = Profs + Wages
A6: Profs = tau (Wages + PA)
A7: VA = tau (Wages + PA) + Wages
A8: VA = (1+tau) Wages + tau PA
A9: PX =(1+iva) ( (1+tau) Wages + tau PA) + PA
A10: PX =((1+tau) Wages + tau PA) + PA +iva ( (1+tau) Wages + tau PA)
A11: PX = (1+tau) (PA + Wages) +iva ( (1+tau) Wages + tau PA)
A13: In terms of GOS
A14: GOS = PX - PA - Wages
A15: GOS = tau (PA +Wages) + iva VA
A18: Profs
A19: PX = (tau (Wages+PA) + Wages) (1+iva) + PA
A20: (PX-PA)/(1+iva) = (Profs + Wages)
A21: (PX-PA)/(1+iva) - Wages = Profs
A22: VA-Wages = Profs
A23: AB is not needed
A24: margins and taxes deducted from firms
A25: budget before they spend their incomes on the rest of
A26: the goods they buy…here treating firms like consumers
A27: bB/pX is the demand for each of the goods
A29: p for imports is e*(1+ts_)
A31: p for imports from rest of Mexico is pm
A32: should probably have pm in the model
A33: should probably have a separate margin
A34: or say that pm includes transportation margins
A38: Q = K^βL^(1-β)
A39: K/Q = (K/L)^(1-β)
A41: rK/Q =β = (K/L)^(1-β)
A42: K/Q =β/r
A44: K/Q = | B44: =0.6/0.25 -> 2.4
B45: I = I0 + alpha D / Q | D45: invest by destination
B46: ΔK = I - dep K | D46: change in capital stock
B47: K(0)=K(-1)(1-dep) + I(-1)
B49: dK/K = I/K - dep | D49: growth rate of capital stock
B53: gK = gK0+alpha u
B54: I known in base SAM
B55: Y known in base SAM
B56: I/Y = s
B57: K/Y = v
B58: gK = s/v - dep

Sheet SAM_aida
C2: Bienes | H2: Empresas | L2: Factores de Produccion | O2: Institutions | V2: Invers | Y2: Extranjeros
AA3: Total
C4: =+B10 -> AgPec | D4: =+B11 -> Pet | E4: =+B12 -> Industria | F4: =+B13 -> Servicios | G4: =+B14 -> Margen | H4: =+C4 -> AgPec | I4: =+D4 -> Pet | J4: Industria | K4: Servicios | L4: =+B24 -> Ls | M4: Lu | N4: =+B26 -> Capital | O4: Hogares-Qunitiles | T4: Gob | V4: Privado | W4: Publico | X4: Publico | Y4: Expt RM | Z4: Expt Mex
B5: Mexico 2003 | O5: 1 | P5: 2 | Q5: 3 | R5: 4 | S5: 5 | W5: Local | X5: Federal | Y5: XRM | Z5: XRM
T6: Local | U6: Federal
B9: Bienes | H9: =SUM(H10:H14) -> 670.5101 | I9: =SUM(I10:I14) -> 12517.9793 | J9: =SUM(J10:J14) -> 2265.3803 | K9: =SUM(K10:K14) -> 8490.7191 | AA9: =SUM(C9:Z9) -> 23944.5888
B10: AgPec | H10: 534.0885 | I10: 0 | J10: 0 | K10: 0 | AA10: 534.0885
B11: Pet | H11: 0 | I11: 12514.7477 | J11: 1.5 | K11: 182.5651 | AA11: 12698.8128
B12: Industria | H12: 0 | I12: 0 | J12: 1053.7637 | K12: 4.0256 | AA12: 1057.7893
B13: Servicios | H13: 0 | I13: 0 | J13: 50.2056 | K13: 8304.1284 | AA13: 8354.334
B14: Margen | H14: 136.4216 | I14: 3.2316 | J14: 1159.911 | K14: 0 | AA14: 1299.5642
B16: Empresas | C16: =SUM(C17:C20) -> 201.7227 | D16: =SUM(D17:D20) -> 5528.3284 | E16: =SUM(E17:E20) -> 623.1333 | F16: =SUM(F17:F20) -> 2821.6543 | O16: =SUM(O17:O20) -> 315.3796 | P16: =SUM(P17:P20) -> 458.4213 | Q16: 710.6585 | R16: 1101.7856 | S16: 2999.6423 | T16: 2136.7202 | V16: 1637.9945 | X16: 0 | Y16: 2595.9626 | Z16: 6275.5322 | AA16: 28706.4997
B17: =+B10 -> AgPec | C17: 28.5029 | D17: 0 | E17: 278.7205 | F17: 45.7592 | O17: 32.2789 | P17: 43.0028 | Q17: 44.3135 | R17: 53.1205 | S17: 61.7225 | T17: 0 | V17: 14.171 | Y17: 0 | Z17: 182.7238 | AA17: =SUM(C17:Z17) -> 784.3156
B18: =+B11 -> Pet | C18: 0.2557 | D18: 4981.644 | E18: 21.6717 | F18: 0.4662 | O18: 0 | P18: 0 | Q18: 0 | R18: 0 | S18: 0 | T18: 0 | V18: 0 | Y18: 2588.9227 | Z18: 5759.2936 | AA18: =SUM(C18:Z18) -> 13352.2539 | AC18: =+Z18/Z16 -> 0.9177378773
B19: Industria | C19: 161.6223 | D19: 58.3818 | E19: 231.7952 | F19: 1534.1627 | O19: 176.5105 | P19: 292.96 | Q19: 418.0017 | R19: 576.6192 | S19: 1071.8569 | T19: 0 | V19: 322.1774 | Y19: 7.0399 | Z19: 200.1125 | AA19: =SUM(C19:Z19) -> 5051.2401
B20: Servicios | C20: 11.3418 | D20: 488.3026 | E20: 90.9459 | F20: 1241.2662 | G20: =+G50 -> 1299.5642 | O20: 106.5902 | P20: 122.4585 | Q20: 248.3433 | R20: 472.0459 | S20: 1866.0629 | T20: 2136.7202 | V20: 1301.6461 | Y20: 0 | Z20: 133.4023 | AA20: =SUM(C20:Z20) -> 9518.6901
B23: Factores | C23: =SUM(C24:C26) -> 330.7544 | D23: =SUM(D24:D26) -> 6926.634 | E23: =SUM(E24:E26) -> 421.1576 | F23: =SUM(F24:F26) -> 5452.9219 | AA23: =SUM(AA24:AA26) -> 13131.4679
B24: Ls | C24: 28.73008 | D24: 171.22973 | E24: 52.351875 | F24: 1595.54352 | AA24: =SUM(C24:Z24) -> 1847.855205
B25: Lu | C25: 114.92032 | D25: 73.38417 | E25: 17.450625 | F25: 1063.69568 | AA25: =SUM(C25:Z25) -> 1269.450795
B26: Capital | C26: 187.104 | D26: 6682.0201 | E26: 351.3551 | F26: 2793.6827 | AA26: =SUM(C26:Z26) -> 10014.1619
B28: =+O4 -> Hogares-Qunitiles | L28: =SUM(L29:L33) -> 1847.855205 | M28: =SUM(M29:M33) -> 1269.450795 | N28: =SUM(N29:N33) -> 10014.1619 | T28: =SUM(T29:T33) -> 75.6588 | Y28: =SUM(Y29:Y33) -> 16.0528 | Z28: =SUM(Z29:Z33) -> 190.6177 | AA28: =SUM(C28:Z28) -> 13413.7972
B29: H1 | L29: 12.66298 | M29: 50.65192 | N29: 277.6106 | T29: 12.3894 | Y29: 0.7699 | Z29: 2.3619 | AA29: =SUM(H29:Z29) -> 356.4467
B30: H2 | L30: 70.298 | M30: 105.447 | N30: 591.3923 | T30: 23.5947 | Y30: 2.3747 | Z30: 4.3 | AA30: =SUM(H30:Z30) -> 797.4067
B31: H3 | L31: 198.39576 | M31: 132.26384 | N31: 909.1959 | T31: 20.856 | Y31: 5.5186 | Z31: 27.27 | AA31: =SUM(H31:Z31) -> 1293.5001
B32: H4 | L32: 492.67176 | M32: 428.4014775 | N32: 1606.7978 | T32: 12.1213 | Y32: 0.12 | Z32: 45.9208 | AA32: =SUM(H32:Z32) -> 2586.033138
B33: H5 | L33: 1073.826705 | M33: 552.6865575 | N33: 6629.1653 | T33: 6.6974 | Y33: 7.2696 | Z33: 110.765 | AA33: =SUM(H33:Z33) -> 8380.410562
Z34: 0
B35: Gobierno local | C35: =+SUM(C36:C42) -> 1.6114 | D35: =+SUM(D36:D42) -> 243.8504 | E35: 13.4984 | F35: 79.7578 | H35: 0 | I35: 0 | J35: 67.576 | K35: 61.861 | AA35: =SUM(C35:Z35) -> 468.155
B36: Impuestos directos | AA36: =SUM(H36:Z36) -> 0
B37: Impuestos indirectos | C37: 1.6114 | D37: 243.8504 | E37: 13.4984 | F37: 79.7578 | AA37: 0
H38: 0 | I38: 0 | J38: 67.576 | K38: 61.861 | AA38: =SUM(H38:Z38) -> 129.437
B39: Gobierno federal | AA39: 0
B40: Impuestos directos | AA40: =SUM(H40:Z40) -> 0
B41: Arrancel
H42: 0 | I42: 0 | J42: 0 | K42: 0 | AA42: =SUM(H42:Z42) -> 0
B44: Ahorros | C44: =+C50-C23-C16-C35 -> 3.17523785e-14 | D44: =+D50-D23-D16-D35 -> -6.536993169e-13 | E44: =+E50-E23-E16-E35 -> -5.329070518e-14 | F44: =+F50-F23-F16-F35 -> -5.96855898e-13 | H44: =+H50-H46-H35-H9-H24-H26 -> 0 | I44: =+I50-I46-I35-I9-I24-I26 -> 0 | J44: =+J50-J46-J35-J9-J24-J26 -> -4.547473509e-13 | K44: =+K50-K46-K35-K9-K24-K26 -> -1.818989404e-12 | L44: =+L50-L28-L46 -> 0 | M44: =+M50-M28-M46 -> 0 | N44: =+N50-N28-N46 -> 0 | O44: =+O50-O16-O46 -> 41.0671 | P44: =+P50-P16-P46 -> 338.9854 | Q44: =+Q50-Q16-Q46 -> 582.8416 | R44: =+R50-R16-R46 -> 1484.247538 | S44: =+S50-S16-S46 -> 5380.768262 | T44: =+T50-T46-T28-T16-T9 -> -1744.224 | Y44: =+Y50-Y28-Y16 -> -2603.7473 | Z44: =+Z50-Z28-Z16 -> -1841.9441 | AA44: =SUM(C44:Z44) -> 1637.9945
B46: Externo | H46: =+H47+H48 -> 113.8055 | I46: =+I47+I48 -> 834.2746 | J46: =+J47+J48 -> 2718.2838 | K46: =+K47+K48 -> 966.11 | L46: 0 | M46: 0 | N46: 0 | AA46: =SUM(H46:Z46) -> 4632.4739
B47: Resto del mundo | H47: 1.8551 | I47: 0 | J47: 6.413 | K47: 0 | AA47: =SUM(H47:Z47) -> 8.2681
B48: Resto del Mexico | H48: 111.9504 | I48: 834.2746 | J48: 2711.8708 | K48: 966.11 | AA48: =SUM(H48:Z48) -> 4624.2058
B50: Total | C50: =+AA10 -> 534.0885 | D50: =+AA11 -> 12698.8128 | E50: =+AA12 -> 1057.7893 | F50: =+AA13 -> 8354.334 | G50: =+G49+AA14 -> 1299.5642 | H50: =+AE50+AA17 -> 784.3156 | I50: =AA18 -> 13352.2539 | J50: =AA19 -> 5051.2401 | K50: =AA20 -> 9518.6901 | L50: =+AA24 -> 1847.855205 | M50: =+AA25 -> 1269.450795 | N50: =+AA26 -> 10014.1619 | O50: =+AA29 -> 356.4467 | P50: =+AA30 -> 797.4067 | Q50: =+AA31 -> 1293.5001 | R50: =+AA32 -> 2586.033138 | S50: =+AA33 -> 8380.410562 | T50: =+AA35 -> 468.155 | V50: =+V16+V46 -> 1637.9945 | X50: =+X46+X16 -> 0 | Y50: =+AA47 -> 8.2681 | Z50: =+AA48 -> 4624.2058 | AA50: =IF(ROUND(AA44,9)-ROUND((V50+X50),9)=0,"",AA44-(V50+X50)) -> 
C51: =+C17/$AA17 -> 0.03634111064 | D51: =+D17/$AA17 -> 0 | E51: 0.3553677882 | F51: 0.05834284056 | O51: =+O17/$AA17 -> 0.04115549914 | P51: 0.05482843896 | Q51: 0.05649957747 | R51: 0.06772847563 | S51: 0.07869599942 | V51: 0.01806798182 | Z51: 0.2329722882 | AA51: =SUM(C51:Z51) -> 1
C52: =+SAM!E16/SAM!$AC16 -> 0.01887290997 | D52: =+SAM!F16/SAM!$AC16 -> 0 | E52: =+SAM!G16/SAM!$AC16 -> 0.6967454216 | F52: =+SAM!H16/SAM!$AC16 -> 0.0292940843 | O52: =+SAM!Q16/SAM!$AC16 -> 0.01796540784 | P52: =+SAM!R16/SAM!$AC16 -> 0.02461823141 | Q52: =+SAM!S16/SAM!$AC16 -> 0.0245365278 | R52: =+SAM!T16/SAM!$AC16 -> 0.02852282914 | S52: =+SAM!U16/SAM!$AC16 -> 0.03085538163 | V52: =+SAM!X16/SAM!$AC16 -> 0.003929893982 | Z52: =+SAM!AB16/SAM!$AC16 -> 0.1193343269 | AA52: =SUM(C52:Z52) -> 0.9946750145
C53: =+C50/SUM($C$50:$F$50) -> 0.02358524707 | D53: =+D50/SUM($C$50:$F$50) -> 0.5607771696 | E53: 0.04671177527 | F53: 0.3689258081 | G53: =SUM(C53:F53) -> 1
C54: =+SAM!E48/SUM(SAM!$E$48:$H$48) -> 0.0285370607 | D54: =+SAM!F48/SUM(SAM!$E$48:$H$48) -> 0.328022091 | E54: =+SAM!G48/SUM(SAM!$E$48:$H$48) -> 0.2118204001 | F54: =+SAM!H48/SUM(SAM!$E$48:$H$48) -> 0.4316204483 | G54: =SUM(C54:F54) -> 1
B55: Valor agregado(%) | C55: =+(C23+C35+H35)/$C57*100 -> 2.443933942 | D55: =+(D23+D35+I35)/$C57*100 -> 52.72561197 | E55: =+(E23+E35+J35)/$C57*100 -> 3.692984752 | F55: =+(F23+F35+K35)/$C57*100 -> 41.13746933 | G55: =SUM(C55:F55) -> 100
C56: =+C17/$AA17 -> 0.03634111064 | D56: =+D17/$AA17 -> 0 | E56: 0.3553677882 | F56: 0.05834284056 | O56: =+O17/$AA17 -> 0.04115549914 | P56: 0.05482843896 | Q56: 0.05649957747 | R56: 0.06772847563 | S56: 0.07869599942 | V56: =+V17/$AA17 -> 0.01806798182 | Z56: =+Z17/$AA17 -> 0.2329722882 | AA56: =SUM(C56:Z56) -> 1
B57: GDP | C57: =SUM(H17:Z20)-AA46 -> 13599.6229 | F57: =SUM(C56:F56) -> 0.4500517394 | S57: =SUM(O56:S56) -> 0.2989079906
B58: C | C58: =SUM(O17:S20) -> 5585.8873
B59: I | C59: =SUM(V17:V20) -> 1637.9945 | D59: hogares | E59: =SUM(O44:S44) -> 7827.9099 | F59: =+E59/C$57 -> 0.5755975704
B60: G | C60: =SUM(T17:T20) -> 2136.7202 | D60: gob | E60: =T44 -> -1744.224 | F60: =+E60/C$57 -> -0.128255321
B61: E | C61: =+SUM(Y17:Z20) -> 8871.4948 | D61: ext | E61: =+F61+Y44 -> -2603.938771 | F61: -0.1914713952
B62: M | C62: =+AA46 -> 4632.4739 | D62: ext rm | E62: =+Z44 -> -1841.9441 | F62: -0.1354408217
B63: error | C63: =+SUM(C58:C61)-C62-C57 -> 0 | D63: invers | E63: =+V50 -> 1637.9945
E64: =+SUM(E59:E62)-E63 -> -0.1914713952

Sheet RAS (C)
E1: MIP
E2: H1 | F2: H2 | G2: H3 | H2: H4 | I2: H5 | J2: Total
D3: =+SAM!D16 -> AgPec | E3: =+E23 -> 344.6383935 | F3: =+F23 -> 472.2624614 | G3: 470.6951047 | H3: 547.1660928 | I3: 591.9124826 | J3: 2937.148842 | K3: =SAM!AD16-SAM!AC16-SAM!AB16-SAM!Y16-SAM!W16-SUM(SAM!F16:P16) -> -35466.28843
D4: =+SAM!D17 -> Pet | E4: =+E24 -> 0 | F4: =+F24 -> 0 | G4: 0 | H4: 0 | I4: 0 | J4: 0
D5: =+SAM!D18 -> Industria | E5: =+E25 -> 1920.380913 | F5: =+F25 -> 3278.437614 | G5: 4524.32278 | H5: 6052.266273 | I5: 10474.2444 | J5: 31771.51852
D6: =+SAM!D19 -> Servicios | E6: =+E26 -> 1686.200362 | F6: =+F26 -> 1992.611341 | G6: 3908.436374 | H6: 7204.240838 | I6: 26514.73184 | J6: 49995.38122
D7: Total | E7: 3951.219669 | F7: 5743.311416 | G7: 8903.454259 | H7: 13803.6732 | I7: 37580.88873 | J7: =IF(ROUND(SUM(J3:J6),6)-ROUND(SUM(E7:I7),6),"","error") -> 
E8: =+SAM!Q49-SAM!Q43 -> 0
C10: Now get factor share matrix to be consistent with incomes and factor payments
H11: run-RAS-> | I11: 1
C12: =+SAM!D16 -> AgPec | E12: =+SAM_aida!O17/SAM_aida!O$16 -> 0.1023493593 | F12: =+SAM_aida!P17/SAM_aida!P$16 -> 0.09380628692 | G12: =+SAM_aida!Q17/SAM_aida!Q$16 -> 0.06235554771 | H12: =+SAM_aida!R17/SAM_aida!R$16 -> 0.04821310063 | I12: =+SAM_aida!S17/SAM_aida!S$16 -> 0.02057662009
C13: =+SAM!D17 -> Pet | E13: =+SAM_aida!O18/SAM_aida!O$16 -> 0 | F13: =+SAM_aida!P18/SAM_aida!P$16 -> 0 | G13: =+SAM_aida!Q18/SAM_aida!Q$16 -> 0 | H13: =+SAM_aida!R18/SAM_aida!R$16 -> 0 | I13: =+SAM_aida!S18/SAM_aida!S$16 -> 0
C14: =+SAM!D18 -> Industria | D14: when run = 0 | E14: =+SAM_aida!O19/SAM_aida!O$16 -> 0.5596763392 | F14: =+SAM_aida!P19/SAM_aida!P$16 -> 0.639062801 | G14: =+SAM_aida!Q19/SAM_aida!Q$16 -> 0.5881892639 | H14: =+SAM_aida!R19/SAM_aida!R$16 -> 0.5233497334 | I14: =+SAM_aida!S19/SAM_aida!S$16 -> 0.3573282388
C15: =+SAM!D19 -> Servicios | E15: =+SAM_aida!O20/SAM_aida!O$16 -> 0.3379743014 | F15: =+SAM_aida!P20/SAM_aida!P$16 -> 0.2671309121 | G15: =+SAM_aida!Q20/SAM_aida!Q$16 -> 0.3494551884 | H15: =+SAM_aida!R20/SAM_aida!R$16 -> 0.428437166 | I15: =+SAM_aida!S20/SAM_aida!S$16 -> 0.6220951411
E16: scale rows to agree with row sums
C17: =+C12 -> AgPec | E17: =+IF($I$11=0,E12*$J3,E23*$J3/$J23) -> 417.1363913 | F17: =+IF($I$11=0,F12*$J3,F23*$J3/$J23) -> 571.6074082 | G17: =+IF($I$11=0,G12*$J3,G23*$J3/$J23) -> 569.710343 | H17: =+IF($I$11=0,H12*$J3,H23*$J3/$J23) -> 662.2677383 | I17: =+IF($I$11=0,I12*$J3,I23*$J3/$J23) -> 716.4269612 | J17: =+SUM(E17:I17) -> 2937.148842
C18: =+C13 -> Pet | E18: 0 | F18: 0 | G18: 0 | H18: 0 | I18: 0 | J18: =+SUM(E18:I18) -> 0
C19: Industria | E19: =+IF($I$11=0,E14*$J5,E25*$J5/$J25) -> 2324.351492 | F19: 3968.08847 | G19: 5476.057553 | H19: 7325.418642 | I19: 12677.60236 | J19: 31771.51852
C20: Servicios | E20: 2040.908811 | F20: 2411.776284 | G20: 4730.613523 | H20: 8719.722125 | I20: 32092.36048 | J20: 49995.38122
E21: =SUM(E17:E20) -> 4782.396695 | F21: =SUM(F17:F20) -> 6951.472162 | G21: =SUM(G17:G20) -> 10776.38142 | H21: =SUM(H17:H20) -> 16707.40851 | I21: =SUM(I17:I20) -> 45486.3898
E22: scale columns to agree with col sums
C23: =+C17 -> AgPec | E23: =+E17*E$7/E$21 -> 344.6383935 | F23: =+F17*F$7/F$21 -> 472.2624614 | G23: =+G17*G$7/G$21 -> 470.6951047 | H23: =+H17*H$7/H$21 -> 547.1660928 | I23: =+I17*I$7/I$21 -> 591.9124826 | J23: =+SUM(E23:I23) -> 2426.674535
C24: =+C18 -> Pet | D24: when run = 1 | E24: 0 | F24: 0 | G24: 0 | H24: 0 | I24: 0 | J24: =+SUM(E24:I24) -> 0
C25: Industria | E25: =+E19*E$7/E$21 -> 1920.380913 | F25: 3278.437614 | G25: 4524.32278 | H25: 6052.266273 | I25: 10474.2444 | J25: =+SUM(E25:I25) -> 26249.65198
C26: Servicios | E26: 1686.200362 | F26: 1992.611341 | G26: 3908.436374 | H26: 7204.240838 | I26: 26514.73184 | J26: =+SUM(E26:I26) -> 41306.22076
E27: =SUM(E23:E26) -> 3951.219669 | F27: =SUM(F23:F26) -> 5743.311416 | G27: =SUM(G23:G26) -> 8903.454259 | H27: =SUM(H23:H26) -> 13803.6732 | I27: 37580.88873

Sheet RAS (MIP)
E1: MIP
E2: =+SAM!E4 -> AgPec | F2: =+SAM!F4 -> Pet | G2: =+SAM!G4 -> Industria | H2: =+SAM!H4 -> Servicios | I2: Total
D3: =+E2 -> AgPec | E3: =+E23 -> 362.0474097 | F3: =+F23 -> 0 | G3: 13365.97671 | H3: 561.961423 | I3: 14289.98554 | J3: =+SAM!AD16-SUM(SAM!I16:AC16) -> -24076.90227
D4: =+F2 -> Pet | E4: =+E24 -> 0 | F4: =+F24 -> 0 | G4: 0 | H4: 0 | I4: 0 | J4: =+SAM!AD17-SUM(SAM!I17:AC17) -> -156049.2206
D5: =+G2 -> Industria | E5: =+E25 -> 2052.94672 | F5: =+F25 -> 358.5071617 | G5: 11115.68487 | H5: 18840.80696 | I5: 32367.94571 | J5: =+SAM!AD18-SUM(SAM!I18:AC18) -> -153503.8131
D6: =+H2 -> Servicios | E6: =+E26 -> 144.0649657 | F6: =+F26 -> 2998.536859 | G6: 4361.289469 | H6: 15243.79185 | I6: 22747.68314 | J6: =+SAM!AD19-SUM(SAM!I19:AC19) -> -228458.9805
D7: Total | E7: 2559.059096 | F7: 3357.04402 | G7: 28842.95105 | H7: 34646.56024 | I7: =IF(ROUND(SUM(E7:H7),6)=ROUND(SUM(I3:I6),6),"","error") -> 
E8: =+SAM!E16 -> 362.0474097 | F8: =+SAM!F16 -> 0 | G8: =+SAM!G16 -> 13365.97671 | H8: =+SAM!H16 -> 561.961423 | I8: =SUM(E7:H7)-SUM(I3:I6) -> 0
C10: Now get factor share matrix to be consistent with incomes and factor payments
G11: run-RAS-> | H11: 1
C12: H1 | E12: =+SAM_aida!C17/SAM_aida!C$16 -> 0.1412974345 | F12: =+SAM_aida!D17/SAM_aida!D$16 -> 0 | G12: =+SAM_aida!E17/SAM_aida!E$16 -> 0.4472887262 | H12: =+SAM_aida!F17/SAM_aida!F$16 -> 0.01621715318
C13: H2 | E13: =+SAM_aida!C18/SAM_aida!C$16 -> 0.001267581685 | F13: 0 | G13: =+SAM_aida!E18/SAM_aida!E$16 -> 0.03477859392 | H13: =+SAM_aida!F18/SAM_aida!F$16 -> 0.0001652222244
C14: H4 | D14: when run = 0 | E14: =+SAM_aida!C19/SAM_aida!C$16 -> 0.8012102753 | F14: =+SAM_aida!D19/SAM_aida!D$16 -> 0.01056047973 | G14: =+SAM_aida!E19/SAM_aida!E$16 -> 0.3719833301 | H14: =+SAM_aida!F19/SAM_aida!F$16 -> 0.5437103688
C15: H5 | E15: =+SAM_aida!C20/SAM_aida!C$16 -> 0.05622470847 | F15: =+SAM_aida!D20/SAM_aida!D$16 -> 0.08832735045 | G15: =+SAM_aida!E20/SAM_aida!E$16 -> 0.1459493498 | H15: =+SAM_aida!F20/SAM_aida!F$16 -> 0.4399072558
E16: scale rows to agree with row sums
C17: H1 | E17: =+IF($H$11=0,E12*$I3,E23*$I3/$I23) -> 362.0474097 | F17: 0 | G17: 13365.97671 | H17: 561.961423 | I17: =+SUM(E17:H17) -> 14289.98554
C18: H2 | E18: =+IF($H$11=0,E13*$I4,IF(I4=0,0,E24*$I4/$I24)) -> 0 | F18: =+IF($H$11=0,F13*$I4,IF(I4=0,0,F24*$I4/$I24)) -> 0 | G18: =+IF($H$11=0,G13*$I4,IF(I4=0,0,G24*$I4/$I24)) -> 0 | H18: =+IF($H$11=0,H13*$I4,IF(I4=0,0,H24*$I4/$I24)) -> 0 | I18: =+SUM(E18:H18) -> 0
C19: H4 | E19: 2052.94672 | F19: 358.5071617 | G19: 11115.68487 | H19: 18840.80696 | I19: 32367.94571
C20: H5 | E20: 144.0649657 | F20: 2998.536859 | G20: 4361.289469 | H20: 15243.79185 | I20: 22747.68314
E21: =SUM(E17:E20) -> 2559.059096 | F21: =SUM(F17:F20) -> 3357.04402 | G21: =SUM(G17:G20) -> 28842.95105 | H21: =SUM(H17:H20) -> 34646.56024
E22: scale columns to agree with col sums
C23: H1 | E23: =+E17*E$7/E$21 -> 362.0474097 | F23: 0 | G23: 13365.97671 | H23: 561.961423 | I23: =+SUM(E23:H23) -> 14289.98554
C24: H2 | D24: when run = 1 | E24: 0 | F24: 0 | G24: 0 | H24: 0 | I24: =+SUM(E24:H24) -> 0
C25: H4 | E25: 2052.94672 | F25: 358.5071617 | G25: 11115.68487 | H25: 18840.80696 | I25: =+SUM(E25:H25) -> 32367.94571
C26: H5 | E26: 144.0649657 | F26: 2998.536859 | G26: 4361.289469 | H26: 15243.79185 | I26: =+SUM(E26:H26) -> 22747.68314
E27: =SUM(E23:E26) -> 2559.059096 | F27: =SUM(F23:F26) -> 3357.04402 | G27: =SUM(G23:G26) -> 28842.95105 | H27: 34646.56024
